{"text_format":"1","workbook":"xlsx","n_sheets":17,"sheets":["Index","Custom Order Form","Apparel","Baseball and Softball","Basketball","Coach.Referee","Football","General Equipment","Golf","Health and Fitness","Hockey","Lacrosse","Physical Education","Soccer","Table Covers And Banners","Track and Field","Volleyball"],"not_rendered":{"charts":0,"images":1100,"macros":1,"external_links":0,"defined_names":3,"comments":0,"pivot_tables":0},"unopened":[],"bounds":{"document_bytes":16777216,"sheet_cells":100000,"rows_first":2000,"rows_last":500,"rows_between":2000,"halvings":0,"cell_chars":16384,"cell_head_chars":4096},"cells_cut":0,"cells_raw":0,"read":"whole","date_system":"1900"}

{"sheet":"Index","index":0,"n_rows":25,"n_cols":3,"rows_kept":25,"cut":false,"hidden":false,"merged":[]}
[]
[]
[]
[]
[]
["Website",{"$f":"HYPERLINK(\"https://www.unitedsupplycorp.com/\", \"https://www.unitedsupplycorp.com/\")","v":"https://www.unitedsupplycorp.com/"}]
["Email ","orders@unitedsupplycorp.com"]
["Phone ","718-439-9387"]
[]
["Index","Category","items "]
[1,"Apparel",1149]
[{"$f":"A11+1","v":2},"Baseball and Softball",383]
[{"$f":"A12+1","v":3},"Basketball",27]
[4,"Coach/Referee",20]
[5,"Football",155]
[6,"General Equipment",75]
[7,"Golf",2]
[8,"Health and Fitness",7]
[9,"Hockey",8]
[10,"Lacrosse",22]
[11,"Physical Education",36]
[12,"Soccer",64]
[13,"Table Covers and Banners",15]
[14,"Track and Field",19]
[15,"Volleyball",19]

{"sheet":"Custom Order Form","index":1,"n_rows":169,"n_cols":14,"rows_kept":169,"cut":false,"hidden":false,"merged":[[0,0,0,11],[1,0,1,1],[1,2,1,3],[1,4,1,5],[1,6,1,7],[1,8,1,9],[1,10,1,11],[3,0,3,1],[3,2,3,3],[3,4,3,11],[4,0,4,1],[4,2,4,5],[4,6,4,7],[4,8,4,11],[2,0,2,1],[2,2,2,3],[2,4,2,5],[2,6,2,7],[2,8,2,9],[2,10,2,11],[7,0,7,1],[7,2,7,3],[7,4,7,5],[7,6,7,7],[7,8,7,9],[7,10,7,11],[5,0,5,1],[5,2,5,5],[5,6,5,7],[5,8,5,11],[6,0,6,1],[6,2,6,5],[6,6,6,7],[6,8,6,11],[16,0,17,1],[16,2,17,3],[16,4,16,7],[16,8,16,11],[18,0,18,1],[18,2,18,3],[11,4,15,5],[11,10,11,11],[12,0,15,1],[12,6,15,7],[12,10,14,10],[12,11,14,11],[22,0,22,1],[22,2,22,3],[23,0,23,1],[23,2,23,3],[24,0,24,1],[24,2,24,3],[19,0,19,1],[19,2,19,3],[20,0,20,1],[20,2,20,3],[21,0,21,1],[21,2,21,3],[28,0,28,1],[28,2,28,3],[29,0,29,1],[29,2,29,3],[30,0,30,1],[30,2,30,3],[25,0,25,1],[25,2,25,3],[26,0,26,1],[26,2,26,3],[27,0,27,1],[27,2,27,3],[34,0,34,1],[34,2,34,3],[35,0,35,1],[35,2,35,3],[36,0,36,1],[36,2,36,3],[31,0,31,1],[31,2,31,3],[32,0,32,1],[32,2,32,3],[33,0,33,1],[33,2,33,3],[40,0,40,1],[40,2,40,3],[41,0,41,1],[41,2,41,3],[42,0,42,1],[42,2,42,3],[37,0,37,1],[37,2,37,3],[38,0,38,1],[38,2,38,3],[39,0,39,1],[39,2,39,3],[46,0,46,1],[46,2,46,3],[47,0,47,1],[47,2,47,3],[48,0,48,1],[48,2,48,3],[43,0,43,1],[43,2,43,3],[44,0,44,1],[44,2,44,3],[45,0,45,1],[45,2,45,3],[52,0,52,1],[52,2,52,3],[53,0,53,1],[53,2,53,3],[54,0,54,1],[54,2,54,3],[49,0,49,1],[49,2,49,3],[50,0,50,1],[50,2,50,3],[51,0,51,1],[51,2,51,3],[58,0,58,1],[58,2,58,3],[59,0,59,1],[59,2,59,3],[60,0,60,1],[60,2,60,3],[55,0,55,1],[55,2,55,3],[56,0,56,1],[56,2,56,3],[57,0,57,1],[57,2,57,3],[64,0,64,1],[64,2,64,3],[65,0,65,1],[65,2,65,3],[66,0,66,1],[66,2,66,3],[61,0,61,1],[61,2,61,3],[62,0,62,1],[62,2,62,3],[63,0,63,1],[63,2,63,3],[70,0,70,1],[70,2,70,3],[71,0,71,1],[71,2,71,3],[72,0,72,1],[72,2,72,3],[67,0,67,1],[67,2,67,3],[68,0,68,1],[68,2,68,3],[69,0,69,1],[69,2,69,3],[76,0,76,1],[76,2,76,3],[77,0,77,1],[77,2,77,3],[78,0,78,1],[78,2,78,3],[73,0,73,1],[73,2,73,3],[74,0,74,1],[74,2,74,3],[75,0,75,1],[75,2,75,3],[82,0,82,1],[82,2,82,3],[83,0,83,1],[83,2,83,3],[84,0,84,1],[84,2,84,3],[79,0,79,1],[79,2,79,3],[80,0,80,1],[80,2,80,3],[81,0,81,1],[81,2,81,3],[88,0,88,1],[88,2,88,3],[89,0,89,1],[89,2,89,3],[90,0,90,1],[90,2,90,3],[85,0,85,1],[85,2,85,3],[86,0,86,1],[86,2,86,3],[87,0,87,1],[87,2,87,3],[94,0,94,1],[94,2,94,3],[95,0,95,1],[95,2,95,3],[96,0,96,1],[96,2,96,3],[91,0,91,1],[91,2,91,3],[92,0,92,1],[92,2,92,3],[93,0,93,1],[93,2,93,3],[100,0,100,1],[100,2,100,3],[101,0,101,1],[101,2,101,3],[102,0,102,1],[102,2,102,3],[97,0,97,1],[97,2,97,3],[98,0,98,1],[98,2,98,3],[99,0,99,1],[99,2,99,3],[106,0,106,1],[106,2,106,3],[107,0,107,1],[107,2,107,3],[108,0,108,1],[108,2,108,3],[103,0,103,1],[103,2,103,3],[104,0,104,1],[104,2,104,3],[105,0,105,1],[105,2,105,3],[112,0,112,1],[112,2,112,3],[113,0,113,1],[113,2,113,3],[114,0,114,1],[114,2,114,3],[109,0,109,1],[109,2,109,3],[110,0,110,1],[110,2,110,3],[111,0,111,1],[111,2,111,3],[118,0,118,1],[118,2,118,3],[119,0,119,1],[119,2,119,3],[120,0,120,1],[120,2,120,3],[115,0,115,1],[115,2,115,3],[116,0,116,1],[116,2,116,3],[117,0,117,1],[117,2,117,3],[124,0,124,1],[124,2,124,3],[125,0,125,1],[125,2,125,3],[126,0,126,1],[126,2,126,3],[121,0,121,1],[121,2,121,3],[122,0,122,1],[122,2,122,3],[123,0,123,1],[123,2,123,3],[130,0,130,1],[130,2,130,3],[131,0,131,1],[131,2,131,3],[132,0,132,1],[132,2,132,3],[127,0,127,1],[127,2,127,3],[128,0,128,1],[128,2,128,3],[129,0,129,1],[129,2,129,3],[136,0,136,1],[136,2,136,3],[137,0,137,1],[137,2,137,3],[138,0,138,1],[138,2,138,3],[133,0,133,1],[133,2,133,3],[134,0,134,1],[134,2,134,3],[135,0,135,1],[135,2,135,3],[142,0,142,1],[142,2,142,3],[143,0,143,1],[143,2,143,3],[144,0,144,1],[144,2,144,3],[139,0,139,1],[139,2,139,3],[140,0,140,1],[140,2,140,3],[141,0,141,1],[141,2,141,3],[148,0,148,1],[148,2,148,3],[149,0,149,1],[149,2,149,3],[150,0,150,1],[150,2,150,3],[145,0,145,1],[145,2,145,3],[146,0,146,1],[146,2,146,3],[147,0,147,1],[147,2,147,3],[154,0,154,1],[154,2,154,3],[155,0,155,1],[155,2,155,3],[156,0,156,1],[156,2,156,3],[151,0,151,1],[151,2,151,3],[152,0,152,1],[152,2,152,3],[153,0,153,1],[153,2,153,3],[160,0,160,1],[160,2,160,3],[161,0,161,1],[161,2,161,3],[162,0,162,1],[162,2,162,3],[157,0,157,1],[157,2,157,3],[158,0,158,1],[158,2,158,3],[159,0,159,1],[159,2,159,3],[166,0,166,1],[166,2,166,3],[167,0,167,1],[167,2,167,3],[168,9,168,10],[163,0,163,1],[163,2,163,3],[164,0,164,1],[164,2,164,3],[165,0,165,1],[165,2,165,3]]}
["CHAMPRO ROSTER FORM\n(FILL THIS FORM WITH YOUR DECORATION ORDER DETAILS) "]
["Customer Number:",null,null,null,"Order Date:",null,null,null,"In-Hands Date:"]
["Customer Reference #:",null,null,null,"Contact Name:",null,null,null,"Customer Phone:"]
["Contact E-mail:"]
["Ship To / Attention:",null,null,null,null,null,"Bill To:"]
["Address:",null,null,null,null,null,"Address:"]
["State & Zip Code:",null,null,null,null,null,"State & Zip Code:"]
["JERSEY YOUTH",null,"JERSEY ADULT",null,"JERSEY TOTALS",null,"SHORTS YOUTH",null,"SHORTS ADULT",null,"SHORT TOTALS"]
["S",{"$f":"SUMIFS($H$19:$H$168,$F$19:$F$168,\"Y\", $G$19:$G$168,\"S\")","v":0},"XS",{"$f":"SUMIFS($H$19:$H$168,$F$19:$F$168,\"A\", $G$19:$G$168,\"XS\")","v":0},"Youth",{"$f":"SUM(B9:B12)","v":0},"S",{"$f":"SUMIFS($L$19:$L$168,$J$19:$J$168,\"Y\", $K$19:$K$168,\"S\")","v":0},"XS",{"$f":"SUMIFS($L$19:$L$168,$J$19:$J$168,\"A\", $K$19:$K$168,\"XS\")","v":0},"Youth",{"$f":"SUM(H9:H12)","v":0}]
["M",{"$f":"SUMIFS($H$19:$H$168,$F$19:$F$168,\"Y\", $G$19:$G$168,\"M\")","v":0},"S",{"$f":"SUMIFS($H$19:$H$168,$F$19:$F$168,\"A\", $G$19:$G$168,\"S\")","v":0},"Adult",{"$f":"SUM(D9:D16)","v":0},"M",{"$f":"SUMIFS($L$19:$L$168,$J$19:$J$168,\"Y\", $K$19:$K$168,\"M\")","v":0},"S",{"$f":"SUMIFS($L$19:$L$168,$J$19:$J$168,\"A\", $K$19:$K$168,\"S\")","v":0},"Adult",{"$f":"SUM(J9:J16)","v":0}]
["L",{"$f":"SUMIFS($H$19:$H$168,$F$19:$F$168,\"Y\", $G$19:$G$168,\"L\")","v":0},"M",{"$f":"SUMIFS($H$19:$H$168,$F$19:$F$168,\"A\", $G$19:$G$168,\"M\")","v":0},"Jerseys",{"$f":"SUM(F9:F10)","v":0},"L",{"$f":"SUMIFS($L$19:$L$168,$J$19:$J$168,\"Y\", $K$19:$K$168,\"L\")","v":0},"M",{"$f":"SUMIFS($L$19:$L$168,$J$19:$J$168,\"A\", $K$19:$K$168,\"M\")","v":0},"Shorts",{"$f":"SUM(L9:L10)","v":0}]
["XL",{"$f":"SUMIFS($H$19:$H$168,$F$19:$F$168,\"Y\", $G$19:$G$168,\"XL\")","v":0},"L",{"$f":"SUMIFS($H$19:$H$168,$F$19:$F$168,\"A\", $G$19:$G$168,\"L\")","v":0},null,null,"XL",{"$f":"SUMIFS($L$19:$L$168,$J$19:$J$168,\"Y\", $K$19:$K$168,\"XL\")","v":0},"L",{"$f":"SUMIFS($L$19:$L$168,$J$19:$J$168,\"A\", $K$19:$K$168,\"L\")","v":0}]
[null,null,"XL",{"$f":"SUMIFS($H$19:$H$168,$F$19:$F$168,\"A\", $G$19:$G$168,\"XL\")","v":0},null,null,null,null,"XL",{"$f":"SUMIFS($L$19:$L$168,$J$19:$J$168,\"A\", $K$19:$K$168,\"XL\")","v":0},"TOTAL\nORDER PIECES",{"$f":"SUM(F11, L11)","v":0}]
[null,null,"2X",{"$f":"SUMIFS($H$19:$H$168,$F$19:$F$168,\"A\", $G$19:$G$168,\"2XL\")","v":0},null,null,null,null,"2X",{"$f":"SUMIFS($L$19:$L$168,$J$19:$J$168,\"A\", $K$19:$K$168,\"2XL\")","v":0}]
[null,null,"3X",{"$f":"SUMIFS($H$19:$H$168,$F$19:$F$168,\"A\", $G$19:$G$168,\"3XL\")","v":0},null,null,null,null,"3X",{"$f":"SUMIFS($L$19:$L$168,$J$19:$J$168,\"A\", $K$19:$K$168,\"3XL\")","v":0}]
[null,null,"4X",{"$f":"SUMIFS($H$19:$H$168,$F$19:$F$168,\"A\", $G$19:$G$168,\"4XL\")","v":0},null,null,null,null,"4X",{"$f":"SUMIFS($L$19:$L$168,$J$19:$J$168,\"A\", $K$19:$K$168,\"4XL\")","v":0}]
["TEAM NAME\n(enter once for every team)",null,"PLAYER NAME\n(only last names will be printed)",null,"JERSEYS",null,null,null,"SHORTS"]
[null,null,null,null,"NUMBER","YOUTH OR ADULT","SIZE","QUANTITY","NUMBER","YOUTH OR ADULT","SIZE","QUANTITY",null,"All columns in Purple must be filled out for each jersey or short"]
[]
[]
[]
[]
[]
[]
[]
[]
[]
[]
[]
[]
[]
[]
[]
[]
[]
[]
[]
[]
[]
[]
[]
[]
[]
[]
[]
[]
[]
[]
[]
[]
[]
[]
[]
[]
[]
[]
[]
[]
[]
[]
[]
[]
[]
[]
[]
[]
[]
[]
[]
[]
[]
[]
[]
[]
[]
[]
[]
[]
[]
[]
[]
[]
[]
[]
[]
[]
[]
[]
[]
[]
[]
[]
[]
[]
[]
[]
[]
[]
[]
[]
[]
[]
[]
[]
[]
[]
[]
[]
[]
[]
[]
[]
[]
[]
[]
[]
[]
[]
[]
[]
[]
[]
[]
[]
[]
[]
[]
[]
[]
[]
[]
[]
[]
[]
[]
[]
[]
[]
[]
[]
[]
[]
[]
[]
[]
[]
[]
[]
[]
[]
[]
[]
[]
[]
[]
[]
[]
[]
[]
[]
[]
[]
[]
[]
[]
[]
[]
[]
[null,null,null,null,null,"JERSEY TOTAL:",null,{"$f":"SUM(H19:H168)","v":0},null,"SHORT TOTAL:",null,{"$f":"SUM(L19:L168)","v":0}]

{"sheet":"Apparel","index":2,"n_rows":1155,"n_cols":6,"rows_kept":1155,"cut":false,"hidden":false,"merged":[]}
[null,null,null,"Back Home","Website",{"$f":"HYPERLINK(\"https://www.unitedsupplycorp.com/\", \"https://www.unitedsupplycorp.com/\")","v":"https://www.unitedsupplycorp.com/"}]
[null,null,null,null,"Email ","orders@unitedsupplycorp.com"]
[null,null,null,null,"Phone ","718-439-9387"]
[]
[]
["United SKU","DOE Item Number","Title","DOE Price","Image","Category"]
["CHPRHB01","319432211","2-A-Day Boonie; One Size","$12.83",null,"Apparel"]
["CHPRCS8APLUS","319430332","3/4 Length Tight; A: 2XL-4XL*","$17.22",null,"Apparel"]
["CHPRCS8A","319430308","3/4 Length Tight; A: S-XL*","$14.97",null,"Apparel"]
["CHPRCS8Y","319430359","3/4 Length Tight; Y: S-L","$13.63",null,"Apparel"]
["CHPRCJ7APLUS","319424391","3/4 Sleeve Compression Shirt; A: 2XL-4XL*","$20.91",null,"Apparel"]
["CHPRCJ7A","319424375","3/4 Sleeve Compression Shirt; A: S-XL*","$18.18",null,"Apparel"]
["CHPRCJ7Y","319424413","3/4 Sleeve Compression Shirt; Y: S-L","$16.57",null,"Apparel"]
["CHPRAS4","31942118X","4\" Stirrup Sock","$4.27",null,"Apparel"]
["CHPRFV6","319432165","6 Pack of FV Mesh Scrimmage Vests","$21.66",null,"Apparel"]
["CMPFV6","317385062","6 Pack of FV Mesh Scrimmage Vests (Specify Color)","$19.79",null,"Apparel"]
["CHPRFVI6","319432181","6 Pack of FVI Mesh Scrimmage Vests","$22.19",null,"Apparel"]
["CMPFVI6","317385070","6 Pack of FVI Mesh Scrimmage Vests (Specify Color)","$19.25",null,"Apparel"]
["CHPRAS7","319421201","7\" Stirrup Sock","$4.27",null,"Apparel"]
["CHPRBS14AP","319426483","Ace DRI-GEAR Pro Style Button Front Jersey; Pin A: S-XL*","$18.45",null,"Apparel"]
["CMPBS14AP","317382624","Ace DRI-GEAR Pro Style Button Front Jersey; Pin Adult: S-XL (Specify Color and Size)","$11.5",null,"Apparel"]
["CHPRBS14YP","319426548","Ace DRI-GEAR Pro Style Button Front Jersey; Pin Youth: S-L","$16.84",null,"Apparel"]
["CMPBS14YP","317382640","Ace DRI-GEAR Pro Style Button Front Jersey; Pin Youth: S-L (Specify Color and Size)","$11.5",null,"Apparel"]
["CHPRBS14APPLUS","319426513","Ace DRI-GEAR? Pro Style Button Front Jersey; Pin A: 2XL-4XL*","$21.21",null,"Apparel"]
["CHPRBS16YP","319426726","Ace Sleeveless DRI-GEAR Pro Style Button Front Jersey; Pin Youth: S-L","$16.57",null,"Apparel"]
["CMPBS16YP","317382705","Ace Sleeveless DRI-GEAR Pro Style Button Front Jersey; Pin Youth: S-L (Specify Color and Size)","$11.5",null,"Apparel"]
["CHPRBS16AP","319426661","Ace Sleeveless DRI-GEAR Pro Style Button Front Jersey;Pin A:S-XL*","$17.38",null,"Apparel"]
["CMPBS16AP","317382683","Ace Sleeveless DRI-GEAR Pro Style Button Front Jersey;Pin Adult:S-XL (Specify Color and Size)","$11.5",null,"Apparel"]
["CHPRBS16APPLUS","319426696","Ace Sleeveless DRI-GEAR? Pro Style Button Front Jersey;Pin A:2XL-4XL*","$19.98",null,"Apparel"]
["CMPA060","317380486","Adjustable Baseball Belt - Leather - Adult (Specify Color)","$2.94",null,"Apparel"]
["CMPA060Y","317380494","Adjustable Baseball Belt - Leather - Youth (Specify Color)","$2.94",null,"Apparel"]
["CHPRA060Y","319420418","Adjustable Baseball Belt - Leather; Youth","$4",null,"Apparel"]
["CHPRA062Y","319420426","Adjustable Baseball Belt - Synthetic; Youth","$3.73",null,"Apparel"]
["CHPRA060","319425894","Adjustable Baseball Belt Leather; Adult","$4",null,"Apparel"]
["CHPRA062","319425924","Adjustable Baseball Belt Synthetic; Adult","$3.73",null,"Apparel"]
["CMPFR3V","317384902","AirTech Rib Vest; Varsity Youth: S-XL (Specify Size)","$24.34",null,"Apparel"]
["CHPRFR3V","319432009","AirTech Rib Vest; Varsity: S-XL*","$28.61",null,"Apparel"]
["CMPFR3VY","317384929","AirTech Rib Vest; Youth: S-L (Specify Size)","$24.34",null,"Apparel"]
["CHPRFR3VY","319432017","AirTech? Rib Vest; Youth: S-L","$28.61",null,"Apparel"]
["CHPRBS20Y","319426815","At Bat Sleeveless Softball Jersey; Girls S-L  -  Limited Quantity","$5.07",null,"Apparel"]
["CHPRBS20WPLUS","319426785","At Bat Sleeveless Softball Jersey; W: 2XL*  -  Limited Quantity","$5.83",null,"Apparel"]
["CHPRBS20W","319426750","At Bat Sleeveless Softball Jersey; W: S-XL*  -  Limited Quantity","$5.07",null,"Apparel"]
["CHPRSJ40A","319436802","Attacker Soccer Jersey; Adult: S-XL","$8.82",null,"Apparel"]
["CHPRSJ40Y","319436829","Attacker Soccer Jersey; Youth: XS-XL","$7.75",null,"Apparel"]
["CHPRFJ83APLUS","319431304","Audible Stretch Game Jersey; A: 2XL-3XL*","$16.91",null,"Apparel"]
["CHPRFJ83A","319431290","Audible Stretch Game Jersey; A: S-XL*","$14.7",null,"Apparel"]
["CHPRFJ83Y","319431312","Audible Stretch Game Jersey; Y: S-XL","$13.1",null,"Apparel"]
["CHPRFJ30APLUS","319431169","Backer Football Jersey; A: 2XL-3XL*","$32.29",null,"Apparel"]
["CHPRFJ30A","319431150","Backer Football Jersey; A: S-XL*","$28.08",null,"Apparel"]
["CHPRFJ30Y","319431177","Backer Football Jersey; Youth: S-L","$26.47",null,"Apparel"]
["CHPRHCC2A","319432319","Blade Compression Jock Tight; A: S-XL","$19.25",null,"Apparel"]
["CHPRHCC2Y","319432327","Blade Compression Jock Tight; Y: S-L","$18.18",null,"Apparel"]
["CHPRFJ40APLUS","319431193","Blitz Stretch Game Jersey; A: 2XL-3XL*","$21.52",null,"Apparel"]
["CHPRFJ40A","319431185","Blitz Stretch Game Jersey; A: S-XL*","$18.71",null,"Apparel"]
["CHPRFJ40Y","319431207","Blitz Stretch Game Jersey; Y: S-XL","$17.11",null,"Apparel"]
["CHPRFPA20PLUS","319431681","Blocker Football Pant; A: 2XL-3XL*","$24.6",null,"Apparel"]
["CHPRFPA20","319431673","Blocker Football Pant; A: S-XL*","$21.39",null,"Apparel"]
["CHPRFPY20","319431940","Blocker Football Pant; Youth: XS-XL","$18.98",null,"Apparel"]
["CMPAF54","317387782","Boil-and-Bite Strapless Mouthguard; Adult & Youth, Pack of 50","$22.46",null,"Apparel"]
["CMPAF53","317387774","Boil-and-Bite Strapped Mouthguard; Adult & Youth, Pack of 50","$24.34",null,"Apparel"]
["CHPRFPAU21PLUS","319431746","Bootleg 2 Integrated Game Pant; A: 2XL-3XL*","$35.36",null,"Apparel"]
["CHPRFPAU21","319431738","Bootleg 2 Integrated Game Pant; A: S-XL*","$30.75",null,"Apparel"]
["CHPRFPYU21","319431991","Bootleg 2 Integrated Game Pant; Y: XXS-XL & Husky*","$28.61",null,"Apparel"]
["CHPRBBM7PLUS","319422747","Boss 7 Polyester Micromesh Basketball Short, 7\" Inseam; A: 2XL*","$7.06",null,"Apparel"]
["CHPRBBM7","319422720","Boss 7 Polyester Micromesh Basketball Short, 7\" Inseam; A: XS-XL*","$6.14",null,"Apparel"]
["CMPBBM7","317381326","Boss 7 Polyester Micromesh Basketball Short, 7\" Inseam; Adult: XS-XL (Specify Color and Size)","$5.08",null,"Apparel"]
["CHPRBBM9PLUS","319422763","Boss 9 Polyester Micromesh Basketball Short, 9\" Inseam; A: 2-3XL*","$7.06",null,"Apparel"]
["CHPRBBM9","31943012X","Boss 9 Polyester Micromesh Basketball Short, 9\" Inseam; A: XS-XL*","$6.14",null,"Apparel"]
["CMPBBM9","317381342","Boss 9 Polyester Micromesh Basketball Short, 9\" Inseam; Adult: XS-XL (Specify Color and Size)","$5.08",null,"Apparel"]
["CHPRFJU10APLUS","319431339","Bull Rush Compression Shirt; A: 2XL-4XL*","$29.52",null,"Apparel"]
["CHPRFJU10A","319431320","Bull Rush Compression Shirt; A: S-XL*","$25.67",null,"Apparel"]
["CMPFJU10A","317384171","Bull Rush Compression Shirt; Adult: S-XL (Specify Color and Size)","$28.62",null,"Apparel"]
["CHPRFJU10Y","319431347","Bull Rush Compression Shirt; Youth: S-L","$22.46",null,"Apparel"]
["CMPFJU10Y","317384198","Bull Rush Compression Shirt; Youth: S-L (Specify Color and Size)","$21.39",null,"Apparel"]
["CMPFPGU10A","317384635","Bull Rush Girdle; 5-Pads; Adult: S-XL (Specify Color and Size)","$30.49",null,"Apparel"]
["CMPFPGU10Y","317384651","Bull Rush Girdle; 5-Pads; Youth: S-XL (Specify Color and Size)","$23.53",null,"Apparel"]
["CMPFPGU17A","317384694","Bull Rush Girdle; 7-Pads; Adult: S-XL (Specify Color and Size)","$36.11",null,"Apparel"]
["CMPFPGU17Y","317384716","Bull Rush Girdle; 7-Pads; Youth: S-XL (Specify Color and Size)","$29.95",null,"Apparel"]
["CHPRBS33APLUS","319427323","Bullpen Full-Button Jersey; A: 2XL-3XL*","$18.75",null,"Apparel"]
["CHPRBS33A","319427293","Bullpen Full-Button Jersey; A: S-XL*","$16.31",null,"Apparel"]
["CHPRBS33Y","319427358","Bullpen Full-Button Jersey; Youth: S-XL","$14.7",null,"Apparel"]
["CHPRBS35APLUS","319427498","Bunt Mini Flat-Back Mesh V-Neck Jersey; A: 2XL*","$8.91",null,"Apparel"]
["CHPRBS35A","319427463","Bunt Mini Flat-Back Mesh V-Neck Jersey; A: S-XL*","$7.75",null,"Apparel"]
["CHPRBS35Y","319427528","Bunt Mini Flat-Back Mesh V-Neck Jersey; Youth: XS-XL","$6.14",null,"Apparel"]
["CHPRBSJ100APLUS","319421767","Cage Jacket; A: 2XL-3XL","$19.37",null,"Apparel"]
["CHPRBSJ100A","319421732","Cage Jacket; A: S-XL","$16.84",null,"Apparel"]
["CHPRBSJ100Y","319421783","Cage Jacket; Youth: M-L","$15.5",null,"Apparel"]
["CHPRA195-JR","319420868","Captain's Arm Band; Colors: Black, Yellow, Blue, Red, Green - JV","$1.59",null,"Apparel"]
["CHPRBS36APLUS","319427587","Check V-Neck Jersey; A: 2XL-3XL*","$9.22",null,"Apparel"]
["CHPRBS36A","319427552","Check V-Neck Jersey; A: S-XL*","$8.01",null,"Apparel"]
["CHPRBS36G","319427617","Check V-Neck Jersey; Girls: XS-XL","$6.41",null,"Apparel"]
["CHPRBS36WPLUS","319427676","Check V-Neck Jersey; W: 2XL*","$8.91",null,"Apparel"]
["CHPRBS36W","319427641","Check V-Neck Jersey; W: S-XL*","$7.75",null,"Apparel"]
["CHPRBS36Y","319427714","Check V-Neck Jersey; Youth: S-XL","$6.41",null,"Apparel"]
["CMPJFLCHDX","317386131","Classic Hoodie; Adult: 2XL-5XL; PBT Fleece, Custom Printing Included (Specify Color and Size)","$62.23",null,"Apparel"]
["CMPJFLCHD","317386123","Classic Hoodie; Adult: XS-XL; PBT Fleece, Custom Printing Included (Specify Color and Size)","$54.12",null,"Apparel"]
["CMPJFLCHDY","31738614X","Classic Hoodie; Youth: XS-L; PBT Fleece, Custom Printing Included (Specify Color and Size)","$52.61",null,"Apparel"]
["CHPRBST72APLUS","319422178","Clean-Up Two-Button Placket Jersey; A: 2XL-3XL*","$11.06",null,"Apparel"]
["CHPRBST72A","319422151","Clean-Up Two-Button Placket Jersey; A: S-XL*","$9.62",null,"Apparel"]
["CHPRBST72Y","319422194","Clean-Up Two-Button Placket Jersey; Youth: S-XL","$8.55",null,"Apparel"]
["CHPRBBJ11APLUS","319421635","Clutch Reversible Basketball Jersey; A: 2XL-3XL*","$13.53",null,"Apparel"]
["CHPRBBJ11A","319421619","Clutch Reversible Basketball Jersey; A: S-XL*","$11.76",null,"Apparel"]
["CHPRBBJ11Y","31942166X","Clutch Reversible Basketball Jersey; Youth: S-XL","$10.96",null,"Apparel"]
["CMPBBS11A","317381377","Clutch Z-Cloth Basketball Short; Adult: S-XL; 9\" Inseam (Specify Color and Size)","$6.95",null,"Apparel"]
["CHPRBBS11Y","319430146","Clutch Zcloth Basketball Short; Youth: Sxl","$6.41",null,"Apparel"]
["CMPBBS11Y","317381415","Clutch Z-Cloth Basketball Short; Youth: S-XL; 7\" Inseam (Specify Color and Size)","$5.34",null,"Apparel"]
["CHPRBBS11APLUS","319422828","Clutch Z-Cloth Short; A: 2XL-3XL*; 9\" Inseam","$8.29",null,"Apparel"]
["CHPRBBS11A","319422801","Clutch Z-Cloth Short; A: S-XL*; 9\" Inseam","$7.21",null,"Apparel"]
["CHPRBBS11WPLUS","319422860","Clutch Z-Cloth Short; W: 2XL*; 8\" Inseam","$7.99",null,"Apparel"]
["CHPRBBS11W","319422844","Clutch Z-Cloth Short; W: S-XL*; 8\" Inseam","$6.94",null,"Apparel"]
["CMPBBS11W","317381393","Clutch Z-Cloth Short; Women's: S-XL; 8\" Inseam (Specify Color and Size)","$5.88",null,"Apparel"]
["CHPRCWCS2APLUS","319430707","Cold Weather Compression Bottom; A: 2XL-4XL*","$20.29",null,"Apparel"]
["CHPRCWCS2A","319430693","Cold Weather Compression Bottom; A: S-XL*","$17.64",null,"Apparel"]
["CHPRCWCS2Y","319430715","Cold Weather Compression Bottom; Y:: S-L","$16.04",null,"Apparel"]
["CHPRCWCJ1APLUS","319430677","Cold Weather Compression Long Sleeve Crew; A: 2XL-4XL*","$24.9",null,"Apparel"]
["CHPRCWCJ1A","319430669","Cold Weather Compression Long Sleeve Crew; A: S-XL*","$21.66",null,"Apparel"]
["CHPRCWCJ1Y","319430685","Cold Weather Compression Long Sleeve Crew; Y:: S-L","$20.05",null,"Apparel"]
["CHPRBS24APLUS","319426963","Complete Game 3/4 Sleeve Jersey; A: 2XL*","$9.83",null,"Apparel"]
["CHPRBS24A","319426939","Complete Game 3/4 Sleeve Jersey; A: S-XL*","$8.55",null,"Apparel"]
["CHPRBS24Y","319426998","Complete Game 3/4 Sleeve Jersey; Youth: S-XL","$7.48",null,"Apparel"]
["CHPRBPR2","319425967","Complete Game Officials' Pant: 30-46; Grey","$32.09",null,"Apparel"]
["CMPBPR2","31738239X","Complete Game Officials' Pant: 30-46; Grey (Specify Size)","$25.67",null,"Apparel"]
["CHPRCS5APLUS","319430278","Compression  Tight; A: 2XL-4XL*","$18.45",null,"Apparel"]
["CHPRCS5A","319430251","Compression  Tight; A: S-XL*","$16.04",null,"Apparel"]
["CHPRBPS14AC","319425991","Compression Boxer Short w/Cup; Adult: S-XL","$13.9",null,"Apparel"]
["CMPBPS14AC","317382470","Compression Boxer Short w/Cup; Adult: S-XL (Specify Size)","$10.16",null,"Apparel"]
["CHPRBPS14YC","319426025","Compression Boxer Short w/Cup; Youth: XS-L","$12.29",null,"Apparel"]
["CMPBPS14YC","317382489","Compression Boxer Short w/Cup; Youth: XS-L (Specify Size)","$10.16",null,"Apparel"]
["CHPRCS4APLUS","319430219","Compression Shorts; A: 2XL-4XL*","$16.6",null,"Apparel"]
["CHPRCS4A","319430197","Compression Shorts; A: S-XL*","$14.43",null,"Apparel"]
["CHPRCS4Y","319430235","Compression Shorts; Y: S-L","$11.49",null,"Apparel"]
["CHPRCS5Y","319430286","Compression Tight; Y: S-L","$14.43",null,"Apparel"]
["CMPBST75AX","317383272","Contender T-Shirt; Adult: 2XL-4XL (Specify Color and Size)","$4.81",null,"Apparel"]
["CMPBST75A","317383264","Contender T-Shirt; Adult: S-XL (Specify Color and Size)","$4.81",null,"Apparel"]
["CMPBST75Y","317383280","Contender T-Shirt; Youth: S-XL (Specify Color and Size)","$4.27",null,"Apparel"]
["CHPRHCC1APLUS","319432297","Crease Compression Jock Short; A: 2XL*","$17.22",null,"Apparel"]
["CHPRHCC1A","319432289","Crease Compression Jock Short; A: S-XL*","$14.97",null,"Apparel"]
["CHPRHCC1Y","319432300","Crease Compression Jock Short; Y:: S-L","$14.43",null,"Apparel"]
["CHPRBBJ16APLUS","319421813","Crossover Reversible Baksetball Jersey; A: 2XL*","$15.68",null,"Apparel"]
["CHPRBBJ16A","319421791","Crossover Reversible Baksetball Jersey; A: S-XL*","$13.63",null,"Apparel"]
["CHPRBBJ16Y","319421872","Crossover Reversible Basketball Jersey; Youth: S-L","$12.83",null,"Apparel"]
["CHPRBBS16APLUS","319423026","Crossover Reversible Basketball Short; A: 2XL*","$14.76",null,"Apparel"]
["CHPRBBS16A","31942300X","Crossover Reversible Basketball Short; A: S-XL*","$12.83",null,"Apparel"]
["CHPRBBS16Y","319423085","Crossover Reversible Basketball Short; Youth: S-L","$12.03",null,"Apparel"]
["CHPRBBJ16WPLUS","319421856","Crossover Reversible Jersey; W: 2XL*","$15.68",null,"Apparel"]
["CHPRBBJ16W","31942183X","Crossover Reversible Jersey; W: S-XL*","$13.63",null,"Apparel"]
["CHPRBBS16WPLUS","319423069","Crossover Reversible Short; W: 2XL*","$14.76",null,"Apparel"]
["CHPRBBS16W","319423042","Crossover Reversible Short; W: S-XL*","$12.83",null,"Apparel"]
["CHPRBS23Y","319426904","Curcuit 6-Button Softball Jersey; Girls: S-L  -  Limited Quantity","$7.21",null,"Apparel"]
["CHPRBS23WPLUS","319426874","Curcuit 6-Button Softball Jersey; W: 2XL*  -  Limited Quantity","$8.29",null,"Apparel"]
["CHPRBS23W","31942684X","Curcuit 6-Button Softball Jersey; W: S-XL*  -  Limited Quantity","$7.21",null,"Apparel"]
["CUSTOMNAME","317488953","Custom 1-Color Name Silk Screening For Sports Uniforms (Jerseys, T-Shirts, Pants, Shorts)","$12.6",null,"Apparel"]
["CustomNumber","317468642","Custom 1-Color Number Silk Screening For Sports Uniforms (Jerseys, T-Shirts, Pants, Shorts)","$5.52",null,"Apparel"]
["CUSTOM2COLORNAME","317488961","Custom 2-Color Name Silk Screening For Sports Uniforms (Jerseys, T-Shirts, Pants, Shorts)","$17.94",null,"Apparel"]
["Custom2ColorNumber","317482963","Custom 2-Color Number Silk Screening For Sports Uniforms (Jerseys, T-Shirts, Pants, Shorts)","$9.5",null,"Apparel"]
["CUSTOM1B","317380435","Custom Additional Color Silk Screening For Sports Uniforms (Jerseys, T-Shirts, Pants, Shorts), Each Additional Color","$0.22",null,"Apparel"]
["CUSTOM1C","317380443","Custom Additional Location Silk Screening For Sports Uniforms (Jerseys, T-Shirts, Pants, Shorts), Each Additional Location","$0.67",null,"Apparel"]
["CMPJBBJ5A","319035255","Custom Basketball Fitted Reversible Double Ply Jersey, Adult: S-XL, Z-Cloth. Custom Printing Included.","$36.67",null,"Apparel"]
["CMPJBBJ5Y","319035271","Custom Basketball Fitted Reversible Double Ply Jersey, Youth: S-XL, Z-Cloth. Custom Printing Included.","$35.14",null,"Apparel"]
["CMPJBBJ3S4","319035417","Custom Basketball Reversible Double Ply Uniform Jersey and Short Set;  Adult: S-XL, Z-Cloth. Custom Printing Included.","$73.34",null,"Apparel"]
["CMPJBBJ3ZSZ","319035409","Custom Basketball Reversible Double Ply Uniform Jersey and Short Set;  Youth: S-XL, Z-Cloth. Custom Printing Included.","$70.28",null,"Apparel"]
["CMPJBBJ6A","31903528X","Custom Basketball Single Ply Reversible Jersey, Adult: S-XL, Fusion Mesh. Custom Printing Included.","$36.67",null,"Apparel"]
["CMPJBBJ6Y","31746860X","Custom Basketball Single Ply Reversible Jersey,Youth: S-XL, Fusion Mesh. Custom Printing Included.","$35.14",null,"Apparel"]
["CMPJBBS6A","319035387","Custom Basketball Single Ply Reversible Short, Adult: S-XL, Fusion Mesh. Custom Printing Included.","$36.67",null,"Apparel"]
["CMPJBBS6Y","317385305","Custom Basketball Single Ply Reversible Short,Youth: S-XL, Fusion Mesh. Custom Printing Included.","$35.14",null,"Apparel"]
["CUSTOM1D","317380451","Custom Embroidery For Sports Uniforms (Jerseys, T-Shirts, Pants, Shorts), Per 1000 Stitches","$0.48",null,"Apparel"]
["1a","317380427","Custom Silk Screening, 1 Color, 1 Location","$0.7",null,"Apparel"]
["CMPJFJ5A","319035301","Custom Single-ply Reversible Football Jersey, Adult: S-XL. Custom Printing Included","$64.18",null,"Apparel"]
["CMPJFJ5Y","319035328","Custom Single-ply Reversible Football Jersey, Youth: S-XL. Custom Printing Included","$62.66",null,"Apparel"]
["CMPJSBJ2","319035344","Custom Womens Short Sleeve V-Neck Tee, Adult: XS-XL","$30.56",null,"Apparel"]
["CMPJMPMHAKT","319046729","Customized Triple Layer Face Mask, Around the head, Size: Adult. Pack of 12","$128.22",null,"Apparel"]
["CMPJMPMHYKT","319046710","Customized Triple Layer Face Mask, Around the head, Size: Youth. Pack of 12","$128.22",null,"Apparel"]
["CMPJMPMEAKT","319046702","Customized Triple Layer Face Mask, Over the Ear, Size: Adult. Pack of 12","$128.22",null,"Apparel"]
["CMPJMPMEYKT","319046699","Customized Triple Layer Face Mask, Over the Ear, Size: Youth. Pack of 12","$128.22",null,"Apparel"]
["CHPRBBJ32APLUS","319422100","Dagger Basketball Jersey; A: 2XL-3XL*","$11.98",null,"Apparel"]
["CHPRBBJ32A","319422089","Dagger Basketball Jersey; A: S-XL*","$10.42",null,"Apparel"]
["CHPRBBJ32WPLUS","319422143","Dagger Basketball Jersey; W: 2XL*","$11.98",null,"Apparel"]
["CHPRBBJ32W","319422119","Dagger Basketball Jersey; W: S-XL*","$10.42",null,"Apparel"]
["CHPRBBJ32Y","31942216X","Dagger Basketball Jersey; Youth: S-XL","$9.89",null,"Apparel"]
["CHPRBBS32APLUS","319423298","Dagger Basketball Short; A: 2XL-3XL*","$11.98",null,"Apparel"]
["CHPRBBS32A","319423271","Dagger Basketball Short; A: S-XL*","$10.42",null,"Apparel"]
["CHPRBBS32WPLUS","319423344","Dagger Basketball Short; W: 2XL*; 8\" Inseam","$11.98",null,"Apparel"]
["CHPRBBS32W","319423328","Dagger Basketball Short; W: S-XL*; 8\" Inseam","$10.42",null,"Apparel"]
["CHPRBBS32Y","319423360","Dagger Basketball Short; Youth: S-XL","$9.89",null,"Apparel"]
["CHPRBS30G","31942720X","Decoy Racerback Softball Jersey; Girls: S-L - Limited Quantities","$6.14",null,"Apparel"]
["CHPRBS30WPLUS","319427269","Decoy Racerback Softball Jersey; W: 2XL* - Limited Quantities","$7.37",null,"Apparel"]
["CHPRBS30W","319427234","Decoy Racerback Softball Jersey; W: S-XL* - Limited Quantities","$6.41",null,"Apparel"]
["CMPE45","31738371X","Deluxe Personal Equipment Bag; 20\" x 12\" x 12\" (Specify Color)","$19.25",null,"Apparel"]
["CHPRBS37Y","319427803","Diamond 2-Button Sleeveless Jersey; Girls: S-L - Limited Quantities","$6.41",null,"Apparel"]
["CHPRBS37APLUS","319427773","Diamond 2-Button Sleeveless Jersey; W: 2XL* - Limited Quantities","$7.99",null,"Apparel"]
["CHPRBS37A","319427749","Diamond 2-Button Sleeveless Jersey; W: S-XL* - Limited Quantities","$6.94",null,"Apparel"]
["CHPRBBT7APLUS","319424057","Diesel 7 Polyester Tricot Short w/Liner; 7\" Inseam; A: 2XL-4XL*","$7.37",null,"Apparel"]
["CHPRBBT7A","319424049","Diesel 7 Polyester Tricot Short w/Liner; 7\" Inseam; A: S-XL*","$6.41",null,"Apparel"]
["CMPBBT7A","317381709","Diesel 7 Polyester Tricot Short w/Liner; Adult S-XL; 7\" Inseam (Specify Color and Size)","$5.88",null,"Apparel"]
["CHPRBBT9Y","319430162","Diesel 9 Polyester Tricot Short W/Liner, 7 Inseam; Youth: Sxl","$5.07",null,"Apparel"]
["CMPBBT9Y","317381741","Diesel 9 Polyester Tricot Short w/Liner, 7\" Inseam; Youth: S-XL (Specify Color and Size)","$4.27",null,"Apparel"]
["CHPRBBT9APLUS","31942409X","Diesel 9 Polyester Tricot Short w/Liner, 9\" Inseam; A: 2XL-3XL*","$7.37",null,"Apparel"]
["CHPRBBT9A","319424065","Diesel 9 Polyester Tricot Short w/Liner, 9\" Inseam; A: S-XL*","$6.41",null,"Apparel"]
["CMPBBT9A","317381725","Diesel 9 Polyester Tricot Short w/Liner, 9\" Inseam; Adult: S-XL (Specify Color and Size)","$5.88",null,"Apparel"]
["CHPRBSTK9APLUS","319422496","Double Stock Reversible Tee; A: 2XL*","$15.06",null,"Apparel"]
["CHPRBSTK9A","31942247X","Double Stock Reversible Tee; A: S-XL*","$13.1",null,"Apparel"]
["CHPRBSTK9Y","319422518","Double Stock Reversible Tee; Youth: S-XL","$11.76",null,"Apparel"]
["CMPBSTK9Y","31738340X","Double Stock Reversible Tee; Youth: S-XL (Specify Color and Size)","$10.16",null,"Apparel"]
["CMPE73","317383736","Drawstring Sackpack; 9\" x 14\" (Specify Color)","$3.74",null,"Apparel"]
["CMPFCAPM","317383795","DRI-GEAR TRI-FLEX Arm Sleeve w/Elbow Padding; JV","$8.29",null,"Apparel"]
["CMPFCAPL","317383787","DRI-GEAR TRI-FLEX Arm Sleeve w/Elbow Padding; Varsity","$8.29",null,"Apparel"]
["CMPFCAPS","317383809","DRI-GEAR TRI-FLEX Arm Sleeve w/Elbow Padding; Youth","$8.29",null,"Apparel"]
["CMPFCKPM","31738385X","DRI-GEAR TRI-FLEX Knee Pads; JV; Black","$14.71",null,"Apparel"]
["CMPFCKPL","317383841","DRI-GEAR TRI-FLEX Knee Pads; Varsity; Black","$14.71",null,"Apparel"]
["CMPFCKPS","317383868","DRI-GEAR TRI-FLEX Knee Pads; Youth; Black","$14.71",null,"Apparel"]
["CMPFCSPM","317383884","DRI-GEAR TRI-FLEX Shin Sleeve; JV; Black","$14.44",null,"Apparel"]
["CMPFCSPL","317383876","DRI-GEAR TRI-FLEX Shin Sleeve; Varsity; Black","$14.44",null,"Apparel"]
["CMPFCSPS","317383892","DRI-GEAR TRI-FLEX Shin Sleeve; Youth; Black","$14.44",null,"Apparel"]
["CMPFCASM","317383825","DRI-GEARCompression Arm Sleeve; JV; Black","$5.08",null,"Apparel"]
["CMPFCASL","317383817","DRI-GEARCompression Arm Sleeve; Varsity; Black","$5.08",null,"Apparel"]
["CMPFCASS","317383833","DRI-GEARCompression Arm Sleeve; Youth; Black","$5.08",null,"Apparel"]
["CHPRBBS557APLUS","319423743","Dynamic Tricot Mesh Short; A: 2XL-3XL*; 7\" Inseam","$7.68",null,"Apparel"]
["CHPRBBS55APLUS","319423786","Dynamic Tricot Mesh Short; A: 2XL-3XL*; 9\" Inseam","$7.68",null,"Apparel"]
["CHPRBBS557A","319423727","Dynamic Tricot Mesh Short; A: S-XL*; 7\" Inseam","$6.68",null,"Apparel"]
["CHPRBBS55A","31942376X","Dynamic Tricot Mesh Short; A: S-XL*; 9\" Inseam","$6.68",null,"Apparel"]
["CHPRBBS55Y","319423808","Dynamic Tricot Mesh Short; Y: S-XL; 7\" Inseam","$5.87",null,"Apparel"]
["CHPRBS25APLUS","319427056","Extra Innings 3/4 Sleeve Jersey; A: 2XL*","$12.29",null,"Apparel"]
["CHPRBS25A","319427021","Extra Innings 3/4 Sleeve Jersey; A: S-XL*","$10.69",null,"Apparel"]
["CHPRBS25Y","319427080","Extra Innings 3/4 Sleeve Jersey; Youth: S-XL","$10.15",null,"Apparel"]
["CHPRHJ2APLUS","319432343","Faceoff Hockey Jersey; A: 2XL*","$11.68",null,"Apparel"]
["CHPRHJ2A","319432335","Faceoff Hockey Jersey; A: S-XL*","$10.15",null,"Apparel"]
["CHPRHJ2GA","319432351","Faceoff Hockey Jersey; Adult: Goalie","$10.69",null,"Apparel"]
["CHPRHJ2GY","31943236X","Faceoff Hockey Jersey; Mites: XS","$9.08",null,"Apparel"]
["CHPRHJ2Y","319432378","Faceoff Hockey Jersey; Y: S/M, L/XL","$9.35",null,"Apparel"]
["CMPJFFJ1Y","317386026","Fan Football Jersey; Youth: S-L; Mixed, Custom Printing Included (Specify Color and Size)","$31.56",null,"Apparel"]
["CHPRAS5","319438376","Featherweight Sock; Xs, S, M, L","$3.47",null,"Apparel"]
["CMPBP39Y","317382039","Fireball Low Rise Softball Knicker; Girls': XS-XL (Specify Color and Size)","$9.36",null,"Apparel"]
["CHPRBP39W","319424502","Fireball Low Rise Softball Knicker; W: S-XL","$13.9",null,"Apparel"]
["CMPBP39W","317382012","Fireball Low Rise Softball Knicker; Women's: S-XL (Specify Color and Size)","$13.1",null,"Apparel"]
["CMPJFJ2Y","317386085","Fitted Football Jersey; Youth: S-XL; Mixed, Custom Printing Included (Specify Color and Size)","$48.11",null,"Apparel"]
["CHPRFJ21APLUS","319431088","Football Fan Jersey; A: 2XL*","$7.68",null,"Apparel"]
["CHPRFJ21A","31943107X","Football Fan Jersey; A: S-XL*","$6.68",null,"Apparel"]
["CHPRFJ21Y","319431096","Football Fan Jersey; Y: S-L","$6.68",null,"Apparel"]
["CHPRFWB","31943219X","Football Web Belt, 1\" Wide x 52\" Long x 1.5 mm Thick","$12.83",null,"Apparel"]
["CMPFWB","317385089","Football Web Belt, 1\" Wide x 52\" Long x 1.5 mm Thick, Dozen (Specify Color)","$12.3",null,"Apparel"]
["CMPFPGU18A","317384724","Formation Compression Girdle; Adult: S-XL (Specify Size)","$24.34",null,"Apparel"]
["CMPFPGU18Y","317384740","Formation Compression Girdle; Youth: S-L (Specify Size)","$19.52",null,"Apparel"]
["CHPRFJU18APLUS","319431363","Formation Protective Compression Shirt; Adult; 2XL-4XL*","$27.37",null,"Apparel"]
["CHPRFJU18A","319431355","Formation Protective Compression Shirt; Adult; S-XL*","$23.8",null,"Apparel"]
["CHPRFJU18Y","319431371","Formation Protective Compression Shirt; Youth; S-L","$21.39",null,"Apparel"]
["CHPRBBJ61APLUS","319422429","Free Toss Fitted Basketball Jersey; A: 2XL-3XL*","$8.29",null,"Apparel"]
["CHPRBBJ61A","319422402","Free Toss Fitted Basketball Jersey; A: S-XL*","$7.21",null,"Apparel"]
["CHPRBBJ61WPLUS","319422461","Free Toss Fitted Basketball Jersey; W: 2XL*","$8.29",null,"Apparel"]
["CHPRBBJ61W","319422445","Free Toss Fitted Basketball Jersey; W: S-XL*","$7.21",null,"Apparel"]
["CHPRBBJ61Y","319422488","Free Toss Fitted Basketball Jersey; Youth: S-XL","$6.41",null,"Apparel"]
["CHPRBS149A","319426408","Full Button Front Jersey; A: S-XL*","$17.91",null,"Apparel"]
["CHPRBS149Y","319426432","Full Button Front Jersey; Youth - Blank","$16.31",null,"Apparel"]
["CHPRBS169APLUS","319426602","Full Button Front Vest; A: 2XL-3XL*","$19.37",null,"Apparel"]
["CHPRBS169A","319426572","Full Button Front Vest; A: S-XL*","$16.84",null,"Apparel"]
["CHPRBS169Y","319426637","Full Button Front Vest; Youth - Blank","$16.31",null,"Apparel"]
["CHPRA072Y","319420485","Gamer Elastic Belt; Adjusts from 18\" to 34\"; Youth","$8.01",null,"Apparel"]
["CHPRA072A","319420477","Gamer Elastic Belt; Adjutsts from 24\" to 48\"; Adult","$8.01",null,"Apparel"]
["CHPRA072","319420469","Gamer Elastic Belt; Adult: 24\" to 48\"","$8.01",null,"Apparel"]
["CHPRFJ2PLUS","319431134","Gridiron Practice Jersey; A: 2- 3XL*","$9.83",null,"Apparel"]
["CHPRFJ2","319431037","Gridiron Practice Jersey; A: M, XL","$8.55",null,"Apparel"]
["CHPRFJ2Y","319431142","Gridiron Practice Jersey; Youth: M, XL","$8.55",null,"Apparel"]
["CHPRBST12APLUS","319421988","Gunner Shooter Shirt; A: 2XL-4XL*","$9.52",null,"Apparel"]
["CHPRBST12A","319421961","Gunner Shooter Shirt; A: S-XL*","$8.28",null,"Apparel"]
["CMPBST12A","317383124","Gunner Shooter Shirt; Adult: S-XL (Specify Color and Size)","$8.02",null,"Apparel"]
["CHPRBST12Y","319422003","Gunner Shooter Shirt; Youth: S-XL","$8.01",null,"Apparel"]
["CMPBST12Y","317383140","Gunner Shooter Shirt; Youth: S-XL (Specify Color and Size)","$7.22",null,"Apparel"]
["CHPRCJ2APLUS","319424278","Half Sleeve Compression Shirt; A: 2XL-4XL*","$19.68",null,"Apparel"]
["CHPRCJ2A","319424251","Half Sleeve Compression Shirt; A: S-XL*","$17.11",null,"Apparel"]
["CHPRCJ2Y","319424294","Half Sleeve Compression Shirt; Y: S-L","$15.77",null,"Apparel"]
["CHPRSJ10A","319436675","Header Mesh Soccer Jersey; Adult: S-XL","$7.75",null,"Apparel"]
["CHPRSJ10Y","319436691","Header Mesh Soccer Jersey; Youth: XS-XL","$6.41",null,"Apparel"]
["CHPRSS10A","319436918","Header Mesh Soccer Short; Adult: S-XL; 6\" Inseam","$7.75",null,"Apparel"]
["CHPRSS10Y","319436934","Header Mesh Soccer Short; Youth: XS-XL; Graded Inseam","$6.41",null,"Apparel"]
["CHPRBS42APLUS","319427870","Heater 2-Button Jersey; A: 2XL-3XL*","$14.14",null,"Apparel"]
["CHPRBS42A","319427838","Heater 2-Button Jersey; A: S-XL*","$12.29",null,"Apparel"]
["CHPRBS42Y","319427897","Heater 2-Button Jersey; Youth: S-L","$11.76",null,"Apparel"]
["CMPBST8HAX","317383337","Heather T-Shirt; Adult: 2XL-3XL (Specify Color and Size)","$7.48",null,"Apparel"]
["CMPBST8HA","317383329","Heather T-Shirt; Adult: S-XL (Specify Color and Size)","$7.48",null,"Apparel"]
["CMPBST8HY","317383345","Heather T-Shirt; Youth: S-XL (Specify Color and Size)","$6.15",null,"Apparel"]
["CHPRBP31W","319424480","Hot Shot Compression Softball Pant; Women's: XS-2XL*","$29.41",null,"Apparel"]
["CMPBP31W","317381997","Hot Shot Compression Softball Pant; Women's: XS-XL (Specify Color and Size)","$31.29",null,"Apparel"]
["CHPRRTBST01A","31943625X","Hound Short Sleeve Camo Jersey; A: S-XL*","$11.49",null,"Apparel"]
["CHPRRTBST01Y","319436268","Hound Short Sleeve Camo Jersey; Y: S-XL","$10.15",null,"Apparel"]
["CHPRFJ20APLUS","319431053","Huddle Stretch Game Jersey; A: 2XL-3XL*","$18.14",null,"Apparel"]
["CHPRFJ20A","319431045","Huddle Stretch Game Jersey; A: S-XL*","$15.77",null,"Apparel"]
["CHPRFJ20Y","319431061","Huddle Stretch Game Jersey; Youth: S-XL","$14.43",null,"Apparel"]
["CHPRBS80G","319428311","Infinite Two-Button Short Sleeve Jersey; Girl's: S-L","$10.96",null,"Apparel"]
["CHPRBS80WPLUS","319428370","Infinite Two-Button Short Sleeve Jersey; W: 2XL*","$13.53",null,"Apparel"]
["CHPRBS80W","319428346","Infinite Two-Button Short Sleeve Jersey; W: S-XL*","$11.76",null,"Apparel"]
["CHPRBS86G","319421686","Infinite Two-Button Sleeveless Jersey; Girl's: S-L","$10.15",null,"Apparel"]
["CHPRBS86WPLUS","319421716","Infinite Two-Button Sleeveless Jersey; W: 2XL*","$12.6",null,"Apparel"]
["CHPRBS86W","319421708","Infinite Two-Button Sleeveless Jersey; W: S-XL*","$10.96",null,"Apparel"]
["CHPRBS84G","319421643","Infinite V-Neck Racerback Jersey; Girl's: S-L","$8.82",null,"Apparel"]
["CHPRBS84WPLUS","319421678","Infinite V-Neck Racerback Jersey; W: 2XL*","$10.75",null,"Apparel"]
["CHPRBS84W","319421651","Infinite V-Neck Racerback Jersey; W: S-XL*","$9.35",null,"Apparel"]
["CHPRBS82G","319421597","Infinite V-Neck Short Sleeve Jersey; Girl's: S-L","$9.35",null,"Apparel"]
["CHPRBS82WPLUS","319421627","Infinite V-Neck Short Sleeve Jersey; W: 2XL*","$11.37",null,"Apparel"]
["CHPRBS82W","319421600","Infinite V-Neck Short Sleeve Jersey; W: S-XL*","$9.89",null,"Apparel"]
["CHPRJTRKS6WPLUS","319434818","JUICE  Women's Split Short with Inner Brief; W: 2XL* (Custom Sublimation Printing Included)","$39.36",null,"Apparel"]
["CHPRJTRKS6W","319434796","JUICE  Women's Split Short with Inner Brief; W: XS-XL* (Custom Sublimation Printing Included)","$34.22",null,"Apparel"]
["CHPRJFLQ8WPLUS","319436543","JUICE 1/4 Zip Long Sleeve Pullover; W: 2-3XL*; Active Cloth (Custom Sublimation Printing Included)","$51.83",null,"Apparel"]
["CHPRJFLQ8W","319436527","JUICE 1/4 Zip Long Sleeve Pullover; W: XS-XL*; Active Cloth (Custom Sublimation Printing Included)","$45.06",null,"Apparel"]
["CHPRJFLQ8Y","31943656X","JUICE 1/4 Zip Long Sleeve Pullover; Y: S-L; Active Cloth (Custom Sublimation Printing Included)","$43.64",null,"Apparel"]
["CHPRJFLQ6A","319436462","JUICE 1/4 Zip Short Sleeve Pullover; A: S-XL (Custom Sublimation Printing Included)","$45.06",null,"Apparel"]
["CHPRJBS7APLUS","319433730","JUICE 2-Button Placket Jersey; A: 2XL-4XL*;Active Cloth; Traditional Fit (Custom Sublimation Printing Included)","$44.76",null,"Apparel"]
["CHPRJBS7A","319433722","JUICE 2-Button Placket Jersey; A: S-XL*;Active Cloth; Traditional Fit (Custom Sublimation Printing Included)","$38.93",null,"Apparel"]
["CHPRJBS7Y","319433757","JUICE 2-Button Placket Jersey; Y: S-XL; Active Cloth; Traditional Fit (Custom Sublimation Printing Included)","$37.5",null,"Apparel"]
["CHPRJAS2","319432734","JUICE Arm Sleeve; A: XS-XL; Compression (Custom Sublimation Printing Included)","$11.96",null,"Apparel"]
["CHPRJLJ4APLUS","319437469","JUICE Cap Sleeve Game Jersey; A: 2XL-3XL*; Birds Eye Mesh (Custom Sublimation Printing Included)","$50.01",null,"Apparel"]
["CHPRJLJ4A","319437450","JUICE Cap Sleeve Game Jersey; A: S-XL*; Birds Eye Mesh (Custom Sublimation Printing Included)","$43.49",null,"Apparel"]
["CHPRJLJ4Y","319437485","JUICE Cap Sleeve Game Jersey; Y: S-XL; Birds Eye Mesh (Custom Sublimation Printing Included)","$42.07",null,"Apparel"]
["CHPRJBP1APLUS","31943351X","JUICE Classic Cut Pant; A: 2XL-4XL*; Classic; Loose (Custom Sublimation Printing Included)","$62",null,"Apparel"]
["CHPRJBP1A","319433501","JUICE Classic Cut Pant; A: S-XL*; Classic; Loose (Custom Sublimation Printing Included)","$53.91",null,"Apparel"]
["CHPRJSBP1G","31943429X","JUICE Classic Cut Pant; G: S-XL; Classic (Custom Sublimation Printing Included)","$51.06",null,"Apparel"]
["CHPRJSBP1WPLUS","319434311","JUICE Classic Cut Pant; W: 2XL-3XL*; Classic (Custom Sublimation Printing Included)","$60.36",null,"Apparel"]
["CHPRJSBP1W","319434303","JUICE Classic Cut Pant; W: S-XL*; Classic (Custom Sublimation Printing Included)","$52.48",null,"Apparel"]
["CHPRJBP1Y","319433528","JUICE Classic Cut Pant; Y: XS-XL; Classic; Loose (Custom Sublimation Printing Included)","$52.48",null,"Apparel"]
["CHPRJFLH6APLUS","319435962","Juice Classic Hoodie; A: 2XL-4XL*; Fleece (Custom Sublimation Printing Included)","$63.8",null,"Apparel"]
["CHPRJFLH6A","319435946","Juice Classic Hoodie; A: S-XL*; Fleece (Custom Sublimation Printing Included)","$55.48",null,"Apparel"]
["CHPRJLFH6Y","319437264","Juice Classic Hoodie; Y: S-XL; Fleece (Custom Sublimation Printing Included)","$54.05",null,"Apparel"]
["CHPRJLJ2APLUS","319437345","JUICE Collegiate Game Jersey; A: 2XL-3XL*; Birds Eye Mesh (Custom Sublimation Printing Included)","$53.47",null,"Apparel"]
["CHPRJLJ2A","319437329","JUICE Collegiate Game Jersey; A: S-XL*; Birds Eye Mesh (Custom Sublimation Printing Included)","$46.49",null,"Apparel"]
["CHPRJLJ2Y","31943737X","JUICE Collegiate Game Jersey; Y: S-XL; Birds Eye Mesh (Custom Sublimation Printing Included)","$45.06",null,"Apparel"]
["CHPRJFJ6APLUS","319435296","JUICE Collegiate Lineman's Cut Football Jersey; A: 2XL-4XL*; Pro-Power Dazzle/Power Mesh (Custom Sublimation Printing Included)","$65.61",null,"Apparel"]
["CHPRJFJ6A","31943527X","JUICE Collegiate Lineman's Cut Football Jersey; A: S-XL*; Pro-Power Dazzle/Power Mesh (Custom Sublimation Printing Included)","$57.05",null,"Apparel"]
["CHPRJFJ6Y","319435318","JUICE Collegiate Lineman's Cut Football Jersey; Y: S-L; Pro-Power Dazzle/Power Mesh (Custom Sublimation Printing Included)","$55.62",null,"Apparel"]
["CHPRJFJ4APLUS","319435164","JUICE Collegiate Stretch Fit Football Jersey; A: 2XL-4XL*; Pro-Power Dazzle/Power Mesh (Custom Sublimation Printing Included)","$65.61",null,"Apparel"]
["CHPRJFJ4A","319435148","JUICE Collegiate Stretch Fit Football Jersey; A: S-XL*; Pro-Power Dazzle/Power Mesh (Custom Sublimation Printing Included)","$57.05",null,"Apparel"]
["CHPRJFJ4Y","319435180","JUICE Collegiate Stretch Fit Football Jersey; Y: S-XL; Pro-Power Dazzle/Power Mesh (Custom Sublimation Printing Included)","$55.62",null,"Apparel"]
["CHPRJVJ1G","319435032","JUICE Crew Neck Long Sleeve Jersey; G: S-XL; Z-Cloth/Pin Dot Mesh (Custom Sublimation Printing Included)","$32.22",null,"Apparel"]
["CHPRJVJ1TG","319435059","JUICE Crew Neck Long Sleeve Jersey; Tall; G: S-XL; Z-Cloth/Pin Dot Mesh (Custom Sublimation Printing Included)","$35.08",null,"Apparel"]
["CHPRJVJ1TWPLUS","319435091","JUICE Crew Neck Long Sleeve Jersey; Tall; W: 2-3XL*; Z-Cloth/Pin Dot Mesh (Custom Sublimation Printing Included)","$41.98",null,"Apparel"]
["CHPRJVJ1TW","319435075","JUICE Crew Neck Long Sleeve Jersey; Tall; W: XS-XL*; Z-Cloth/Pin Dot Mesh (Custom Sublimation Printing Included)","$36.5",null,"Apparel"]
["CHPRJVJ1WPLUS","31943513X","JUICE Crew Neck Long Sleeve Jersey; W: 2-3XL*; Z-Cloth/Pin Dot Mesh (Custom Sublimation Printing Included)","$38.7",null,"Apparel"]
["CHPRJVJ1W","319435113","JUICE Crew Neck Long Sleeve Jersey; W: XS-XL*; Z-Cloth/Pin Dot Mesh (Custom Sublimation Printing Included)","$33.65",null,"Apparel"]
["CHPRJVJ2G","319435156","JUICE Crew Neck Short Sleeve Jersey; G: S-XL; Z-Cloth/Pin Dot Mesh (Custom Sublimation Printing Included)","$29.37",null,"Apparel"]
["CHPRJVJ2TG","319435172","JUICE Crew Neck Short Sleeve Jersey; Tall; G: S-XL; Z-Cloth/Pin Dot Mesh (Custom Sublimation Printing Included)","$32.22",null,"Apparel"]
["CHPRJVJ2TWPLUS","319435202","JUICE Crew Neck Short Sleeve Jersey; Tall; W: 2-3XL*; Z-Cloth/Pin Dot Mesh (Custom Sublimation Printing Included)","$38.7",null,"Apparel"]
["CHPRJVJ2TW","319435199","JUICE Crew Neck Short Sleeve Jersey; Tall; W: XS-XL*; Z-Cloth/Pin Dot Mesh (Custom Sublimation Printing Included)","$33.65",null,"Apparel"]
["CHPRJVJ2WPLUS","319435245","JUICE Crew Neck Short Sleeve Jersey; W: 2-3XL*; Z-Cloth/Pin Dot Mesh (Custom Sublimation Printing Included)","$35.42",null,"Apparel"]
["CHPRJVJ2W","319435237","JUICE Crew Neck Short Sleeve Jersey; W: XS-XL*; Z-Cloth/Pin Dot Mesh (Custom Sublimation Printing Included)","$30.8",null,"Apparel"]
["CHPRJFJ7APLUS","319435342","JUICE Economy Football Jersey; A: 2XL-4XL*; Flex Dazzle (Custom Sublimation Printing Included)","$44.76",null,"Apparel"]
["CHPRJFJ7A","319435326","JUICE Economy Football Jersey; A: S-XL*; Flex Dazzle (Custom Sublimation Printing Included)","$38.93",null,"Apparel"]
["CHPRJFJ7Y","319435369","JUICE Economy Football Jersey; Y: XS-XL; Flex Dazzle (Custom Sublimation Printing Included)","$37.5",null,"Apparel"]
["CHPRJHKJ4APLUS","319437027","JUICE Elite Lace Neck Jersey; A: 2XL-3XL*; Intermediate Goalie, Goalie; Mock Mesh/Classic (Custom Sublimation Printing Included)","$75.12",null,"Apparel"]
["CHPRJHKJ4A","319437000","JUICE Elite Lace Neck Jersey; A: S-XL*; Intermediate Goalie, Goalie; Mock Mesh/Classic (Custom Sublimation Printing Included)","$65.32",null,"Apparel"]
["CHPRJHKJ4Y","319437043","JUICE Elite Lace Neck Jersey; Y: XS(Mites), S/M, L/XL, Goalie; Mock Mesh/Classic (Custom Sublimation Printing Included)","$63.9",null,"Apparel"]
["CHPRJHKJ3APLUS","319436969","JUICE Elite V-Neck Jersey; A: 2XL-3XL* Intermediate Goalie, Goalie; Mock Mesh/Classic (Custom Sublimation Printing Included)","$70.69",null,"Apparel"]
["CHPRJHKJ3A","319436942","JUICE Elite V-Neck Jersey; A: S-XL* Intermediate Goalie, Goalie; Mock Mesh/Classic (Custom Sublimation Printing Included)","$61.47",null,"Apparel"]
["CHPRJHKJ3Y","319436985","JUICE Elite V-Neck Jersey; Y: XS (Mites), S/M, L/XL, Goalie; Mock Mesh/Classic (Custom Sublimation Printing Included)","$60.04",null,"Apparel"]
["CHPRJFFJ1APLUS","319434974","JUICE Fan Football Jersey; A:2-5XL*; Zone Tricot Mesh/Matte Dazzle (Custom Sublimation Printing Included)","$37.06",null,"Apparel"]
["CHPRJFFJ1A","319434958","JUICE Fan Football Jersey; A:XS-XL*; Zone Tricot Mesh/Matte Dazzle (Custom Sublimation Printing Included)","$32.22",null,"Apparel"]
["CHPRJFFJ1Y","319435008","JUICE Fan Football Jersey; Y: S-L; Zone Tricot Mesh/Matte Dazzle (Custom Sublimation Printing Included)","$30.8",null,"Apparel"]
["CHPRJBS10APLUS","319433641","JUICE Fitted 2-Button Placket Jersey; A: 2XL-4XL*; Active Cloth; Fitted (Custom Sublimation Printing Included)","$44.76",null,"Apparel"]
["CHPRJBS10A","319433633","JUICE Fitted 2-Button Placket Jersey; A: S-XL*; Active Cloth; Fitted (Custom Sublimation Printing Included)","$38.93",null,"Apparel"]
["CHPRJBS10Y","31943365X","JUICE Fitted 2-Button Placket Jersey; Y: S-XL; Active Cloth; Fitted (Custom Sublimation Printing Included)","$37.5",null,"Apparel"]
["CHPRJFJ2APLUS","319435105","JUICE Fitted Football Jersey; A: 2XL-4XL*; Matte Dazzle/Pro-Tricot Mesh (Custom Sublimation Printing Included)","$58.72",null,"Apparel"]
["CHPRJFJ2A","319435083","JUICE Fitted Football Jersey; A: S-XL*; Matte Dazzle/Pro-Tricot Mesh (Custom Sublimation Printing Included)","$51.06",null,"Apparel"]
["CHPRJFJ2Y","319435121","JUICE Fitted Football Jersey; Y: S-XL; Matte Dazzle/Pro-Tricot Mesh (Custom Sublimation Printing Included)","$49.63",null,"Apparel"]
["CHPRJBBJ8APLUS","319432971","JUICE Fitted Prime Jersey; A: 2XL-4XL*; Active Cloth/Pin Dot Mesh (Custom Sublimation Printing Included)","$40.67",null,"Apparel"]
["CHPRJBBJ8A","319432963","JUICE Fitted Prime Jersey; A: S-XL*; Active Cloth/Pin Dot Mesh (Custom Sublimation Printing Included)","$35.36",null,"Apparel"]
["CHPRJBBJ8TAPLUS","319433005","JUICE Fitted Prime Jersey; Tall; A: 2XL-4XL*; Active Cloth/Pin Dot Mesh (Custom Sublimation Printing Included)","$43.95",null,"Apparel"]
["CHPRJBBJ8TA","319432998","JUICE Fitted Prime Jersey; Tall; A: S-XL*; Active Cloth/Pin Dot Mesh (Custom Sublimation Printing Included)","$38.22",null,"Apparel"]
["CHPRJBB8TY","319432742","JUICE Fitted Prime Jersey; Tall; Y: S-XL; Active Cloth/Pin Dot Mesh (Custom Sublimation Printing Included)","$36.79",null,"Apparel"]
["CHPRJBBJ8Y","319433064","JUICE Fitted Prime Jersey; Y: S-XL; Active Cloth/Pin Dot Mesh (Custom Sublimation Printing Included)","$33.94",null,"Apparel"]
["CHPRJBBS87Y","319433439","JUICE Fitted Prime Shirt; 7\" Inseam; Y; S-XL; Active Cloth/Pin Dot Mesh (Custom Sublimation Printing Included)","$33.94",null,"Apparel"]
["CHPRJBBS8Y","319433498","JUICE Fitted Prime Short; 7\" Inseam; Y: S-XL; Active Cloth/Pin Dot Mesh (Custom Sublimation Printing Included)","$33.94",null,"Apparel"]
["CHPRJBBS8APLUS","319433455","JUICE Fitted Prime Short; 9\" Inseam; A: 2XL-4XL* Active Cloth/Pin Dot Mesh (Custom Sublimation Printing Included)","$40.67",null,"Apparel"]
["CHPRJBBS8A","319433447","JUICE Fitted Prime Short; 9\" Inseam; A: S-XL* Active Cloth/Pin Dot Mesh (Custom Sublimation Printing Included)","$35.36",null,"Apparel"]
["CHPRJBBS87APLUS","319433420","JUICE Fitted Prime Short; 9\" Inseam; A:2XL-4XL* Active Cloth/Pin Dot Mesh (Custom Sublimation Printing Included)","$40.67",null,"Apparel"]
["CHPRJBBS87A","319433412","JUICE Fitted Prime Short; 9\" Inseam; A:S-XL* Active Cloth/Pin Dot Mesh (Custom Sublimation Printing Included)","$35.36",null,"Apparel"]
["CHPRJBBJ5APLUS","319432882","JUICE Fitted Reversible Double Ply Jersey; A: 2XL-4XL*; Z-Cloth (Custom Sublimation Printing Included)","$42.31",null,"Apparel"]
["CHPRJBBJ5A","319432874","JUICE Fitted Reversible Double Ply Jersey; A: S-XL*; Z-Cloth (Custom Sublimation Printing Included)","$36.79",null,"Apparel"]
["CHPRJBBJ5Y","319432890","JUICE Fitted Reversible Double Ply Jersey; Y: S-XL; Z-Cloth (Custom Sublimation Printing Included)","$35.36",null,"Apparel"]
["CHPRJBBJ1Y","319432807","JUICE Fitted Single Ply T-Shirt  Jersey; Y: S-XL; Z-Cloth (Custom Sublimation Printing Included)","$22.81",null,"Apparel"]
["CHPRJBBJ1APLUS","319432769","JUICE Fitted Single Ply T-Shirt Jersey; A: 2XL-4XL*; Z-Cloth (Custom Sublimation Printing Included)","$26.23",null,"Apparel"]
["CHPRJBBJ1A","319432750","JUICE Fitted Single Ply T-ShirtJersey; A: S-XL*; Z-Cloth (Custom Sublimation Printing Included)","$22.81",null,"Apparel"]
["CHPRJFP1Y","319436624","JUICE Football Game Pant; Y: S-XL,H; Flex Dazzle (Custom Sublimation Printing Included)","$39.07",null,"Apparel"]
["CHPRJBS6APLUS","319433706","JUICE Full Button Jersey; A: 2XL-4XL*;Active Cloth; Traditional Fit (Custom Sublimation Printing Included)","$53.47",null,"Apparel"]
["CHPRJBS6A","319433692","JUICE Full Button Jersey; A: S-XL*;Active Cloth; Traditional Fit (Custom Sublimation Printing Included)","$46.49",null,"Apparel"]
["CHPRJBS6Y","319433714","JUICE Full Button Jersey; Y: S-XL; Active Cloth; Traditional Fit (Custom Sublimation Printing Included)","$45.06",null,"Apparel"]
["CHPRJBS8APLUS","319433811","JUICE Full Button Vest; A: 2XL-4XL*; Active Cloth; Traditional Fit (Custom Sublimation Printing Included)","$51.83",null,"Apparel"]
["CHPRJBS8A","319433781","JUICE Full Button Vest; A: S-XL*; Active Cloth; Traditional Fit (Custom Sublimation Printing Included)","$45.06",null,"Apparel"]
["CHPRJBS8Y","319433838","JUICE Full Button Vest; Y: S-XL; Active Cloth; Traditional Fit (Custom Sublimation Printing Included)","$43.64",null,"Apparel"]
["CHPRJFZJ2APLUS","319436667","JUICE Full Zip Jacket; A: 2XL-4XL*; Fleece (Custom Sublimation Printing Included)","$70.53",null,"Apparel"]
["CHPRJFZJ2A","319436640","JUICE Full Zip Jacket; A: S-XL*; Fleece (Custom Sublimation Printing Included)","$61.33",null,"Apparel"]
["CHPRJFZJ4WPLUS","319436721","JUICE Full Zip Jacket; W: 2-3XL*; Fleece (Custom Sublimation Printing Included)","$70.53",null,"Apparel"]
["CHPRJFZJ4W","319436705","JUICE Full Zip Jacket; W: XS-XL*; Fleece (Custom Sublimation Printing Included)","$61.33",null,"Apparel"]
["CHPRJFZJ2Y","319436683","JUICE Full Zip Jacket; Y: S-XL; Fleece (Custom Sublimation Printing Included)","$59.9",null,"Apparel"]
["CHPRJBST1G","319434524","JUICE Girl's Cap Sleeve V-Neck T-Shirt  Jersey ; Y: S-XL; Z-Cloth (Custom Sublimation Printing Included)","$22.09",null,"Apparel"]
["CHPRJVS1G","319435261","JUICE Girl's Compression Short; 2.5\" Inseam; G: S-XL; Compression (Custom Sublimation Printing Included)","$24.8",null,"Apparel"]
["CHPRJVS2G","319435334","JUICE Girl's Compression Short; 4\" Inseaml G: S-XL; Compression (Custom Sublimation Printing Included)","$24.8",null,"Apparel"]
["CHPRJSBJ5G","31943415X","JUICE Girl's Faux Full Button Cap Sleeve Jersey; Y: S-L; Active Cloth; Fitted (Custom Sublimation Printing Included)","$43.64",null,"Apparel"]
["CHPRJSBJ9G","319434265","JUICE Girl's Faux Full-Button Short Sleeve Jersey; G: S-XL; Active Cloth; Fitted (Custom Sublimation Printing Included)","$43.64",null,"Apparel"]
["CHPRJSBJ4G","319434095","JUICE Girl's Full-Button Cap Sleeve Jersey; Y: S-L; Active Cloth; Fitted (Custom Sublimation Printing Included)","$43.64",null,"Apparel"]
["CHPRJSBJ8G","319434206","JUICE Girl's Full-Button Short Sleeve Jersey; G: S-XL; Active Cloth; Fitted (Custom Sublimation Printing Included)","$43.64",null,"Apparel"]
["CHPRJSBJ12Y","319438171","JUICE Girl's Full-Button Sleeveless Vest; G: S-XL; Active Cloth; Fitted (Custom Sublimation Printing Included)","$40.64",null,"Apparel"]
["CHPRJFLH4PG","319435687","JUICE Girl's Long Sleeve T-Shirt Hoodie w/Pocket; G: S-XL; Active Cloth (Custom Sublimation Printing Included)","$43.35",null,"Apparel"]
["CHPRJFLH4G","319435628","JUICE Girl's Long Sleeve T-Shirt Hoodie; G: S-XL; Active Cloth (Custom Sublimation Printing Included)","$39.07",null,"Apparel"]
["CHPRJBST1LSTG","319434567","JUICE Girl's Long Sleeve V-Neck Jersey; Tall; Y: G-XL; Z-Cloth (Custom Sublimation Printing Included)","$30.65",null,"Apparel"]
["CHPRJSBJ2LSG","319433846","JUICE Girl's Long Sleeve V-Neck Shooter Shirt; G: S-Xl; Z-Cloth (Custom Sublimation Printing Included)","$30.8",null,"Apparel"]
["CHPRJBST1LSG","319434540","JUICE Girl's Long Sleeve V-Neck T-Shirt  Jersey; Y: G-XL; Z-Cloth (Custom Sublimation Printing Included)","$27.8",null,"Apparel"]
["CHPRJBBJ3G","319432831","JUICE Girl's Reversible Double Ply Jersey; Y: S-XL; Z-Cloth (Custom Sublimation Printing Included)","$35.36",null,"Apparel"]
["CHPRJBBS3G","319433242","JUICE Girl's Reversible Double Ply Short; 8\" Inseam; Y: S-XL; Z-Cloth (Custom Sublimation Printing Included)","$35.36",null,"Apparel"]
["CHPRJBST8G","319434753","JUICE Girl's Short Sleeve Crew Neck Jersey; Y: S-XL; Z-Cloth (Custom Sublimation Printing Included)","$22.81",null,"Apparel"]
["CHPRJFLH7PG","31943608X","JUICE Girl's Short Slleve T-Shirt Hoodie w/Pocket; G: S-XL; Active Cloth (Custom Sublimation Printing Included)","$42.5",null,"Apparel"]
["CHPRJBBJ6G","319432920","JUICE Girl's Single Ply Reversible Jersey; Y: S-XL; Fusion Mesh (Custom Sublimation Printing Included)","$35.36",null,"Apparel"]
["CHPRJBBS6G","319433358","JUICE Girl's Single Ply Reversible Short; 8\" Inseam; Y: S-XL; Fusion Mesh (Custom Sublimation Printing Included)","$35.36",null,"Apparel"]
["CHPRJSBJ2G","31943382X","JUICE Girl's V-Neck Short Sleeve Jersey; G: S-XL; Z-Cloth (Custom Sublimation Printing Included)","$29.37",null,"Apparel"]
["CHPRJSBJ2TG","319433889","JUICE Girl's V-Neck Short Sleeve Jersey; Tall; G: S-XL; Z-Cloth (Custom Sublimation Printing Included)","$32.22",null,"Apparel"]
["CHPRJSBJ2TY","319433935","JUICE Girl's V-Neck Short Sleeve Jersey; Tall; Y: S-XL; Z-Cloth (Custom Sublimation Printing Included)","$32.22",null,"Apparel"]
["CHPRJSBJ2Y","319433986","JUICE Girl's V-Neck Short Sleeve Jersey; Y: S-XL; Z-Cloth (Custom Sublimation Printing Included)","$30.8",null,"Apparel"]
["CHPRJSBJ22G","319438244","JUICE Girl's V-Neck Short Sleeve Jersey; Y: S-XL; Z-Cloth; Fitted (Custom Sublimation Printing Included)","$30.8",null,"Apparel"]
["CHPRJHKJ1PLUS","319436888","JUICE Hockey Jersey; A: 2XL-3XL*; Intermediate Goalie; Goalie; Fusion Mesh (Custom Sublimation Printing Included)","$62",null,"Apparel"]
["CHPRJHKJ1","319436780","JUICE Hockey Jersey; A: S-XL*; Intermediate Goalie; Goalie; Fusion Mesh (Custom Sublimation Printing Included)","$53.91",null,"Apparel"]
["CHPRJHKB2A","319436748","JUICE Hockey Shell; A: S-XL; Rigid Warp (Custom Sublimation Printing Included)","$40.5",null,"Apparel"]
["CHPRJHKB2Y","319436764","JUICE Hockey Shell; Y: S-XL; Rigid Warp (Custom Sublimation Printing Included)","$39.07",null,"Apparel"]
["CHPRJHKS1A","319437051","JUICE Hockey Socks; A: S/M (28\" Length), L/XL (30\" Length); Fusion Mesh (Custom Sublimation Printing Included)","$26.23",null,"Apparel"]
["CHPRJHKS1Y","319437086","JUICE Hockey Socks; Y:XS (19\" Length),S/M (22\" Length), L/XL (25\" Length); Fusion Mesh (Custom Sublimation Printing Included)","$24.8",null,"Apparel"]
["CHPRJFLJ8APLUS","319436381","JUICE Jogger; A: 2XL-4XL*; Fleece (Custom Sublimation Printing Included)","$55.76",null,"Apparel"]
["CHPRJFLJ8A","319436365","JUICE Jogger; A: S-XL*; Fleece (Custom Sublimation Printing Included)","$48.49",null,"Apparel"]
["CHPRJFLJ8WPLUS","31943642X","JUICE Jogger; W: 2-3XL*; Fleece (Custom Sublimation Printing Included)","$55.76",null,"Apparel"]
["CHPRJFLJ8W","319436403","JUICE Jogger; W: XS-XL*; Fleece (Custom Sublimation Printing Included)","$48.49",null,"Apparel"]
["CHPRJFLJ8Y","319436446","JUICE Jogger; Y: S-XL; Fleece (Custom Sublimation Printing Included)","$47.06",null,"Apparel"]
["CHPRJHKJ1KPLUS","319436810","JUICE Keyhole Neck Hockey Jersey; A: 2XL-3XL*; Intermediate Goalie; Goalie; Fusion Mesh (Custom Sublimation Printing Included)","$63.8",null,"Apparel"]
["CHPRJHKJ1K","319436799","JUICE Keyhole Neck Hockey Jersey; A: S-XL*; Intermediate Goalie; Goalie; Fusion Mesh (Custom Sublimation Printing Included)","$55.48",null,"Apparel"]
["CHPRJBP3APLUS","319433579","JUICE Knicker Pant; A: 2XL-4XL*; Classic; Loose (Custom Sublimation Printing Included)","$60.36",null,"Apparel"]
["CHPRJBP3A","319433560","JUICE Knicker Pant; A: S-XL*; Classic; Loose (Custom Sublimation Printing Included)","$52.48",null,"Apparel"]
["CHPRJSBP2G","31943432X","JUICE Knicker Pant; G: S-XL; Classic (Custom Sublimation Printing Included)","$49.63",null,"Apparel"]
["CHPRJSBP2WPLUS","319434346","JUICE Knicker Pant; W: 2XL-3XL*; Classic (Custom Sublimation Printing Included)","$58.72",null,"Apparel"]
["CHPRJSBP2W","319434338","JUICE Knicker Pant; W: S-XL*; Classic (Custom Sublimation Printing Included)","$51.06",null,"Apparel"]
["CHPRJBP3Y","319433587","JUICE Knicker Pant; Y: XS-XL; Classic; Loose (Custom Sublimation Printing Included)","$51.06",null,"Apparel"]
["CHPRJHKJ1LPLUS","319436861","JUICE Lace Neck Hockey Jersey; A: 2XL-3XL*; Intermediate Goalie; Goalie; Fusion Mesh (Custom Sublimation Printing Included)","$65.61",null,"Apparel"]
["CHPRJHKJ1L","319436837","JUICE Lace Neck Hockey Jersey; A: S-XL*; Intermediate Goalie; Goalie; Fusion Mesh (Custom Sublimation Printing Included)","$57.05",null,"Apparel"]
["CHPRJLK1WPLUS","319437604","JUICE Lacrosse Kilt; W: 2-3XL*; Active Cloth (Custom Sublimation Printing Included)","$35.42",null,"Apparel"]
["CHPRJLK1W","319437582","JUICE Lacrosse Kilt; W: XS-XL*; Active Cloth (Custom Sublimation Printing Included)","$30.8",null,"Apparel"]
["CHPRJBST8LSAPLUS","31943480X","JUICE Long Sleeve Crew Neck Jerseys; A: 2XL-4XL*; Z-Cloth (Custom Sublimation Printing Included)","$33.61",null,"Apparel"]
["CHPRJBST8LSA","31943477X","JUICE Long Sleeve Crew Neck Jerseys; A: S-XL*; Z-Cloth (Custom Sublimation Printing Included)","$29.23",null,"Apparel"]
["CHPRJBST8LSY","319434826","JUICE Long Sleeve Crew Neck Jerseys; Y: S-XL; Z-Cloth (Custom Sublimation Printing Included)","$27.8",null,"Apparel"]
["CHPRJBST16A","319434214","JUICE Long Sleeve Shooter Shirt; A: S-XL*;  Z-Cloth (Custom Sublimation Printing Included)","$32.22",null,"Apparel"]
["CHPRJBST16Y","319434222","JUICE Long Sleeve Shooter Shirt; Y: S-XL; Z-Cloth (Custom Sublimation Printing Included)","$30.8",null,"Apparel"]
["CHPRJFLH4PAPLUS","319435660","JUICE Long Sleeve T-Shirt Hoodie w/Pocket; A: 2XL-4XL*; Active Cloth (Custom Sublimation Printing Included)","$51.5",null,"Apparel"]
["CHPRJFLH4PA","319435644","JUICE Long Sleeve T-Shirt Hoodie w/Pocket; A: S-XL*; Active Cloth (Custom Sublimation Printing Included)","$44.78",null,"Apparel"]
["CHPRJFLH4PY","319435741","JUICE Long Sleeve T-Shirt Hoodie w/Pocket; Y: S-XL; Active Cloth (Custom Sublimation Printing Included)","$43.35",null,"Apparel"]
["CHPRJFLH4APLUS","319435601","JUICE Long Sleeve T-Shirt Hoodie; A; 2XL-4XL*; Active Cloth (Custom Sublimation Printing Included)","$46.58",null,"Apparel"]
["CHPRJFLH4A","31943558X","JUICE Long Sleeve T-Shirt Hoodie; A; S-XL*; Active Cloth (Custom Sublimation Printing Included)","$40.5",null,"Apparel"]
["CHPRJFLH4Y","319435806","JUICE Long Sleeve T-Shirt Hoodie; Y: S-XL; Active Cloth (Custom Sublimation Printing Included)","$39.07",null,"Apparel"]
["CHPRJLS1APLUS","31943768X","JUICE Low Rise Shorts; A: 2XL-3XL*; Active Cloth (Custom Sublimation Printing Included)","$36.23",null,"Apparel"]
["CHPRJLS1A","319437663","JUICE Low Rise Shorts; A: S-XL*; Active Cloth (Custom Sublimation Printing Included)","$31.51",null,"Apparel"]
["CHPRJLS1Y","319437701","JUICE Low Rise Shorts; Y: S-XL; Birds Eye Mesh (Custom Sublimation Printing Included)","$30.08",null,"Apparel"]
["CHPRJFLQ8APLUS","319436500","JUICE Men's 1/4 Zip Long Sleeve Pullover; A: 2XL-4XL*; Active Cloth (Custom Sublimation Printing Included)","$51.83",null,"Apparel"]
["CHPRJFLQ8A","319436489","JUICE Men's 1/4 Zip Long Sleeve Pullover; A: S-XL*; Active Cloth (Custom Sublimation Printing Included)","$45.06",null,"Apparel"]
["CHPRJTRKS4APLUS","319434680","JUICE Men's Compression Shorts; A: 2-3XL* (Custom Sublimation Printing Included)","$33.61",null,"Apparel"]
["CHPRJTRKS4A","319434664","JUICE Men's Compression Shorts; A: XS-XL* (Custom Sublimation Printing Included)","$29.23",null,"Apparel"]
["CHPRJTRKJ2APLUS","319434478","JUICE Men's Fitted Track Singlet; A: 2XL-3XL*; Power Stretch (Custom Sublimation Printing Included)","$31.15",null,"Apparel"]
["CHPRJTRKJ2A","319434451","JUICE Men's Fitted Track Singlet; A: S-XL*; Power Stretch (Custom Sublimation Printing Included)","$27.09",null,"Apparel"]
["CHPRJPL3APLUS","319438112","JUICE Men's Polo Shirt; A: 2XL-4XL*; Active Cloth (Custom Sublimation Printing Included)","$47.39",null,"Apparel"]
["CHPRJPL3A","319438104","JUICE Men's Polo Shirt; A: S-XL*; Active Cloth (Custom Sublimation Printing Included)","$41.21",null,"Apparel"]
["CHPRJTRKS6APLUS","319434788","JUICE Men's Split Short with Inner Brief; A: 2XL-3XL* (Custom Sublimation Printing Included)","$39.36",null,"Apparel"]
["CHPRJTRKS6A","319434761","JUICE Men's Split Short with Inner Brief; A: S-XL* (Custom Sublimation Printing Included)","$34.22",null,"Apparel"]
["CHPRJTRKS1APLUS","319434559","JUICE Men's Track Short; A: 2-3XL*; Z-Cloth (Custom Sublimation Printing Included)","$29.34",null,"Apparel"]
["CHPRJTRKS1A","319434532","JUICE Men's Track Short; A: XS-XL*; Z-Cloth (Custom Sublimation Printing Included)","$25.52",null,"Apparel"]
["CHPRJTRKJ1APLUS","319434397","JUICE Men's Track Singlet; A: 2XL-4XL*; Z-Cloth (Custom Sublimation Printing Included)","$29.34",null,"Apparel"]
["CHPRJTRKJ1A","319434389","JUICE Men's Track Singlet; A: S-XL*; Z-Cloth (Custom Sublimation Printing Included)","$25.52",null,"Apparel"]
["CHPRJSBJ1WPLUS","319438201","JUICE Modified V-Neck Racerback Jersey; A: 2XL-3XL*; Z-Cloth (Custom Sublimation Printing Included)","$37.06",null,"Apparel"]
["CHPRJSBJ1W","319438198","JUICE Modified V-Neck Racerback Jersey; A: S-XL*; Z-Cloth (Custom Sublimation Printing Included)","$32.22",null,"Apparel"]
["CHPRJSBJ1G","31943818X","JUICE Modified V-Neck Racerback Jersey; Y: S-L; Z-Cloth (Custom Sublimation Printing Included)","$30.8",null,"Apparel"]
["CHPRJMSS9PAPLUS","31943804X","JUICE Multi Sport Shirt; 9\" Inseam; W/Pocket; A: 2XL-4XL*; Z-Cloth (Custom Sublimation Printing Included)","$36.89",null,"Apparel"]
["CHPRJMSS9PA","319438031","JUICE Multi Sport Shirt; 9\" Inseam; W/Pocket; A: S-XL*; Z-Cloth (Custom Sublimation Printing Included)","$32.08",null,"Apparel"]
["CHPRJMSS5PG","31943785X","JUICE Multi Sport Shirt; G: S-XL; Z-Cloth; W/Pockets (Custom Sublimation Printing Included)","$30.65",null,"Apparel"]
["CHPRJMSS7APLUS","319437930","Juice Multi Sport Short w/7\" Inseam; A: 2XL-4XL*; Z-Cloth (Custom Sublimation Printing Included)","$33.61",null,"Apparel"]
["CHPRJMSS7A","319437922","Juice Multi Sport Short w/7\" Inseam; A: S-XL*; Z-Cloth (Custom Sublimation Printing Included)","$29.23",null,"Apparel"]
["CHPRJMSS9APLUS","319438023","Juice Multi Sport Short w/9\" Inseam; A: 2XL-4XL*; Z-Cloth (Custom Sublimation Printing Included)","$33.61",null,"Apparel"]
["CHPRJMSS9A","319438015","Juice Multi Sport Short w/9\" Inseam; A: S-XL*; Z-Cloth (Custom Sublimation Printing Included)","$29.23",null,"Apparel"]
["CHPRJMSS5PAPLUS","319437841","JUICE Multi Sport Short; 5\" Inseam; A: 2XL-4XL*; Z-Cloth (Custom Sublimation Printing Included)","$36.89",null,"Apparel"]
["CHPRJMSS5APLUS","319437817","JUICE Multi Sport Short; 5\" Inseam; A: 2XL-4XL*; Z-Cloth (Custom Sublimation Printing Included)","$33.61",null,"Apparel"]
["CHPRJMSS5Y","319437914","JUICE Multi Sport Short; 5\" Inseam; A: S-4XL*; Z-Cloth (Custom Sublimation Printing Included)","$27.8",null,"Apparel"]
["CHPRJMSS5PA","319437833","JUICE Multi Sport Short; 5\" Inseam; A: S-XL*; Z-Cloth (Custom Sublimation Printing Included)","$32.08",null,"Apparel"]
["CHPRJMSS5A","319437809","JUICE Multi Sport Short; 5\" Inseam; A: S-XL*; Z-Cloth (Custom Sublimation Printing Included)","$29.23",null,"Apparel"]
["CHPRJMSS5PY","319437884","JUICE Multi Sport Short; 5\" Inseam; Y: XS-XL; Z-Cloth (Custom Sublimation Printing Included)","$30.65",null,"Apparel"]
["CHPRJMSS7WPLUS","31943799X","JUICE Multi Sport Short; 7\" Inseam; A: 2XL-3XL*; Z-Cloth (Custom Sublimation Printing Included)","$33.61",null,"Apparel"]
["CHPRJMSS7PAPLUS","319437965","JUICE Multi Sport Short; 7\" Inseam; A: 2XL-4XL*; Z-Cloth (Custom Sublimation Printing Included)","$36.89",null,"Apparel"]
["CHPRJMSS7PA","319437957","JUICE Multi Sport Short; 7\" Inseam; A: S-XL*; Z-Cloth (Custom Sublimation Printing Included)","$32.08",null,"Apparel"]
["CHPRJMSS7G","319437949","JUICE Multi Sport Short; 7\" Inseam; G: XS-XL; Z-Cloth (Custom Sublimation Printing Included)","$27.8",null,"Apparel"]
["CHPRJMSS7PY","319437973","JUICE Multi Sport Short; 7\" Inseam; Y: XS-XL; Z-Cloth (Custom Sublimation Printing Included)","$30.65",null,"Apparel"]
["CHPRJMSS5PWPLUS","319437876","JUICE Multi Sport Short; W: 2-3XL*; Z-Cloth; W/Pockets (Custom Sublimation Printing Included)","$36.89",null,"Apparel"]
["CHPRJMSS5PW","319437868","JUICE Multi Sport Short; W: XS-XL*; Z-Cloth; W/Pockets (Custom Sublimation Printing Included)","$32.08",null,"Apparel"]
["CHPRJMSS4G","319437779","Juice Multi-Sport Short w/4\" Inseam; G: S-XL; Z-Cloth; Loose (Custom Sublimation Printing Included)","$27.8",null,"Apparel"]
["CHPRJMSS4WPLUS","319437795","Juice Multi-Sport Short w/4\" Inseam; W: 2-3XL; Z-Cloth; Loose Fit (Custom Sublimation Printing Included)","$33.61",null,"Apparel"]
["CHPRJMSS4W","319437787","Juice Multi-Sport Short w/4\" Inseam; W: XS-XL; Z-Cloth; Loose Fit (Custom Sublimation Printing Included)","$29.23",null,"Apparel"]
["CHPRJMSS5G","319437825","Juice Multi-Sport Short w/5\" Inseam; G: S-XL; Z-Cloth; Loose (Custom Sublimation Printing Included)","$27.8",null,"Apparel"]
["CHPRJMSS5WPLUS","319437906","Juice Multi-Sport Short w/5\" Inseam; W: 2-3XL*; Z-Cloth; Loose Fit (Custom Sublimation Printing Included)","$33.61",null,"Apparel"]
["CHPRJMSS5W","319437892","Juice Multi-Sport Short w/5\" Inseam; W: XS-XL*; Z-Cloth; Loose Fit (Custom Sublimation Printing Included)","$29.23",null,"Apparel"]
["CHPRJMSS7W","319437981","Juice Multi-Sport Short w/7\" Inseam; W: XS-XL*; Z-Cloth; Loose Fit (Custom Sublimation Printing Included)","$29.23",null,"Apparel"]
["CHPRJMSS7Y","319438007","Juice Multi-Sport Short w/7\" Inseam; Y: XS-XL; Z-Cloth; Loose (Custom Sublimation Printing Included)","$27.8",null,"Apparel"]
["CHPRJBP4APLUS","319433609","JUICE Open Bottom Pant w/Perfect Inseam; A: 2XL-4XL*; Classic (Custom Sublimation Printing Included)","$70.69",null,"Apparel"]
["CHPRJBP4A","319433595","JUICE Open Bottom Pant w/Perfect Inseam; A: S-XL*; Classic (Custom Sublimation Printing Included)","$61.47",null,"Apparel"]
["CHPRJBP4Y","319433617","JUICE Open Bottom Pant w/Perfect Inseam; Y: XS-XL*; Classic (Custom Sublimation Printing Included)","$60.04",null,"Apparel"]
["CHPRJBP2APLUS","319433544","JUICE Open Bottom Pant; A: 2XL-4XL*; Classic; Loose (Custom Sublimation Printing Included)","$63.8",null,"Apparel"]
["CHPRJBP2A","319433536","JUICE Open Bottom Pant; A: S-XL*; Classic; Loose (Custom Sublimation Printing Included)","$55.48",null,"Apparel"]
["CHPRJBP2Y","319433552","JUICE Open Bottom Pant; Y: XS-XL; Classic; Loose (Custom Sublimation Printing Included)","$54.05",null,"Apparel"]
["CHPRJBBJ8G","31943298X","JUICE Prime Jersey; G: S-L; Active Cloth/Pin Dot Mesh (Custom Sublimation Printing Included)","$33.94",null,"Apparel"]
["CHPRJBBJ8TY","31943303X","JUICE Prime Jersey; Tall; G: S-L; Active Cloth/Pin Dot Mesh (Custom Sublimation Printing Included)","$36.79",null,"Apparel"]
["CHPRJBBJ8TWPLUS","319433021","JUICE Prime Jersey; Tall; W: 2-3XL*; Active Cloth/Pin Dot Mesh (Custom Sublimation Printing Included)","$43.95",null,"Apparel"]
["CHPRJBBJ8TW","319433013","JUICE Prime Jersey; Tall; W: XS-XL*; Active Cloth/Pin Dot Mesh (Custom Sublimation Printing Included)","$38.22",null,"Apparel"]
["CHPRJBBJ8WPLUS","319433056","JUICE Prime Jersey; W: 2-3XL*; Active Cloth/Pin Dot Mesh (Custom Sublimation Printing Included)","$40.67",null,"Apparel"]
["CHPRJBBJ8W","319433048","JUICE Prime Jersey; W: XS-XL*; Active Cloth/Pin Dot Mesh (Custom Sublimation Printing Included)","$35.36",null,"Apparel"]
["CHPRJBBS86G","319433382","JUICE Prime Short; 6\" Inseam; G: S-L; Active Cloth/Pin Dot Mesh (Custom Sublimation Printing Included)","$33.94",null,"Apparel"]
["CHPRJBBS86WPLUS","319433404","JUICE Prime Short; 6\" Inseam; W: 2-3XL*; Active Cloth/Pin Dot Mesh (Custom Sublimation Printing Included)","$40.67",null,"Apparel"]
["CHPRJBBS86W","319433390","JUICE Prime Short; 6\" Inseam; W: XS-XL*; Active Cloth/Pin Dot Mesh (Custom Sublimation Printing Included)","$35.36",null,"Apparel"]
["CHPRJBBS8G","319433463","JUICE Prime Short; 8\" Inseam; G: S-L; Active Cloth/Pin Dot Mesh (Custom Sublimation Printing Included)","$33.94",null,"Apparel"]
["CHPRJBBS8WPLUS","31943348X","JUICE Prime Short; 8\" Inseam; W: 2-3XL*; Active Cloth/Pin Dot Mesh (Custom Sublimation Printing Included)","$40.67",null,"Apparel"]
["CHPRJBBS8W","319433471","JUICE Prime Short; 8\" Inseam; W: XS-XL*; Active Cloth/Pin Dot Mesh (Custom Sublimation Printing Included)","$35.36",null,"Apparel"]
["CHPRJFLH10APLUS","319435504","JUICE Raglan Classic Hoodie; A: 2XL-4XL*; Fleece (Custom Sublimation Printing Included)","$63.8",null,"Apparel"]
["CHPRJFLH10A","319435482","JUICE Raglan Classic Hoodie; A: S-XL*; Fleece (Custom Sublimation Printing Included)","$55.48",null,"Apparel"]
["CHPRJFLH10WPLUS","319435547","JUICE Raglan Classic Hoodie; W: 2-3XL*; Fleece (Custom Sublimation Printing Included)","$63.8",null,"Apparel"]
["CHPRJFLH10W","319435520","JUICE Raglan Classic Hoodie; W: XS-XL; Fleece (Custom Sublimation Printing Included)","$55.48",null,"Apparel"]
["CHPRJFLH10Y","319435563","JUICE Raglan Classic Hoodie; Y: S-XL; Fleece (Custom Sublimation Printing Included)","$54.05",null,"Apparel"]
["CHPRJFLC2APLUS","319435407","JUICE Raglan Crew; A: 2XL-4XL*; Fleece (Custom Sublimation Printing Included)","$60.51",null,"Apparel"]
["CHPRJFLC2A","319435385","JUICE Raglan Crew; A: S-XL*; Fleece (Custom Sublimation Printing Included)","$52.62",null,"Apparel"]
["CHPRJFLC2WPLUS","31943544X","JUICE Raglan Crew; W: 2-3XL*; Fleece (Custom Sublimation Printing Included)","$60.51",null,"Apparel"]
["CHPRJFLC2W","319435423","JUICE Raglan Crew; W: XS-XL*; Fleece (Custom Sublimation Printing Included)","$52.62",null,"Apparel"]
["CHPRJFLC2Y","319435466","JUICE Raglan Crew; Y: S-XL; Fleece (Custom Sublimation Printing Included)","$51.2",null,"Apparel"]
["CHPRJBBJ3APLUS","319432823","JUICE Reversible Double Ply Jersey; A: 2XL-4XL*; Z-Cloth (Custom Sublimation Printing Included)","$42.31",null,"Apparel"]
["CHPRJBBJ3A","319432815","JUICE Reversible Double Ply Jersey; A: S-XL*; Z-Cloth (Custom Sublimation Printing Included)","$36.79",null,"Apparel"]
["CHPRJBBJ3Y","319432866","JUICE Reversible Double Ply Jersey; Y: XS-XL; Z-Cloth (Custom Sublimation Printing Included)","$35.36",null,"Apparel"]
["CHPRJBBS3Y","319433277","JUICE Reversible Double Ply Short; 7\" Inseam; Y: S-XL; Z-Cloth (Custom Sublimation Printing Included)","$35.36",null,"Apparel"]
["CHPRJBBS37Y","319433218","JUICE Reversible Double Ply Short; 7\" Inseam; Y: S-XL; Z-Cloth (Custom Sublimation Printing Included)","$35.36",null,"Apparel"]
["CHPRJBBS3APLUS","319433234","JUICE Reversible Double Ply Short; 9\" Inseam; A: 2XL-4XL*; Z-Cloth (Custom Sublimation Printing Included)","$42.31",null,"Apparel"]
["CHPRJBBS37APLUS","31943320X","JUICE Reversible Double Ply Short; 9\" Inseam; A: 2XL-4XL*; Z-Cloth (Custom Sublimation Printing Included)","$42.31",null,"Apparel"]
["CHPRJBBS37A","319433196","JUICE Reversible Double Ply Short; 9\" Inseam; A: S-XL*; Z-Cloth (Custom Sublimation Printing Included)","$36.79",null,"Apparel"]
["CHPRJBBS3A","319433226","JUICE Reversible Double Ply Short; 9\" Inseam; A: S-XL*; Z-Cloth (Custom Sublimation Printing Included)","$36.79",null,"Apparel"]
["CHPRJSBJ24G","319438279","JUICE Short Sleeve Crew Neck Jersey; G: S-XL; Z-Cloth; Fitted (Custom Sublimation Printing Included)","$30.8",null,"Apparel"]
["CHPRJBST8APLUS","319434737","JUICE Short Sleeve Crew Neck T-Shirt Jersey; A: 2XL-6XL*; Z-Cloth; Traditional Fit (Custom Sublimation Printing Included)","$26.23",null,"Apparel"]
["CHPRJBST8A","319434710","JUICE Short Sleeve Crew Neck T-Shirt Jersey; A: S-XL*; Z-Cloth; Traditional Fit (Custom Sublimation Printing Included)","$22.81",null,"Apparel"]
["CHPRJBST8Y","319434931","JUICE Short Sleeve Crew Neck T-Shirt Jersey; Y: XS-XL; Z-Cloth; Traditional Fit (Custom Sublimation Printing Included)","$22.81",null,"Apparel"]
["CHPRJBST12A","319434168","JUICE Short Sleeve Raglan W/Soccer Neck; A: S-XL; Z-Cloth (Custom Sublimation Printing Included)","$30.8",null,"Apparel"]
["CHPRJBST12Y","319434184","JUICE Short Sleeve Raglan w/Soccer Neck; Y: XS-XL; Z-Cloth (Custom Sublimation Printing Included)","$29.37",null,"Apparel"]
["CHPRJFLH7PAPLUS","319436063","JUICE Short Sleeve T-Shirt Hoodie w/Pocket; A: 2XL-4XL*; Active Cloth (Custom Sublimation Printing Included)","$50.51",null,"Apparel"]
["CHPRJFLH7PA","319436047","JUICE Short Sleeve T-Shirt Hoodie w/Pocket; A: S-XL*; Active Cloth (Custom Sublimation Printing Included)","$43.92",null,"Apparel"]
["CHPRJFLH7PY","319436144","JUICE Short Sleeve T-Shirt Hoodie w/Pocket; Y: S-XL; Active Cloth (Custom Sublimation Printing Included)","$42.5",null,"Apparel"]
["CHPRJFLH7APLUS","319436004","JUICE Short Sleeve T-Shirt Hoodie; A: 2XL-4XL*;  Active Cloth (Custom Sublimation Printing Included)","$45.59",null,"Apparel"]
["CHPRJFLH7A","319435989","JUICE Short Sleeve T-Shirt Hoodie; A: S-XL*;  Active Cloth (Custom Sublimation Printing Included)","$39.64",null,"Apparel"]
["CHPRJFLH7Y","319436306","JUICE Short Sleeve T-Shirt Hoodie; Y: S-XL; Active Cloth (Custom Sublimation Printing Included)","$38.22",null,"Apparel"]
["CHPRJBS4APLUS","319433676","JUICE Short Sleeve V-Neck Jersey; A: 2XL-4XL*; Active Cloth; Traditional Fit (Custom Sublimation Printing Included)","$44.76",null,"Apparel"]
["CHPRJBS4A","319433668","JUICE Short Sleeve V-Neck Jersey; A: S-XL*; Active Cloth; Traditional Fit (Custom Sublimation Printing Included)","$38.93",null,"Apparel"]
["CHPRJBS4Y","319433684","JUICE Short Sleeve V-Neck Jersey; Y: S-XL; Active Cloth; Traditional Fit (Custom Sublimation Printing Included)","$37.5",null,"Apparel"]
["CHPRJMSV1Y","319438074","JUICE Short Sleeve V-Neck Jersey; Y: S-XL; Z-Cloth (Custom Sublimation Printing Included)","$22.81",null,"Apparel"]
["CHPRJMSV1APLUS","319438066","JUICE Short Sleeve V-Neck T-Shirt Jersey; A: 2XL-3XL*; Z-Cloth (Custom Sublimation Printing Included)","$26.23",null,"Apparel"]
["CHPRJMSV1A","319438058","JUICE Short Sleeve V-NeckT-Shirt  Jersey; A: S-XL*; Z-Cloth (Custom Sublimation Printing Included)","$22.81",null,"Apparel"]
["CHPRJBBJ1G","319432777","JUICE Single Ply Non-Reversible Jersey; G: S-XL; Z-Cloth (Custom Sublimation Printing Included)","$22.81",null,"Apparel"]
["CHPRJBBJ1WPLUS","319432793","JUICE Single Ply Non-Reversible Jersey; W: 2-3XL*; Z-Cloth (Custom Sublimation Printing Included)","$26.23",null,"Apparel"]
["CHPRJBBJ1W","319432785","JUICE Single Ply Non-Reversible Jersey; W: XS-XL*; Z-Cloth (Custom Sublimation Printing Included)","$22.81",null,"Apparel"]
["CHPRJBBJ6APLUS","319432912","JUICE Single Ply Reversible Jersey; A: 2XL-4XL*; Fusion Mesh (Custom Sublimation Printing Included)","$42.31",null,"Apparel"]
["CHPRJBBJ6A","319432904","JUICE Single Ply Reversible Jersey; A: S-XL*; Fusion Mesh (Custom Sublimation Printing Included)","$36.79",null,"Apparel"]
["CHPRJBBJ6Y","319432955","JUICE Single Ply Reversible Jersey; Y: S-XL; Fusion Mesh (Custom Sublimation Printing Included)","$35.36",null,"Apparel"]
["CHPRJFLJ5A","319436322","JUICE Single Ply Reversible Pinnie; A: S/M;L/XL; Fusion Mesh (Custom Sublimation Printing Included)","$43.49",null,"Apparel"]
["CHPRJFLJ5Y","319436349","JUICE Single Ply Reversible Pinnie; Y: S/M;L/XL; Fusion Mesh (Custom Sublimation Printing Included)","$42.07",null,"Apparel"]
["CHPRJLPG","319437647","JUICE Single -Ply Reversible Racerback Pinnie; XS/S, M/L (Custom Sublimation Printing Included)","$41.35",null,"Apparel"]
["CHPRJBBS67Y","319433323","JUICE Single Ply Reversible Short; 7\" Inseam; Y: S-XL; Fusion Mesh (Custom Sublimation Printing Included)","$35.36",null,"Apparel"]
["CHPRJBBS67APLUS","319433315","JUICE Single Ply Reversible Short; 9\" Inseam; A: 2XL-3XL*; Fusion Mesh (Custom Sublimation Printing Included)","$42.31",null,"Apparel"]
["CHPRJBBS6APLUS","31943334X","JUICE Single Ply Reversible Short; 9\" Inseam; A: 2XL-3XL*; Fusion Mesh (Custom Sublimation Printing Included)","$42.31",null,"Apparel"]
["CHPRJBBS67A","319433307","JUICE Single Ply Reversible Short; 9\" Inseam; A: S-XL*; Fusion Mesh (Custom Sublimation Printing Included)","$36.79",null,"Apparel"]
["CHPRJBBS6A","319433331","JUICE Single Ply Reversible Short; 9\" Inseam; A: S-XL*; Fusion Mesh (Custom Sublimation Printing Included)","$36.79",null,"Apparel"]
["CHPRJBBS6Y","319438457","Juice Single Ply Reversible Short; Youth: Sxl; Fusion Mesh (Specify Color And Size) (Custom Sublimation Printing Included)","$35.36",null,"Apparel"]
["CHPRJBBS27Y","319433137","JUICE Single Ply Short; 7\" Inseam; Y: S-XL; Z-Cloth (Custom Sublimation Printing Included)","$22.09",null,"Apparel"]
["CHPRJBBS2Y","319433161","JUICE Single Ply Short; 7\" Inseam; Y: S-XL; Z-Cloth Cloth (Custom Sublimation Printing Included)","$22.09",null,"Apparel"]
["CHPRJBBS2APLUS","319433153","JUICE Single Ply Short; 9\" Inseam; A: 2XL-4XL*; Z-Cloth (Custom Sublimation Printing Included)","$25.4",null,"Apparel"]
["CHPRJBBS27APLUS","319433129","JUICE Single Ply Short; 9\" Inseam; A: 2XL-4XL*; Z-Cloth (Custom Sublimation Printing Included)","$25.4",null,"Apparel"]
["CHPRJBBS2A","319433145","JUICE Single Ply Short; 9\" Inseam; A: S-XL*; Z-Cloth (Custom Sublimation Printing Included)","$22.09",null,"Apparel"]
["CHPRJBBS27A","319433110","JUICE Single Ply Short; 9\" Inseam; A: S-XL*; Z-Cloth (Custom Sublimation Printing Included)","$22.09",null,"Apparel"]
["CHPRJFJ5APLUS","319435229","JUICE Single-Ply Reversible Football Jersey; A: 2XL-4XL*; Matte Dazzle/Dynamic Mesh (Custom Sublimation Printing Included)","$75.12",null,"Apparel"]
["CHPRJFJ5A","319435210","JUICE Single-Ply Reversible Football Jersey; A: S-XL*; Matte Dazzle/Dynamic Mesh (Custom Sublimation Printing Included)","$65.32",null,"Apparel"]
["CHPRJFJ5Y","319435253","JUICE Single-Ply Reversible Football Jersey; Y: S-XL; Matte Dazzle/Dynamic Mesh (Custom Sublimation Printing Included)","$63.9",null,"Apparel"]
["CHPRJHKS2A","319437108","JUICE Single-Ply Reversible Hockey Socks; A: S/M(28\" Length), L/XL(30\" Length); Fusion Mesh (Custom Sublimation Printing Included)","$30.8",null,"Apparel"]
["CHPRJHKS2Y","319437124","JUICE Single-Ply Reversible Hockey Socks; Y: XS(19\" Length), S/M(22\" Length), L/XL(25\" Length) (Custom Sublimation Printing Included)","$29.37",null,"Apparel"]
["CHPRJLP2W","319437620","JUICE Single-Ply Reversible Racerback Pinnie; S/M, L/XL (Custom Sublimation Printing Included)","$42.78",null,"Apparel"]
["CHPRJBST17APLUS","319434370","JUICE Single-Ply Reversible Short Sleeve Crew Neck Jersey; A: 2XL-6XL*; Fusion Mesh; Traditional Fit (Custom Sublimation Printing Included)","$51.83",null,"Apparel"]
["CHPRJBST17A","319434257","JUICE Single-Ply Reversible Short Sleeve Crew Neck Jersey; A: S-XL*; Fusion Mesh; Traditional Fit (Custom Sublimation Printing Included)","$45.06",null,"Apparel"]
["CHPRJBST17Y","319434400","JUICE Single-Ply Reversible Short Sleeve Crew Neck Jersey; Y: XS-XL; Fusion Mesh; Traditional Fit (Custom Sublimation Printing Included)","$43.64",null,"Apparel"]
["CHPRJLJ6APLUS","319437531","JUICE Single-Ply Reversible Short Sleeve Jersey; A: 2XL-3XL*; Fusion Mesh (Custom Sublimation Printing Included)","$57.08",null,"Apparel"]
["CHPRJLJ6A","319437515","JUICE Single-Ply Reversible Short Sleeve Jersey; A: S-XL*; Fusion Mesh (Custom Sublimation Printing Included)","$49.63",null,"Apparel"]
["CHPRJLJ6Y","31943754X","JUICE Single-Ply Reversible Short Sleeve Jersey; Y: S-XL; Fusion Mesh (Custom Sublimation Printing Included)","$48.2",null,"Apparel"]
["CHPRJBST18Y","319434494","JUICE Single-ply Reversible Short Sleeve V-Neck Jersey; G: S-XL; Fushion Mesh (Custom Sublimation Printing Included)","$40.64",null,"Apparel"]
["CHPRJBST18WPLUS","31943446X","JUICE Single-Ply Reversible Short Sleeve V-Neck Jersey; W: 2-3XL*; Fusion Mesh (Custom Sublimation Printing Included)","$48.37",null,"Apparel"]
["CHPRJBST18W","319434435","JUICE Single-Ply Reversible Short Sleeve V-Neck Jersey; W: XS-XL*; Fusion Mesh (Custom Sublimation Printing Included)","$42.07",null,"Apparel"]
["CHPRJSBJ26G","319438309","JUICE Single-Ply Reversible Short Sleeve V-Neck; G: S-XL; Fusion Mesh; Fitted (Custom Sublimation Printing Included)","$41.35",null,"Apparel"]
["CHPRJSBJ26WPLUS","319433765","JUICE Single-Ply Reversible Short Sleeve V-Neck; W:2-3XL*; Fusion Mesh; Fitted (Custom Sublimation Printing Included)","$49.2",null,"Apparel"]
["CHPRJSBJ26W","319433749","JUICE Single-Ply Reversible Short Sleeve V-Neck; W:XS-XL*; Fusion Mesh; Fitted (Custom Sublimation Printing Included)","$42.78",null,"Apparel"]
["CHPRJLJ1A","319437280","JUICE Single-Ply Reversible Sleeveless Jersey; A: S-XL*; Fusion Mesh (Custom Sublimation Printing Included)","$46.49",null,"Apparel"]
["CHPRJLJ1Y","319437302","JUICE Single-Ply Reversible Sleeveless Jersey; Y: S-XL; Fusion Mesh (Custom Sublimation Printing Included)","$45.06",null,"Apparel"]
["CHPRJHKJ2PLUS","319436926","JUICE Single-Ply Reversible V-Neck Hockey Jersey; A: 2XL-3XL*; Intermediate Goalie; Goalie; Fusion Mesh (Custom Sublimation Printing Included)","$76.76",null,"Apparel"]
["CHPRJHKJ2","31943690X","JUICE Single-Ply Reversible V-Neck Hockey Jersey; A: S-XL*; Intermediate Goalie; Goalie; Fusion Mesh (Custom Sublimation Printing Included)","$66.75",null,"Apparel"]
["CHPRJBST8VAPLUS","319434850","JUICE Sleeveless Crew Neck Jersey; A: 2XL-4XL*; Z-Cloth (Custom Sublimation Printing Included)","$26.23",null,"Apparel"]
["CHPRJBST8VA","319434834","JUICE Sleeveless Crew Neck Jersey; A: S-XL*; Z-Cloth (Custom Sublimation Printing Included)","$22.81",null,"Apparel"]
["CHPRJBST8VY","319434877","JUICE Sleeveless Crew Neck Jersey; Y: S-XL; Z-Cloth (Custom Sublimation Printing Included)","$22.81",null,"Apparel"]
["CHPRJFLH5PAPLUS","319435881","Juice Sleeveless T-Shirt Hoodie w/Pocket; A: 2XL-4XL*; Active Cloth (Custom Sublimation Printing Included)","$50.01",null,"Apparel"]
["CHPRJFLH5PA","319435865","Juice Sleeveless T-Shirt Hoodie w/Pocket; A: S-XL*; Active Cloth (Custom Sublimation Printing Included)","$43.49",null,"Apparel"]
["CHPRJFLH5PY","319435903","Juice Sleeveless T-Shirt Hoodie W/Pocket; Y: S-XL; Active Cloth (Custom Sublimation Printing Included)","$42.07",null,"Apparel"]
["CHPRJFLH5APLUS","319435849","Juice Sleeveless T-Shirt Hoodie; A: 2XL-4XL*; Active Cloth (Custom Sublimation Printing Included)","$44.76",null,"Apparel"]
["CHPRJFLH5A","319435822","Juice Sleeveless T-Shirt Hoodie; A: S-XL*; Active Cloth (Custom Sublimation Printing Included)","$38.93",null,"Apparel"]
["CHPRJFLH5Y","31943592X","Juice Sleeveless T-Shirt Hoodie; Y: S-XL; Active Cloth (Custom Sublimation Printing Included)","$37.5",null,"Apparel"]
["CHPRJMSW7APLUS","319438090","JUICE Stretch Woven Poplin Short; A: 2XL-4XL* (Custom Sublimation Printing Included)","$42.64",null,"Apparel"]
["CHPRJMSW7A","319438082","JUICE Stretch Woven Poplin Short; A: S-XL* (Custom Sublimation Printing Included)","$37.07",null,"Apparel"]
["CHPRJMSF1APLUS","319437728","JUICE Stretch-Fit Half-Sleeve Jersey; A: 2XL-3XL*; Power Stretch (Custom Sublimation Printing Included)","$46.58",null,"Apparel"]
["CHPRJMSF1A","31943771X","JUICE Stretch-Fit Half-Sleeve Jersey; A: S-XL*; Power Stretch (Custom Sublimation Printing Included)","$40.5",null,"Apparel"]
["CHPRJMSF1Y","319437736","JUICE Stretch-Fit Half-Sleeve Jersey; Y: S-XL; Power Stretch (Custom Sublimation Printing Included)","$39.07",null,"Apparel"]
["CHPRJMSF2APLUS","319437752","JUICE Stretch-Fit Sleeveless Jersey; A: 2XL-3XL*; Power Stretch (Custom Sublimation Printing Included)","$44.76",null,"Apparel"]
["CHPRJMSF2A","319437744","JUICE Stretch-Fit Sleeveless Jersey; A: S-XL*; Power Stretch (Custom Sublimation Printing Included)","$38.93",null,"Apparel"]
["CHPRJMSF2Y","319437760","JUICE Stretch-Fit Sleeveless Jersey; Y: S-XL; Power Stretch (Custom Sublimation Printing Included)","$37.5",null,"Apparel"]
["CHPRJTHB01","319434354","JUICE Tie Headband; One Size Fits All; Active Cloth (Custom Sublimation Printing Included)","$11.82",null,"Apparel"]
["CHPRJFJ1APLUS","319435040","JUICE Traditional Football Jersey; A: 2XL-4XL*; Matte Dazzle/Pro-Tricot Mesh (Custom Sublimation Printing Included)","$58.72",null,"Apparel"]
["CHPRJFJ1A","319435024","JUICE Traditional Football Jersey; A: S-XL*; Matte Dazzle/Pro-Tricot Mesh (Custom Sublimation Printing Included)","$51.06",null,"Apparel"]
["CHPRJFJ1Y","319435067","JUICE Traditional Football Jersey; Y: S-XL; Matte Dazzle/Pro-Tricot Mesh (Custom Sublimation Printing Included)","$49.63",null,"Apparel"]
["CHPRJLJ3APLUS","31943740X","JUICE Traditional Game Jersey; A: 2XL-3XL*; Birds Eye Mesh (Custom Sublimation Printing Included)","$53.47",null,"Apparel"]
["CHPRJLJ3A","319437396","JUICE Traditional Game Jersey; A: S-XL*; Birds Eye Mesh (Custom Sublimation Printing Included)","$46.49",null,"Apparel"]
["CHPRJLJ3Y","319437434","JUICE Traditional Game Jersey; Y: S-XL; Birds Eye Mesh (Custom Sublimation Printing Included)","$45.06",null,"Apparel"]
["CHPRJBSJ350PAPLUS","319434109","JUICE Traditional Long-Sleeve Cage Jacket w/Pocket; A: 2XL-4XL*; Stretch Woven (Custom Sublimation Printing Included)","$65.28",null,"Apparel"]
["CHPRJBSJ350PA","319434079","JUICE Traditional Long-Sleeve Cage Jacket w/Pocket; A: S-XL*; Stretch Woven (Custom Sublimation Printing Included)","$56.76",null,"Apparel"]
["CHPRJBSJ350PY","319434125","JUICE Traditional Long-Sleeve Cage Jacket w/Pocket; Y: S-L; Stretch Woven (Custom Sublimation Printing Included)","$55.34",null,"Apparel"]
["CHPRJBSJ350APLUS","319434044","JUICE Traditional Long-Sleeve Cage Jacket; A: 2XL-4XL*; Stretch Woven (Custom Sublimation Printing Included)","$60.36",null,"Apparel"]
["CHPRJBSJ350A","319434028","JUICE Traditional Long-Sleeve Cage Jacket; A: S-XL*; Stretch Woven (Custom Sublimation Printing Included)","$52.48",null,"Apparel"]
["CHPRJBSJ350Y","319434141","JUICE Traditional Long-Sleeve Cage Jacket; Y: S-L; Stretch Woven (Custom Sublimation Printing Included)","$51.06",null,"Apparel"]
["CHPRJBSJ300PAPLUS","319433943","JUICE Traditional Short-Sleeve Cage Jacket w/Pocket; A: 2XL-4XL*; Stretch Woven (Custom Sublimation Printing Included)","$62",null,"Apparel"]
["CHPRJBSJ300PA","319433919","JUICE Traditional Short-Sleeve Cage Jacket w/Pocket; A: S-XL*; Stretch Woven (Custom Sublimation Printing Included)","$53.91",null,"Apparel"]
["CHPRJBSJ300PY","31943396X","JUICE Traditional Short-Sleeve Cage Jacket w/Pocket; Y: S-L; Stretch Woven (Custom Sublimation Printing Included)","$52.48",null,"Apparel"]
["CHPRJBSJ300APLUS","319433897","JUICE Traditional Short-Sleeve Cage Jacket; A: 2XL-4XL*; Stretch Woven (Custom Sublimation Printing Included)","$57.08",null,"Apparel"]
["CHPRJBSJ300A","319433862","JUICE Traditional Short-Sleeve Cage Jacket; A: S-XL*; Stretch Woven (Custom Sublimation Printing Included)","$49.63",null,"Apparel"]
["CHPRJBSJ300Y","319433994","JUICE Traditional Short-Sleeve Cage Jacket; Y: S-L; Stretch Woven (Custom Sublimation Printing Included)","$48.2",null,"Apparel"]
["CHPRJSBJ20G","31943821X","Juice Two-Button Short Sleeve Jersey; G: S-XL; Z-Cloth/Pin Dot Mesh; Fitted (Custom Sublimation Printing Included)","$36.79",null,"Apparel"]
["CHPRJSBJ20WPLUS","319438236","Juice Two-Button Short Sleeve Jersey; W: 2-3XL*; Z-Cloth/Pin Dot Mesh; Fitted (Custom Sublimation Printing Included)","$43.95",null,"Apparel"]
["CHPRJSBJ20W","319438228","Juice Two-Button Short Sleeve Jersey; W: XS-XL*; Z-Cloth/Pin Dot Mesh; Fitted (Custom Sublimation Printing Included)","$38.22",null,"Apparel"]
["CHPRJSBJ30G","319434001","Juice Two-Button Sleeveless Jersey; G: S-XL; Z-Cloth/Pin Dot Mesh; Fitted (Custom Sublimation Printing Included)","$34.65",null,"Apparel"]
["CHPRJSBJ30WPLUS","319434036","Juice Two-Button Sleeveless Jersey; W: 2-3XL*; Z-Cloth/Pin Dot Mesh; Fitted (Custom Sublimation Printing Included)","$41.48",null,"Apparel"]
["CHPRJSBJ30W","31943401X","Juice Two-Button Sleeveless Jersey; W: XS-XL*; Z-Cloth/Pin Dot Mesh; Fitted (Custom Sublimation Printing Included)","$36.08",null,"Apparel"]
["CHPRJSBJ28G","319433773","Juice V-Neck Racerback; G: S-XL; Z-Cloth/Pin Dot Mesh; Fitted (Custom Sublimation Printing Included)","$30.8",null,"Apparel"]
["CHPRJSBJ28WPLUS","319433803","Juice V-Neck Racerback; W: 2-3XL*; Z-Cloth/Pin Dot Mesh; Fitted (Custom Sublimation Printing Included)","$37.06",null,"Apparel"]
["CHPRJSBJ28W","31943379X","Juice V-Neck Racerback; W: XS-XL*; Z-Cloth/Pin Dot Mesh; Fitted (Custom Sublimation Printing Included)","$32.22",null,"Apparel"]
["CHPRJBST1WPLUS","319434699","JUICE Women's Cap Sleeve V-Neck T-Shirt Jersey; W: 2-3XL*; Z-Cloth (Custom Sublimation Printing Included)","$25.4",null,"Apparel"]
["CHPRJBST1W","319434672","JUICE Women's Cap Sleeve V-Neck T-Shirt Jersey; W: XS-XL*; Z-Cloth (Custom Sublimation Printing Included)","$22.09",null,"Apparel"]
["CHPRJVS1WPLUS","31943530X","JUICE Women's Compression Short; 2.5\" Inseam; A: 2XL*; Compression (Custom Sublimation Printing Included)","$30.17",null,"Apparel"]
["CHPRJVS1W","319435288","JUICE Women's Compression Short; 2.5\" Inseam; A: XS-2XL*; Compression (Custom Sublimation Printing Included)","$26.23",null,"Apparel"]
["CHPRJVS2WPLUS","319435377","JUICE Women's Compression Short; 4\" Inseam; A: 2XL*; Compression (Custom Sublimation Printing Included)","$30.17",null,"Apparel"]
["CHPRJVS2W","319435350","JUICE Women's Compression Short; 4\" Inseam; A: XS-2XL*; Compression (Custom Sublimation Printing Included)","$26.23",null,"Apparel"]
["CHPRJTRKS2WPLUS","319434648","JUICE Women's Compression Track Short; W: 2XL* (Custom Sublimation Printing Included)","$30.17",null,"Apparel"]
["CHPRJTRKS2W","319434621","JUICE Women's Compression Track Short; W: XS-XL* (Custom Sublimation Printing Included)","$26.23",null,"Apparel"]
["CHPRJSBJ5WPLUS","319434192","JUICE Women's Faux Full Button Cap Sleeve Jersey; A: 2XL-4XL*; Active Cloth; Fitted (Custom Sublimation Printing Included)","$51.83",null,"Apparel"]
["CHPRJSBJ5W","319434176","JUICE Women's Faux Full Button Cap Sleeve Jersey; A: S-XL*; Active Cloth; Fitted (Custom Sublimation Printing Included)","$45.06",null,"Apparel"]
["CHPRJSBJ9WPLUS","319434281","JUICE Women's Faux Full-Button Short Sleeve Jersey; W:2XL-4XL*; Active Cloth; Fitted (Custom Sublimation Printing Included)","$51.83",null,"Apparel"]
["CHPRJSBJ9W","319434273","JUICE Women's Faux Full-Button Short Sleeve Jersey; W:S-XL*; Active Cloth; Fitted (Custom Sublimation Printing Included)","$45.06",null,"Apparel"]
["CHPRJTRKJ2WPLUS","319434508","JUICE Women's Fitted Track Singlet; W: 2-4XL*; Power Stretch (Custom Sublimation Printing Included)","$30.33",null,"Apparel"]
["CHPRJTRKJ2W","319434486","JUICE Women's Fitted Track Singlet; W: XS-XL*; Power Stretch (Custom Sublimation Printing Included)","$26.37",null,"Apparel"]
["CHPRJSBJ4WPLUS","319434133","JUICE Women's Full-Button Cap Sleeve Jersey; A: 2XL-4XL*; Active Cloth; Fitted (Custom Sublimation Printing Included)","$51.83",null,"Apparel"]
["CHPRJSBJ4W","319434117","JUICE Women's Full-Button Cap Sleeve Jersey; A: S-XL*; Active Cloth; Fitted (Custom Sublimation Printing Included)","$45.06",null,"Apparel"]
["CHPRJSBJ8WPLUS","319434249","JUICE Women's Full-Button Short Sleeve Jersey; W: 2XL-4XL*; Active Cloth; Fitted (Custom Sublimation Printing Included)","$51.83",null,"Apparel"]
["CHPRJSBJ8W","319434230","JUICE Women's Full-Button Short Sleeve Jersey; W: S-XL*; Active Cloth; Fitted (Custom Sublimation Printing Included)","$45.06",null,"Apparel"]
["CHPRJSBJ12WPLUS","319438163","JUICE Women's Full-Button Sleeveless Vest; W: 2XL-4XL*; Active Cloth; Fitted (Custom Sublimation Printing Included)","$48.37",null,"Apparel"]
["CHPRJSBJ12W","319438155","JUICE Women's Full-Button Sleeveless Vest; W: S-XL*; Active Cloth; Fitted (Custom Sublimation Printing Included)","$42.07",null,"Apparel"]
["CHPRJFLH4PWPLUS","319435725","JUICE Women's Long Sleeve T-Shirt Hoodie w/Pocket; W: 2-3XL*; Active Cloth (Custom Sublimation Printing Included)","$51.5",null,"Apparel"]
["CHPRJFLH4PW","319435709","JUICE Women's Long Sleeve T-Shirt Hoodie w/Pocket; W: XS-XL*; Active Cloth (Custom Sublimation Printing Included)","$44.78",null,"Apparel"]
["CHPRJFLH4WPLUS","319435784","JUICE Women's Long Sleeve T-Shirt Hoodie; W: 2-3XL*; Active Cloth (Custom Sublimation Printing Included)","$46.58",null,"Apparel"]
["CHPRJFLH4W","319435768","JUICE Women's Long Sleeve T-Shirt Hoodie; W: XS-XL*; Active Cloth (Custom Sublimation Printing Included)","$40.5",null,"Apparel"]
["CHPRJBST1LSTWPLUS","319434605","JUICE Women's Long Sleeve V-Neck Jersey; Tall; W: 2-3XL*; Z-Cloth (Custom Sublimation Printing Included)","$36.89",null,"Apparel"]
["CHPRJBST1LSTW","319434583","JUICE Women's Long Sleeve V-Neck Jersey; Tall; W: XS-XL*; Z-Cloth (Custom Sublimation Printing Included)","$32.08",null,"Apparel"]
["CHPRJBST1LSWPLUS","319434656","JUICE Women's Long Sleeve V-Neck Jersey; W: 2-3XL*; Z-Cloth (Custom Sublimation Printing Included)","$33.61",null,"Apparel"]
["CHPRJSBJ2LSWPLUS","319433870","JUICE Women's Long Sleeve V-Neck Shooter Shirt; W: 2-3XL*; Z-Cloth (Custom Sublimation Printing Included)","$37.06",null,"Apparel"]
["CHPRJSBJ2LSW","319433854","JUICE Women's Long Sleeve V-Neck Shooter Shirt; W: XS-XL*; Z-Cloth (Custom Sublimation Printing Included)","$32.22",null,"Apparel"]
["CHPRJBST1LSW","31943463X","JUICE Women's Long Sleeve V-Neck T-Shirt Jersey; W: XS-XL*; Z-Cloth (Custom Sublimation Printing Included)","$29.23",null,"Apparel"]
["CHPRJTRKJ1WPLUS","319434427","JUICE Women's Loose Track Singlet; W: 2XL*; Z-Cloth (Custom Sublimation Printing Included)","$29.34",null,"Apparel"]
["CHPRJTRKJ1W","319434419","JUICE Women's Loose Track Singlet; W: XS-XL*; Z-Cloth (Custom Sublimation Printing Included)","$25.52",null,"Apparel"]
["CHPRJPL3WPLUS","319438139","JUICE Women's Polo Shirt; W: 2-3XL* (Custom Sublimation Printing Included)","$47.39",null,"Apparel"]
["CHPRJPL3W","319438120","JUICE Women's Polo Shirt; W: XS-XL* (Custom Sublimation Printing Included)","$41.21",null,"Apparel"]
["CHPRJSBJ3WPLUS","319434087","JUICE Women's Racerback V-Neck Jersey; A: 2-3XL*; Z-Cloth (Custom Sublimation Printing Included)","$37.06",null,"Apparel"]
["CHPRJSBJ3W","319434060","JUICE Women's Racerback V-Neck Jersey; A: XS-XL*; Z-Cloth (Custom Sublimation Printing Included)","$32.22",null,"Apparel"]
["CHPRJSBJ3G","319434052","JUICE Women's Racerback V-Neck Jersey; Y: S-L; Z-Cloth (Custom Sublimation Printing Included)","$30.8",null,"Apparel"]
["CHPRJBBJ3WPLUS","319432858","JUICE Women's Reversible Double Ply Jersey; A: 2-3XL*; Z-Cloth (Custom Sublimation Printing Included)","$42.31",null,"Apparel"]
["CHPRJBBJ3W","31943284X","JUICE Women's Reversible Double Ply Jersey; A: XS-XL*; Z-Cloth (Custom Sublimation Printing Included)","$36.79",null,"Apparel"]
["CHPRJBBS36WPLUS","319433188","JUICE Women's Reversible Double Ply Short; 6\" Inseam; A: 2-3XL*; Z-Cloth (Custom Sublimation Printing Included)","$42.31",null,"Apparel"]
["CHPRJBBS36W","31943317X","JUICE Women's Reversible Double Ply Short; 6\" Inseam; A: XS-XL*; Z-Cloth (Custom Sublimation Printing Included)","$36.79",null,"Apparel"]
["CHPRJBBS3WPLUS","319433269","JUICE Women's Reversible Double Ply Short; 8\"  Inseam; A: 2-3XL*; Z-Cloth (Custom Sublimation Printing Included)","$42.31",null,"Apparel"]
["CHPRJBBS3W","319433250","JUICE Women's Reversible Double Ply Short; 8\"  Inseam; A: XS-XL*; Z-Cloth (Custom Sublimation Printing Included)","$36.79",null,"Apparel"]
["CHPRJSBJ24WPLUS","319438295","JUICE Women's Short Sleeve Crew Neck Jersey; A: 2-3XL*; Z-Cloth; Fitted (Custom Sublimation Printing Included)","$37.06",null,"Apparel"]
["CHPRJSBJ24W","319438287","JUICE Women's Short Sleeve Crew Neck Jersey; A: XS-XL*; Z-Cloth; Fitted (Custom Sublimation Printing Included)","$32.22",null,"Apparel"]
["CHPRJFLH7PWPLUS","319436128","JUICE Women's Short Sleeve T-Shirt Hoodie w/Pocket; W: 2-3XL*; Active Cloth (Custom Sublimation Printing Included)","$50.51",null,"Apparel"]
["CHPRJFLH7PW","319436101","JUICE Women's Short Sleeve T-Shirt Hoodie w/Pocket; W: XS-XL*; Active Cloth (Custom Sublimation Printing Included)","$43.92",null,"Apparel"]
["CHPRJFLH7G","319436020","JUICE Women's Short Sleeve T-Shirt Hoodie; G: S-XL*; Active Cloth (Custom Sublimation Printing Included)","$38.22",null,"Apparel"]
["CHPRJFLH7WPLUS","319436284","JUICE Women's Short Sleeve T-Shirt Hoodie; W: 2-3XL*; Active Cloth (Custom Sublimation Printing Included)","$45.59",null,"Apparel"]
["CHPRJFLH7W","319436225","JUICE Women's Short Sleeve T-Shirt Hoodie; W: XS-XL*; Active Cloth (Custom Sublimation Printing Included)","$39.64",null,"Apparel"]
["CHPRJBBJ6WPLUS","319432947","JUICE Women's Single Ply Reversible Jersey; A: 2-3XL*; Fusion Mesh (Custom Sublimation Printing Included)","$42.31",null,"Apparel"]
["CHPRJBBJ6W","319432939","JUICE Women's Single Ply Reversible Jersey; A: XS-XL*; Fusion Mesh (Custom Sublimation Printing Included)","$36.79",null,"Apparel"]
["CHPRJBBS66WPLUS","319433293","JUICE Women's Single Ply Reversible Short; 6\" Inseam; A: 2XL-3XL*; Fusion Mesh (Custom Sublimation Printing Included)","$42.31",null,"Apparel"]
["CHPRJBBS66W","319433285","JUICE Women's Single Ply Reversible Short; 6\" Inseam; A: XS-XL*; Fusion Mesh (Custom Sublimation Printing Included)","$36.79",null,"Apparel"]
["CHPRJBBS6WPLUS","319433374","JUICE Women's Single Ply Reversible Short; 8\" Inseam; A: 2-3XL*; Fusion Mesh (Custom Sublimation Printing Included)","$42.31",null,"Apparel"]
["CHPRJBBS6W","319433366","JUICE Women's Single Ply Reversible Short; 8\" Inseam; A: XS-XL*; Fusion Mesh (Custom Sublimation Printing Included)","$36.79",null,"Apparel"]
["CHPRJBBS16WPLUS","319433080","JUICE Women's Single Ply Short; 6\" Inseam; W: 2-3XL* (Custom Sublimation Printing Included)","$25.4",null,"Apparel"]
["CHPRJBBS16W","319433072","JUICE Women's Single Ply Short; 6\" Inseam; W: XS-XL* (Custom Sublimation Printing Included)","$22.09",null,"Apparel"]
["CHPRJBBS1WPLUS","319433102","JUICE Women's Single Ply Short; 8\" Inseam; A: 2-3XL*; Z-Cloth (Custom Sublimation Printing Included)","$25.4",null,"Apparel"]
["CHPRJBBS1W","319433099","JUICE Women's Single Ply Short; 8\" Inseam; A: XS-XL*; Z-Cloth (Custom Sublimation Printing Included)","$22.09",null,"Apparel"]
["CHPRJTRKS5WPLUS","319434745","JUICE Women's Sprinter Brief; W: 2XL*; Compression (Custom Sublimation Printing Included)","$26.72",null,"Apparel"]
["CHPRJTRKS5W","319434729","JUICE Women's Sprinter Brief; W: XS-XL*; Compression (Custom Sublimation Printing Included)","$23.24",null,"Apparel"]
["CHPRJTRKS1W","319434575","JUICE Women's Track Short; W: XS-XL*; Z-Cloth (Custom Sublimation Printing Included)","$25.52",null,"Apparel"]
["CHPRJTRKS1WPLUS","319434591","JUICE Women's Track Short; W:2XL*; Z-Cloth (Custom Sublimation Printing Included)","$29.34",null,"Apparel"]
["CHPRJSBJ2WPLUS","319433978","JUICE Women's V-Neck Short Sleeve Jersey; A: 2-3XL*; Z-Cloth (Custom Sublimation Printing Included)","$37.06",null,"Apparel"]
["CHPRJSBJ22WPLUS","319438260","JUICE Women's V-Neck Short Sleeve Jersey; A: 2-3XL*; Z-Cloth; Fitted (Custom Sublimation Printing Included)","$37.06",null,"Apparel"]
["CHPRJSBJ2W","319433951","JUICE Women's V-Neck Short Sleeve Jersey; A: XS-XL*; Z-Cloth (Custom Sublimation Printing Included)","$32.22",null,"Apparel"]
["CHPRJSBJ22W","319438252","JUICE Women's V-Neck Short Sleeve Jersey; A: XS-XL*; Z-Cloth; Fitted (Custom Sublimation Printing Included)","$32.22",null,"Apparel"]
["CHPRJSBJ2TWPLUS","319433927","JUICE Women's V-Neck Short Sleeve Jersey; Tall; A: 2-3XL*; Z-Cloth (Custom Sublimation Printing Included)","$38.7",null,"Apparel"]
["CHPRJSBJ2TW","319433900","JUICE Women's V-Neck Short Sleeve Jersey; Tall; A: XS-XL*; Z-Cloth (Custom Sublimation Printing Included)","$33.65",null,"Apparel"]
["CHPRJBST8WPLUS","319434915","JUICE Women'sShort Sleeve Crew Neck T-Shirt Jersey; A: 2XL*; Z-Cloth (Custom Sublimation Printing Included)","$26.23",null,"Apparel"]
["CHPRJBST8W","319434893","JUICE Women'sShort Sleeve Crew Neck T-Shirt Jersey; A: XS-XL*; Z-Cloth (Custom Sublimation Printing Included)","$22.81",null,"Apparel"]
["CHPRJWRCS2APLUS","319435415","JUICE Wrestling Compression Shirt; A: 2XL-3XL* (Custom Sublimation Printing Included)","$46.58",null,"Apparel"]
["CHPRJWRCS2A","319435393","JUICE Wrestling Compression Shirt; A: S-XL* (Custom Sublimation Printing Included)","$40.5",null,"Apparel"]
["CHPRJWRCS2Y","319435431","JUICE Wrestling Compression Shirt; Y: XS-XL (Custom Sublimation Printing Included)","$39.07",null,"Apparel"]
["CHPRJWRSH1APLUS","319435490","JUICE Wrestling Grappler Short with 7\" Inseam; A: 2XL-3XL*; Stretch Woven/Pin Dot Mesh (Custom Sublimation Printing Included)","$51.83",null,"Apparel"]
["CHPRJWRSH1A","319435474","JUICE Wrestling Grappler Short with 7\" Inseam; A: S-XL*; Stretch Woven/Pin Dot Mesh (Custom Sublimation Printing Included)","$45.06",null,"Apparel"]
["CHPRJWRSH1Y","319435512","JUICE Wrestling Grappler Short with 7\" Inseam; Y: XS-XL; Stretch Woven/Pin Dot Mesh (Custom Sublimation Printing Included)","$43.64",null,"Apparel"]
["CHPRJWRS1PA","319435458","JUICE Wrestling Singlet; Size: 3XS-XL (See Size Chart in Catalog Page 207); Grappler Spandex (Custom Sublimation Printing Included)","$49.63",null,"Apparel"]
["CHPRJTRKS4Y","319434702","JUICE Youth Compression Shorts; Y: S-XL (Custom Sublimation Printing Included)","$27.8",null,"Apparel"]
["CHPRJTRKJ2Y","319434516","JUICE Youth Fitted Track Singlet; Y: S-XL; Power Stretch (Custom Sublimation Printing Included)","$25.66",null,"Apparel"]
["CHPRJPL3Y","319438147","JUICE Youth Polo Shirt; Y: S-XL; Active Cloth (Custom Sublimation Printing Included)","$39.78",null,"Apparel"]
["CHPRJTRKS6Y","319434842","JUICE Youth Split Short with Inner Brief; Y: S-L (Custom Sublimation Printing Included)","$32.79",null,"Apparel"]
["CHPRJTRKS1Y","319434613","JUICE Youth Track Short; Y: S-XL; Z-Cloth (Custom Sublimation Printing Included)","$24.09",null,"Apparel"]
["CHPRJTRKJ1Y","319434443","JUICE Youth Track Singlet; Y: S-XL; Z-Cloth (Custom Sublimation Printing Included)","$24.09",null,"Apparel"]
["CHPRSGK1A","319436632","Keeper Goalie Jersey; Adult: S-XL","$18.45",null,"Apparel"]
["CHPRSGK1Y","319436659","Keeper Goalie Jersey; Youth: M-L","$16.84",null,"Apparel"]
["CHPRBST16APLUS","31942202X","Key Shooter Shirt; A: 2XL-3XL* - Limited Quantities","$9.83",null,"Apparel"]
["CHPRBST16A","319424847","Key Shooter Shirt; Adult: Sxl","$8.55",null,"Apparel"]
["CMPBST16A","317383159","Key Shooter Shirt; Adult: S-XL (Specify Color and Size)","$13.64",null,"Apparel"]
["CHPRBST16Y","319422046","Key Shooter Shirt; Youth: S-XL - Limited Quantities","$8.55",null,"Apparel"]
["CMPBST16Y","317383167","Key Shooter Shirt; Youth: S-XL (Specify Color and Size)","$10.43",null,"Apparel"]
["CHPRBST85APLUS","319422216","Leader Baseball Jersey; A: 2XL-4XL*","$7.99",null,"Apparel"]
["CHPRBST85A","319424901","Leader Baseball Tshirt; Adult: S4Xl*","$6.94",null,"Apparel"]
["CHPRBST85Y","319424936","Leader Baseball Tshirt; Youth: Sxl","$6.94",null,"Apparel"]
["CMPBST85AX","317383302","Leader T-Shirt; Adult: 2XL-4XL (Specify Color and Size)","$6.68",null,"Apparel"]
["CMPBST85A","317383299","Leader T-Shirt; Adult: S-XL (Specify Color and Size)","$6.68",null,"Apparel"]
["CMPBST85Y","317383310","Leader T-Shirt; Youth: S-XL (Specify Color and Size)","$5.88",null,"Apparel"]
["CHPRBP23Y","319424405","Leadoff Low Rise Softball Pant; Girls S-XL - Limited Quantity","$12.83",null,"Apparel"]
["CMPBP23Y","317381954","Leadoff Low Rise Softball Pant; Girls S-XL (Specify Color and Size)","$12.83",null,"Apparel"]
["CHPRBP23WPLUS","319424383","Leadoff Low Rise Softball Pant; W: 2XL* - Limited Quantity","$14.76",null,"Apparel"]
["CHPRBP23W","319424367","Leadoff Low Rise Softball Pant; W: S-XL* - Limited Quantity","$12.83",null,"Apparel"]
["CMPBP23W","317381938","Leadoff Low Rise Softball Pant; Women: S-XL (Specify Color and Size)","$14.97",null,"Apparel"]
["CHPRA063","319425940","Leather Baseball Belt; Sizes: S3Xl","$8.28",null,"Apparel"]
["CMPA063","317380524","Leather Baseball Belt; Sizes: S-XL (Specify Color and Size)","$7.48",null,"Apparel"]
["CHPRBS28G","319427110","Legacy 2-Button Softball Jersey; Girls: S-L  - Limited Quantities","$8.01",null,"Apparel"]
["CHPRBS28WPLUS","31942717X","Legacy 2-Button Softball Jersey; W: 2XL* - Limited Quantities","$9.52",null,"Apparel"]
["CHPRBS28W","319427145","Legacy 2-Button Softball Jersey; W: S-XL* - Limited Quantities","$8.28",null,"Apparel"]
["CMPCS4A","317383639","Lightning Compression Shorts; Adult: S-XL (Specify Color and Size)","$12.03",null,"Apparel"]
["CMPCS4Y","317383655","Lightning Compression Shorts; Youth: S-L (Specify Color and Size)","$9.09",null,"Apparel"]
["CMPCS5A","317383663","Lightning Compression Tight; Adult: S-XL (Specify Color and Size)","$15.24",null,"Apparel"]
["CMPCS5Y","31738368X","Lightning Compression Tight; Youth: S-L (Specify Color and Size)","$12.03",null,"Apparel"]
["CMPCJ2A","317383507","Lightning Half Sleeve Compression Shirt; Adult: S-XL (Specify Color and Size)","$16.58",null,"Apparel"]
["CMPCJ2Y","317383523","Lightning Half Sleeve Compression Shirt; Youth: S-L (Specify Color and Size)","$14.44",null,"Apparel"]
["CMPCJ3A","317383531","Lightning Long Sleeve Compression Shirt; Adult: S-XL (Specify Color and Size)","$17.38",null,"Apparel"]
["CMPCJ3Y","317383558","Lightning Long Sleeve Compression Shirt; Youth: S-L (Specify Color and Size)","$13.64",null,"Apparel"]
["CMPCJ1A","317383477","Lightning Sleeveless Compression Shirt; Adult: S-XL (Specify Color and Size)","$13.1",null,"Apparel"]
["CMPCJ1Y","317383493","Lightning Sleeveless Compression Shirt; Youth: S-L (Specify Color and Size)","$9.89",null,"Apparel"]
["CHPRBBS66APLUS","319423840","Limitless Pocket Short; A: 2XL-4XL*","$12.91",null,"Apparel"]
["CHPRBBS66A","319423824","Limitless Pocket Short; A: S-XL*","$11.22",null,"Apparel"]
["CHPRBBS66WPLUS","319423883","Limitless Pocket Short; W: 2XL*","$11.68",null,"Apparel"]
["CHPRBBS66W","319423867","Limitless Pocket Short; W: XS-XL*","$10.15",null,"Apparel"]
["CHPRBBS66Y","319423905","Limitless Pocket Short; Youth: S-L","$9.62",null,"Apparel"]
["CMPAF61","317380818","Line-Up Cards; 25 per set; Dozen sets","$52.69",null,"Apparel"]
["CHPRFLH2APLUS","319431525","Lineup Fleece Hoodie; A: 2XL-4XL*","$27.06",null,"Apparel"]
["CHPRFLH2A","319431517","Lineup Fleece Hoodie; A: S-XL*","$23.53",null,"Apparel"]
["CHPRFLH2Y","319431533","Lineup Fleece Hoodie; Y: S-XL","$22.99",null,"Apparel"]
["CHPRFLC4APLUS","319431487","Lineup Fleece Men's 1/4 Zip Crew; A: 2XL-4XL*","$27.06",null,"Apparel"]
["CHPRFLC4A","319431479","Lineup Fleece Men's 1/4 Zip Crew; A: S-XL*","$23.53",null,"Apparel"]
["CHPRFLP1APLUS","319431584","Lineup Fleece Track Pant; A: 2XL-4XL*","$27.98",null,"Apparel"]
["CHPRFLP1A","319431576","Lineup Fleece Track Pant; A: S-XL*","$24.33",null,"Apparel"]
["CHPRFLP1WPLUS","319431606","Lineup Fleece Track Pant; W: 2XL-3XL*","$27.98",null,"Apparel"]
["CHPRFLP1W","319431592","Lineup Fleece Track Pant; W: S-XL*","$24.33",null,"Apparel"]
["CHPRFLC5WPLUS","319431509","Lineup Fleece Women's Crop Crew; W: 2XL-3XL*","$25.52",null,"Apparel"]
["CHPRFLC5W","319431495","Lineup Fleece Women's Crop Crew; W: S-XL*","$22.19",null,"Apparel"]
["CHPRCJ3APLUS","319424332","Long Sleeve Compression Shirt; A: 2XL-4XL*","$19.06",null,"Apparel"]
["CHPRCJ3A","319424316","Long Sleeve Compression Shirt; A: S-XL*","$16.57",null,"Apparel"]
["CHPRCJ3Y","319424359","Long Sleeve Compression Shirt; Y: S-L","$14.97",null,"Apparel"]
["CMPBP1Y","31738192X","Looper 12.5 oz. Pull-Up Baseball Pants with Belt Loops; White; Black, Grey; Youth: XS-XL (Specify Color and Size)","$6.95",null,"Apparel"]
["CHPRBP1Y","319424340","Looper 12.5 oz. Pull-Up with Belt Loops; White; Black, Grey; Youth: XS-XL","$7.75",null,"Apparel"]
["CMPFPGU7A","317384848","Man-Up TRI-FLEX Integrated Girdle; 7 Pad; Adult: S-XL (Specify Size)","$41.46",null,"Apparel"]
["CMPFPGU7Y","317384864","Man-Up TRI-FLEX Integrated Girdle; 7 Pad; Youth: S-L (Specify Size)","$40.12",null,"Apparel"]
["CHPRSJ20A","319436713","Mark Soccer Jersey; Adult: S-XL","$9.62",null,"Apparel"]
["CHPRSJ20Y","31943673X","Mark Soccer Jersey; Youth: XS-XL","$8.28",null,"Apparel"]
["CHPRSS20A","319436950","Mark Soccer Short; Adult: S-XL; 6\" Inseam","$7.21",null,"Apparel"]
["CHPRSS20Y","319436977","Mark Soccer Short; Youth: XS-XL; Graded Inseam","$6.14",null,"Apparel"]
["CMPJPL1BX","317386387","Men's Polo Shirt; Adult: 2XL-3XL; BirdsEye Mesh, Custom Printing Included (Specify Color and Size)","$44.94",null,"Apparel"]
["CMPJPL1B","317386379","Men's Polo Shirt; Adult: S-XL; BirdsEye Mesh, Custom Printing Included (Specify Color and Size)","$39.08",null,"Apparel"]
["CMPJPL1BY","317386395","Men's Polo Shirt; Youth: S-XL; BirdsEye Mesh, Custom Printing Included (Specify Color and Size)","$39.08",null,"Apparel"]
["CHPRFVI","319432173","Mesh Scrimmage Vest; Youth","$4",null,"Apparel"]
["CHPRLXJ01G","319435652","Middie Micro Mesh Reverisble Women's Lacrosse Pinnie; Girls: M/L","$6.14",null,"Apparel"]
["CHPRLXJ01WPLUS","319435695","Middie Micro Mesh Reverisble Women's Pinnie; 2XL*","$8.29",null,"Apparel"]
["CHPRLXJ01W","319435679","Middie Micro Mesh Reverisble Women's Pinnie; W: S/M, L/XL","$7.21",null,"Apparel"]
["CHPRTFJ01APLUS","319437094","Miler Track Jersey; A: 2XL-3XL*","$8.29",null,"Apparel"]
["CHPRTFJ01A","319437078","Miler Track Jersey; A: S-XL*","$7.21",null,"Apparel"]
["CHPRTFJ01WPLUS","319437132","Miler Track Jersey; W: 2XL*","$8.29",null,"Apparel"]
["CHPRTFJ01W","319437116","Miler Track Jersey; W: S-XL*","$7.21",null,"Apparel"]
["CHPRTFJ01Y","319437159","Miler Track Jersey; Youth: S-L","$5.87",null,"Apparel"]
["CHPRAS2","319428796","Multisport Sock; Xs, S, M, L","$2.4",null,"Apparel"]
["CHPRBBJ9WPLUS","319422569","Muscle  Jersey; W: 2XL*","$10.75",null,"Apparel"]
["CHPRBBJ9W","319422542","Muscle  Jersey; W: S-XL*","$9.35",null,"Apparel"]
["CHPRBBS9WPLUS","319423980","Muscle  Short; W: 2XL*; 8\" Inseam","$10.75",null,"Apparel"]
["CHPRBBS9W","319423964","Muscle  Short; W: S-XL*; 8\" Inseam","$9.35",null,"Apparel"]
["CHPRBBJ9APLUS","319422526","Muscle Basketball Jersey; A: 2XL-3XL*","$10.75",null,"Apparel"]
["CHPRBBJ9A","31942250X","Muscle Basketball Jersey; A: S-XL*","$9.35",null,"Apparel"]
["CHPRBBJ9Y","319422585","Muscle Basketball Jersey; Youth: S-XL","$8.82",null,"Apparel"]
["CHPRBBS9APLUS","31942393X","Muscle Basketball Short; A: 2XL-3XL*; 10\" Inseam","$10.75",null,"Apparel"]
["CHPRBBS9A","319423921","Muscle Basketball Short; A: S-XL*; 10\" Inseam","$9.35",null,"Apparel"]
["CMPBBS9A","317381652","Muscle Basketball Short; Adult: S-XL; 10\" Inseam (Specify Color and Size)","$9.62",null,"Apparel"]
["CMPBBS9W","317381679","Muscle Basketball Short; Women's: S-XL; 8\" Inseam (Specify Color and Size)","$8.29",null,"Apparel"]
["CHPRBBS9Y","319424030","Muscle Basketball Short; Youth; S-XL; 7\" Inseam","$8.82",null,"Apparel"]
["CMPBBS9Y","317381695","Muscle Basketball Short; Youth; S-XL; 7\" Inseam (Specify Color and Size)","$7.75",null,"Apparel"]
["CHPRHC2","319432246","MVP Cap C-Flex Fitted Construciton; XS/S, S/M, L/XL","$8.28",null,"Apparel"]
["CHPRBP4APLUS","319424669","MVP Classic Pant; White, Black, Grey; A: 2XL-4XL*","$14.45",null,"Apparel"]
["CHPRBP4A","319424642","MVP Classic Pant; White, Black, Grey; A: S-XL*","$12.56",null,"Apparel"]
["CMPBP4A","317382047","MVP Classic Pant; White, Black, Grey; Adult: S-XL (Specify Color and Size)","$13.1",null,"Apparel"]
["CHPRBP4Y","319424731","MVP Classic Pant; White, Black, Grey; Youth: XS-XL","$10.69",null,"Apparel"]
["CMPBP4Y","317382098","MVP Classic Pant; White, Black, Grey; Youth: XS-XL (Specify Color and Size)","$9.89",null,"Apparel"]
["CHPRBP42APLUS","31942460X","MVP Knicker Pant; Blk, Gry, Wht; A: 2XL-4XL*","$14.45",null,"Apparel"]
["CHPRBP42A","319424588","MVP Knicker Pant; Blk, Gry, Wht; A: S-XL*","$12.56",null,"Apparel"]
["CHPRBP42Y","319424626","MVP Knicker Pant; Blk, Gry, Wht; Youth: XS-XL*","$11.22",null,"Apparel"]
["CHPRBP41UAPLUS","319424545","MVP Open Bottom Pant w/Braid; A: 2XL-4XL*","$17.83",null,"Apparel"]
["CHPRBP41UA","319424529","MVP Open Bottom Pant w/Braid; A: S-XL*","$15.5",null,"Apparel"]
["CHPRBP41UY","319424561","MVP Open Bottom Pant w/Braid; Youth: S-XL","$13.9",null,"Apparel"]
["CHPRBP4UY","319424723","MVP Open-Bottom Relaxed Fit 12.5 oz. Double Knit, Blk,Gry,Wht Youth: XS-XL","$12.29",null,"Apparel"]
["CHPRBP4UAPLUS","319424707","MVP Open-Bottom Relaxed Fit 12.5 oz. Double Knit, Blk,Gry,Wht; A: 2XL-4XL*","$15.99",null,"Apparel"]
["CHPRBP4UA","319424685","MVP Open-Bottom Relaxed Fit 12.5 oz. Double Knit, Blk,Gry,Wht; A: S-XL*","$13.9",null,"Apparel"]
["CHPRHV6","319432440","Optic Visor","$6.94",null,"Apparel"]
["CMPCG186","317383469","Optimus Pro Leg Guards; 13.5\" Shin Length","$52.16",null,"Apparel"]
["CMPCG184","317383450","Optimus Pro Leg Guards; 14.5\" Shin Length","$57.24",null,"Apparel"]
["CHPRAS11","319421163","OTK Sock; XS-L","$6.41",null,"Apparel"]
["CMPA068","317380540","Patent Leather Baseball Belt; Sizes: S-XL (Specify Color and Size)","$8.02",null,"Apparel"]
["CHPRHC4","319432262","Pennant Snapback Traditional baseball Cap; S, M-XL","$5.34",null,"Apparel"]
["CHPRFLQ4APLUS","319431622","Performance 1/4 Zip Pullover; A: 2XL-4XL*","$18.14",null,"Apparel"]
["CHPRFLQ4A","319431614","Performance 1/4 Zip Pullover; A: S-XL*","$15.77",null,"Apparel"]
["CHPRFLQ4Y","319431630","Performance 1/4 Zip Pullover; Y: S-XL","$14.43",null,"Apparel"]
["CHPRHC5","319432270","Performance Trucker Snapback Mid Profile Structured Pro Style; Adult","$5.34",null,"Apparel"]
["CMPBPA","317382284","Performer 12.5 oz. Pull-Up Baseball Pants; White, Black or Grey; Adult: S-XL (Specify Color and Size)","$8.82",null,"Apparel"]
["CMPBPY","317382586","Performer 12.5 oz. Pull-Up Baseball Pants; White, Black, Grey, Navy; Youth: XXS-XL (Specify Color and Size)","$8.82",null,"Apparel"]
["CHPRBPAPLUS","319425649","Performer 12.5 oz. Pull-Up; White, Black or Grey; A: 2XL*","$9.83",null,"Apparel"]
["CHPRBPA","319425622","Performer 12.5 oz. Pull-Up; White, Black or Grey; A: S-XL*","$8.55",null,"Apparel"]
["CHPRBPY","319426297","Performer 12.5 oz. Pull-Up; White, Black, Grey, Navy; Youth: XXS-XL","$7.48",null,"Apparel"]
["CMPJFLH3X","317386166","Periscope Hoodie Sweatshirt; Adult: 2XL-5XL; Fleece, Custom Printing Included (Specify Color and Size)","$62.23",null,"Apparel"]
["CMPJFLH3","317386158","Periscope Hoodie Sweatshirt; Adult: XS-XL; Fleece, Custom Printing Included (Specify Color and Size)","$54.12",null,"Apparel"]
["CMPJFLH3Y","317386174","Periscope Hoodie Sweatshirt; Youth: S-L; Fleece, Custom Printing Included (Specify Color and Size)","$54.12",null,"Apparel"]
["CHPRBBS14APLUS","319422909","Pivot Reversible Basketball Short; A: 2XL-3XL*; 9\" Inseam","$14.76",null,"Apparel"]
["CHPRBBS14A","319422887","Pivot Reversible Basketball Short; A: S-XL*; 9\" Inseam","$12.83",null,"Apparel"]
["CMPBBS14A","317381474","Pivot Reversible Basketball Short; Adult: S-XL; 9\" Inseam (Specify Color and Size)","$13.1",null,"Apparel"]
["CHPRBBS14Y","319422925","Pivot Reversible Basketball Short; Youth: S-XL; 7\" Inseam","$11.49",null,"Apparel"]
["CMPBBS14Y","317381490","Pivot Reversible Basketball Short; Youth: S-XL; 7\" Inseam (Specify Color and Size)","$9.89",null,"Apparel"]
["CHPRBBJ14APLUS","319421724","Pivot Reversible Fitted Basketball Jersey; A: 2XL-3XL*","$14.76",null,"Apparel"]
["CHPRBBJ14A","319421694","Pivot Reversible Fitted Basketball Jersey; A: S-XL*","$12.83",null,"Apparel"]
["CHPRBBJ14Y","319421740","Pivot Reversible Fitted Basketball Jersey; Youth: S-XL","$11.49",null,"Apparel"]
["CHPRAS6","319421198","Player Sock; XS-L","$6.14",null,"Apparel"]
["CHPRHBE1","31943222X","Polar Cuff Beanie","$4.54",null,"Apparel"]
["CHPRBBS15G","319422941","Post Up Reversible Basketball Short; Girls': S-L; 6\" Inseam","$11.49",null,"Apparel"]
["CMPBBS15G","317381504","Post Up Reversible Basketball Short; Girls': S-L; 6\" Inseam (Specify Color and Size)","$9.89",null,"Apparel"]
["CHPRBBS15WPLUS","319422984","Post Up Reversible Basketball Short; W: 2XL*; 8\" Inseam","$14.76",null,"Apparel"]
["CHPRBBS15W","319422968","Post Up Reversible Basketball Short; W: S-XL*; 8\" Inseam","$12.83",null,"Apparel"]
["CMPBBS15W","317381512","Post Up Reversible Basketball Short; Women's: S-XL; 8\" Inseam (Specify Color and Size)","$13.1",null,"Apparel"]
["CHPRBBJ15G","319438384","Post Up Reversible Fitted Basketball Jersey; Girls: Sl (Specify Color And Size)","$11.49",null,"Apparel"]
["CHPRBBJ15WPLUS","319421775","Post Up Reversible Fitted Basketball Jersey; W: 2XL*","$14.76",null,"Apparel"]
["CHPRBBJ15W","319421759","Post Up Reversible Fitted Basketball Jersey; W: S-XL*","$12.83",null,"Apparel"]
["CHPRBB6-27.5","319421570","Power Grip 1000 Basketball; Junior 27.5","$17.11",null,"Apparel"]
["CHPRFJ56APLUS","319431258","Pre Season Stretch Practice Jersey; A: 2XL-3XL*","$14.45",null,"Apparel"]
["CHPRFJ56A","31943124X","Pre Season Stretch Practice Jersey; A: S-XL*","$12.56",null,"Apparel"]
["CHPRFJ56Y","319431266","Pre Season Stretch Practice Jersey; Y: S-XL","$12.56",null,"Apparel"]
["CHPRBBJ23APLUS","31942197X","Prime Basketball Jersey; A: 2XL-3XL*","$12.6",null,"Apparel"]
["CHPRBBJ23A","319421953","Prime Basketball Jersey; A: S-XL*","$10.96",null,"Apparel"]
["CHPRBBJ23G","319421996","Prime Basketball Jersey; G: S-L","$9.89",null,"Apparel"]
["CHPRBBJ23WPLUS","319422038","Prime Basketball Jersey; W: 2XL*","$12.6",null,"Apparel"]
["CHPRBBJ23W","319422011","Prime Basketball Jersey; W: S-XL*","$10.96",null,"Apparel"]
["CHPRBBJ23Y","319422054","Prime Basketball Jersey; Youth: S-XL","$9.89",null,"Apparel"]
["CHPRBBS23Y","319423255","Prime Basketball Short: Youth: S-XL","$9.89",null,"Apparel"]
["CHPRBBS23APLUS","319423174","Prime Basketball Short; A: 2XL-3XL*","$12.6",null,"Apparel"]
["CHPRBBS23A","319423158","Prime Basketball Short; A: S-XL*","$10.96",null,"Apparel"]
["CHPRBBS23G","319423190","Prime Basketball Shorts; Girl's: S-L; 6\" Inseam","$9.89",null,"Apparel"]
["CHPRBBS23WPLUS","319423239","Prime Basketball Shorts; W: 2XL*; 8\" Inseam","$12.6",null,"Apparel"]
["CHPRBBS23W","319423212","Prime Basketball Shorts; W: XS-XL*; 8\" Inseam","$10.96",null,"Apparel"]
["CMPFWB1","317385097","Pro Football Belt, 1.25\" Wide x 60\" Long x 2.5 mm Thick, Dozen (Specify Color)","$19.25",null,"Apparel"]
["CHPRAS1","31942877X","Pro Socks; S, M, L","$3.47",null,"Apparel"]
["CHPRBBS21APLUS","319423115","Rebel Basketball Short; A: 2XL*","$8.91",null,"Apparel"]
["CHPRBBS21A","319423107","Rebel Basketball Short; A: S-XL*","$7.75",null,"Apparel"]
["CMPBBS21A","317381539","Rebel Basketball Short; Adult: S-XL (Specify Color and Size)","$8.02",null,"Apparel"]
["CHPRBBS21Y","319423131","Rebel Basketball Short; Youth: S-XL","$6.94",null,"Apparel"]
["CMPBBS21Y","317381555","Rebel Basketball Short; Youth: S-XL (Specify Color and Size)","$6.41",null,"Apparel"]
["CHPRBBJ21APLUS","319421910","Rebel Fitted Basketball Jersey; A: 2XL*","$9.83",null,"Apparel"]
["CHPRBBJ21A","319421899","Rebel Fitted Basketball Jersey; A: S-XL*","$8.55",null,"Apparel"]
["CHPRBBJ21Y","319421929","Rebel Fitted Basketball Jersey; Youth: S-XL","$7.75",null,"Apparel"]
["CHPRFJ29APLUS","319431118","Red-Dog Collegiate Fit Jersey; A: 2XL-3XL*","$31.06",null,"Apparel"]
["CHPRFJ29A","31943110X","Red-Dog Collegiate Fit Jersey; A: S-XL*","$27.01",null,"Apparel"]
["CHPRFJ29Y","319431126","Red-Dog Collegiate Jersey; Youth: S-L","$25.4",null,"Apparel"]
["CHPRBBPR1","31942278X","REF Basketball Official's Pant; Adult: 30-46","$35.83",null,"Apparel"]
["CMPBBPR1","317381369","REF Basketball Official's Pant; Adult: 30-46 (Specify Size)","$25.67",null,"Apparel"]
["CMPP420REF","317386891","Referee Pinnies","$3.47",null,"Apparel"]
["CHPRP420REF","319429474","Referee Pinnies","$6.14",null,"Apparel"]
["CHPRBS34APLUS","319427412","Relief Two-Button Jersey; A: 2XL-3XL*","$16.91",null,"Apparel"]
["CHPRBS34A","319427382","Relief Two-Button Jersey; A: S-XL*","$14.7",null,"Apparel"]
["CHPRBS34Y","319427439","Relief Two-Button Jersey; Youth: S-XL","$13.36",null,"Apparel"]
["CHPRFV2","31942796X","Reversible Mesh Scrimmage Vest; Adult","$6.41",null,"Apparel"]
["CMPFV2","317385046","Reversible Mesh Scrimmage Vest; Adult (Specify Color)","$5.61",null,"Apparel"]
["CHPRFV2I","319427994","Reversible Mesh Scrimmage Vest; Youth","$6.41",null,"Apparel"]
["CMPFV2I","317385054","Reversible Mesh Scrimmage Vest; Youth (Specify Color)","$5.61",null,"Apparel"]
["CMPFRPA","317384937","Rib Protector; Adult: Medium, Large (Specify Size)","$22.2",null,"Apparel"]
["CMPFRPY","317384945","Rib Protector; Youth","$22.2",null,"Apparel"]
["CHPRHMC1APLUS","319432394","Rink Textured Mesh Short; A: 2XL*","$13.83",null,"Apparel"]
["CHPRHMC1A","319432386","Rink Textured Mesh Short; A: S-XL*","$12.03",null,"Apparel"]
["CHPRHMC1Y","319432408","Rink Textured Mesh Short; Y:: S-L","$10.96",null,"Apparel"]
["CHPRAS9","319421228","Rival Crew Sock; S/M; L/XL","$4.27",null,"Apparel"]
["CHPRAS96","319421236","Rival Crew Sock; S/M; L/XL; 6-Pack","$22.99",null,"Apparel"]
["CMPBPVY","317382578","Rookie Economy Pull-Up Baseball Pant; White; Black; Grey; Youth: XXS-XL (Specify Color and Size)","$5.61",null,"Apparel"]
["CHPRBPVY","319426289","Rookie Economy Pull-Up Pant; White; Black; Grey; Youth: XXS-XL","$5.87",null,"Apparel"]
["CHPRFPAU13PLUS","319431703","Safety Dyno-Stretch Pant; A: 2XL-3XL*","$26.75",null,"Apparel"]
["CHPRFPAU13","31943169X","Safety Dyno-Stretch Pant; A: S-XL*","$23.26",null,"Apparel"]
["CHPRFPYU13PLUS","319431967","Safety Dyno-Stretch Pant; Y: 2XL & Husky*","$22.44",null,"Apparel"]
["CHPRFPYU13","319431959","Safety Dyno-Stretch Pant; Y: XXS-XL & Husky*","$19.52",null,"Apparel"]
["CMPFSP5","317384953","Scorpion Youth Football Shoulder Pad; XXS-2XL (Specify Size)","$32.09",null,"Apparel"]
["CHPRVS1WPLUS","319437493","Set Volleyball Short; 2.5\" Inseam; W: 2XL*","$10.75",null,"Apparel"]
["CHPRVS1W","319437477","Set Volleyball Short; 2.5\" Inseam; W: XS-XL*","$9.35",null,"Apparel"]
["CHPRVS2WPLUS","319437523","Set Volleyball Short; 4\" Inseam; W: 2XL*","$10.75",null,"Apparel"]
["CHPRVS2W","319437507","Set Volleyball Short; 4\" Inseam; W: XS-XL*","$9.35",null,"Apparel"]
["CMPVS2W","317387138","Set Volleyball Short; 4\" Inseam; Women's: XS-XL (Specify Size)","$9.62",null,"Apparel"]
["CHPRHS1A","319432424","Shift Hockey Socks; A: S/M, L/XL","$8.01",null,"Apparel"]
["CHPRHS1Y","319432432","Shift Hockey Socks; Y: XS (Mites), L/XL","$7.75",null,"Apparel"]
["CMPFSPSBPA","31738502X","Shockwave or Scorpion Back Plate; Adult","$10.69",null,"Apparel"]
["CMPFSPSBPY","317385038","Shockwave or Scorpion Back Plate; Youth","$10.16",null,"Apparel"]
["CHPRBBJR1PLUS","319422704","Short Sleeve Official's Jersey: A: 2-4XL*","$24.9",null,"Apparel"]
["CHPRBBJR1","319422682","Short Sleeve Official's Jersey: A: XS-XL*","$21.66",null,"Apparel"]
["CHPRFJ57A","319431274","Shuffle Stretch Practice Jersey; A: M, XL","$10.15",null,"Apparel"]
["CHPRFJ57Y","319431282","Shuffle Stretch Practice Jersey; Y: M, XL","$10.15",null,"Apparel"]
["CMPP422","317386913","Sideline Official Pinnies (Set of 3)","$16.31",null,"Apparel"]
["CHPRP422","319429482","Sideline Official Pinnies (Set Of 3)","$20.05",null,"Apparel"]
["CHPRAS8","31942121X","Skate Baselayer Hockey Socks; XS-L; Black/Grey","$4.54",null,"Apparel"]
["CHPRBBJ4APLUS","319422356","Slam Dunk Reversible Basketball Jersey; A: 2XL-4XL*","$14.76",null,"Apparel"]
["CHPRBBJ4A","319430065","Slam Dunk Reversible Basketball Jersey; Men'S: S4Xl*","$12.83",null,"Apparel"]
["CHPRBBJ4WPLUS","319422372","Slam Dunk Reversible Basketball Jersey; W: 2XL*","$14.76",null,"Apparel"]
["CHPRBBJ4W","319430081","Slam Dunk Reversible Basketball Jersey; Women: S2Xl*","$12.83",null,"Apparel"]
["CHPRBBJ4Y","319422399","Slam Dunk Reversible Basketball Jersey; Youth: S-XL","$12.03",null,"Apparel"]
["CHPRBBS4APLUS","319423689","Slam Dunk Reversible Basketball Short; A: 2XL-4XL*; 9\" Inseam","$14.76",null,"Apparel"]
["CHPRBBS4A","319423662","Slam Dunk Reversible Basketball Short; A: S-XL*; 9\" Inseam","$12.83",null,"Apparel"]
["CMPBBS4A","317381598","Slam Dunk Reversible Basketball Short; Adult: S-XL; 9\" Inseam (Specify Color and Size)","$13.1",null,"Apparel"]
["CHPRBBS4Y","319423697","Slam Dunk Reversible Basketball Short; Youth: S-XL; 7\" Inseam","$12.03",null,"Apparel"]
["CMPBBS4Y","31738161X","Slam Dunk Reversible Basketball Short; Youth: S-XL; 7\" Inseam (Specify Color and Size)","$10.69",null,"Apparel"]
["CHPRCJ1APLUS","319424219","Sleeveless Compression Shirt; A: 2XL-4XL*","$16.29",null,"Apparel"]
["CHPRCJ1A","319424197","Sleeveless Compression Shirt; A: S-XL*","$14.17",null,"Apparel"]
["CHPRCJ1Y","319424235","Sleeveless Compression Shirt; Y: S-L","$12.29",null,"Apparel"]
["CHPRFV","319429547","Soccer Scrimmage Vest; 6/Pack; Adult","$4",null,"Apparel"]
["CHPRSOCV6A","319436845","Soccer Scrimmage Vest; 6/Pack; Adult: M, XL","$22.46",null,"Apparel"]
["CHPRSOCV6Y","319436853","Soccer Scrimmage Vest; 6/Pack; Youth: M, XL","$18.18",null,"Apparel"]
["CHPRSOCVA","31943687X","Soccer Scrimmage Vest; A: M, XL","$4",null,"Apparel"]
["CHPRSOCVY","319436896","Soccer Scrimmage Vest; Youth: M, XL","$3.2",null,"Apparel"]
["CMPSSG6","317387081","Sock Style Shin Guard; XXS/XS, S/M and M/L; Black, White (Specify Color and Size)","$9.36",null,"Apparel"]
["CHPRVJ13WPLUS","319437388","Spike Active Jersey; W: 2XL*","$10.75",null,"Apparel"]
["CHPRVJ13W","319437361","Spike Active Jersey; W: XS-XL*","$9.35",null,"Apparel"]
["CHPRTFS02APLUS","319437191","Sprinter Track Short; A: 2XL-3XL*","$9.52",null,"Apparel"]
["CHPRTFS02A","319437175","Sprinter Track Short; A: S-XL*","$8.28",null,"Apparel"]
["CHPRTFS02WPLUS","31943723X","Sprinter Track Short; W: 2XL*","$9.52",null,"Apparel"]
["CHPRTFS02W","319437213","Sprinter Track Short; W: S-XL*","$8.28",null,"Apparel"]
["CHPRTFS02Y","319437256","Sprinter Track Short; Youth: S-L","$6.94",null,"Apparel"]
["CHPRRTBST02A","319436276","Stalk Long Sleeve Camo Jersey; A: S-XL*","$14.43",null,"Apparel"]
["CHPRRTBST02Y","319436292","Stalk Long Sleeve Camo Jersey; Y: S-XL","$12.83",null,"Apparel"]
["CHPRBST21G","319422062","Star T-Shirt; Girl's: S-L","$5.34",null,"Apparel"]
["CMPBST21G","317383175","Star T-Shirt; Girl's: S-L (Specify Color and Size)","$4.81",null,"Apparel"]
["CHPRBST21WPLUS","319422070","Star T-shirt; W: 2XL*","$6.14",null,"Apparel"]
["CHPRBST21W","319424871","Star T-shirt; W: XS-XL*","$5.34",null,"Apparel"]
["CMPBST21W","317383183","Star T-Shirt; Women's: XS-XL (Specify Color and Size)","$5.61",null,"Apparel"]
["CHPRFLJ4APLUS","31943155X","Stick Reversible Polyester Tricot Mesh Jersey; A: 2XL/3XL*","$8.29",null,"Apparel"]
["CHPRFLJ4A","319431541","Stick Reversible Polyester Tricot Mesh Jersey; A: S/M, L/XL","$7.21",null,"Apparel"]
["CHPRFLJ4Y","319431568","Stick Reversible Polyester Tricot Mesh Jersey; Youth: S/M, L/XL","$6.68",null,"Apparel"]
["CMPFLJ4Y","317384384","Stick Reversible Polyester Tricot Mesh Jersey; Youth: S/M, L/XL (Specify Color and Size)","$5.61",null,"Apparel"]
["CHPRAS10","319421155","Striped Soccer Sock; XS-L","$6.41",null,"Apparel"]
["CHPRAS3","319421171","Striped Sock; XS-L","$4.54",null,"Apparel"]
["CHPRBST108APLUS","319421902","Superior Recycled Lifestyle Tee; A: 2XL-4XL*","$7.37",null,"Apparel"]
["CHPRBST108A","319421880","Superior Recycled Lifestyle Tee; A: S-XL*","$6.41",null,"Apparel"]
["CHPRBST108W","319421937","Superior Recycled Lifestyle Tee; W: XS-XL*","$6.41",null,"Apparel"]
["CHPRBST108Y","319421945","Superior Recycled Lifestyle Tee; Y: S-L","$5.87",null,"Apparel"]
["CHPRBP28G","319424421","Surge 2-Color Softball Pants; Girls: S-XL","$18.98",null,"Apparel"]
["CMPBP28G","317381962","Surge 2-Color Softball Pants; Girls: S-XL (Specify Color and Size)","$15.51",null,"Apparel"]
["CHPRBP28WPLUS","319424464","Surge 2-Color Softball Pants; W: 2XL*","$23.67",null,"Apparel"]
["CHPRBP28W","319424448","Surge 2-Color Softball Pants; W: S-XL*","$20.59",null,"Apparel"]
["CMPBP28W","317381970","Surge 2-Color Softball Pants; Womens: S-XL (Specify Color and Size)","$19.79",null,"Apparel"]
["CHPRSJ30A","319436756","Sweeper Soccer Jersey; Adult: S-XL - Limited Quantities Available","$6.41",null,"Apparel"]
["CHPRSJ30Y","319436772","Sweeper Soccer Jersey; Youth: S-XL - Limited Quantities Available","$5.61",null,"Apparel"]
["CHPRSS30A","31943849X","Sweeper Soccer Short; Adult: Sxl","$5.34",null,"Apparel"]
["CMPSS30A","317387065","Sweeper Soccer Short; Adult: S-XL; 6\" Inseam (Specify Color and Size)","$6.41",null,"Apparel"]
["CHPRSS30Y","319436993","Sweeper Soccer Short; Youth: S-XL; Graded Inseam - Limited Quantities Available","$4.54",null,"Apparel"]
["CMPSS30Y","317387073","Sweeper Soccer Short; Youth: S-XL; Graded Inseam (Specify Color and Size)","$5.88",null,"Apparel"]
["CHPRBBJ41G","319422283","Swish Basketball Jersey; G: S-L","$13.63",null,"Apparel"]
["CHPRBBJ41WPLUS","319422313","Swish Basketball Jersey; W: 2XL*","$16.6",null,"Apparel"]
["CHPRBBJ41W","319422305","Swish Basketball Jersey; W: S-XL*","$14.43",null,"Apparel"]
["CHPRBBS41G","319423484","Swish Basketball Short; G: S-L; 6\" Inseam","$13.63",null,"Apparel"]
["CHPRBBS41WPLUS","319423514","Swish Basketball Short; W: 2XL*; 8\" Inseam","$16.6",null,"Apparel"]
["CHPRBBS41W","319423492","Swish Basketball Short; W: S-XL*; 8\" Inseam","$14.43",null,"Apparel"]
["CHPRBBS41Y","319423530","Swish Basketball Shorts: Y: S-XL","$13.63",null,"Apparel"]
["CHPRBBS41APLUS","31942345X","Swish Basketball Shorts; A: 2--4XL*","$16.6",null,"Apparel"]
["CHPRBBS41A","319423433","Swish Basketball Shorts; A: S--XL*","$14.43",null,"Apparel"]
["CHPRBBJ41APLUS","319422267","Swish Reversible Basketball Jersey; A: 2XL-4XL*","$16.6",null,"Apparel"]
["CHPRBBJ41A","319422240","Swish Reversible Basketball Jersey; A: S-XL*","$14.43",null,"Apparel"]
["CHPRBBJ41Y","31942233X","Swish Reversible Basketball Jersey; Y: S-XL","$13.63",null,"Apparel"]
["CHPRFPAU19PLUS","31943172X","Terminator 2 Stretch Dazzle Pant w/Built-In Pads; A: 2XL-3XL*","$27.98",null,"Apparel"]
["CHPRFPAU19","319431711","Terminator 2 Stretch Dazzle Pant w/Built-In Pads; A: S-XL*","$24.33",null,"Apparel"]
["CHPRFPYU19PLUS","319431983","Terminator 2 Stretch Dazzle Pant w/Built-in Pads; Y: 2XL & Husky*","$25.83",null,"Apparel"]
["CHPRFPYU19","319431975","Terminator 2 Stretch Dazzle Pant w/Built-in Pads; Y: XXS-XL & Husky*","$22.46",null,"Apparel"]
["CHPRBPR1","319425932","The Field Officials' Pant; Adult: 30-46; Grey - Limited Sizes & Quantities Available","$33.43",null,"Apparel"]
["CMPCM01","317383566","The Grill Softball Fielder's Facemask; Adult: 6 3/4 - 7 1/2 (Specify Color)","$20.06",null,"Apparel"]
["CMPCM01Y","317383574","The Grill Softball Fielder's Facemask; Youth: 6 1/4 - 6 3/4 (Specify Color)","$20.06",null,"Apparel"]
["CHPRFJ55APLUS","319431223","Time Out Stretch Practice Jersey; 3XL*","$13.21",null,"Apparel"]
["CHPRFJ55A","319431215","Time Out Stretch Practice Jersey; A: M, XL","$11.49",null,"Apparel"]
["CHPRFJ55Y","319431231","Time Out Stretch Practice Jersey; Youth: M, XL","$11.49",null,"Apparel"]
["CHPRBST65APLUS","319422127","Top Spin Z-75 Fitted Jersey; A: 2XL-3XL*","$9.83",null,"Apparel"]
["CHPRBST65A","319422097","Top Spin Z-75 Fitted Jersey; A: S-XL*","$8.55",null,"Apparel"]
["CHPRBST65Y","319422135","Top Spin Z-75 Fitted Jersey; Youth: S-XL","$8.01",null,"Apparel"]
["CHPRFP12APLUS","319431657","Touchback Dyno-Stretch Pant; A: 2XL-5XL*","$14.14",null,"Apparel"]
["CHPRFP12A","319431649","Touchback Dyno-Stretch Pant; A: S-XL*","$12.29",null,"Apparel"]
["CHPRFP12Y","319431665","Touchback Dyno-Stretch Pant; Youth: S-XL & Husky*","$10.69",null,"Apparel"]
["CMPFP12A","317384457","Touchback Dyno-Stretch Practive Football Pant; Adult: S-XL (Specify Color and Size)","$12.3",null,"Apparel"]
["CMPFP12Y","317384473","Touchback Dyno-Stretch Practive Football Pant; Youth: S-XL & Husky (Specify Color and Size)","$9.36",null,"Apparel"]
["CHPRBP11Y","319424324","Tournament Low Rise Softball Pant; Girls: S-XL","$14.97",null,"Apparel"]
["CMPBP11Y","317381911","Tournament Low Rise Softball Pant; Girls: S-XL (Specify Color and Size)","$14.44",null,"Apparel"]
["CHPRBP11PY","319424308","Tournament Low Rise Softball Pant; Piped; Girls: S-XL","$16.84",null,"Apparel"]
["CMPBP11PY","317381873","Tournament Low Rise Softball Pant; Piped; Girls: S-XL (Specify Color and Size)","$15.51",null,"Apparel"]
["CHPRBP11PAPLUS","319424286","Tournament Low Rise Softball Pant; Piped; W: 2XL*","$21.21",null,"Apparel"]
["CHPRBP11PA","31942426X","Tournament Low Rise Softball Pant; Piped; W: S-XL*","$18.45",null,"Apparel"]
["CMPBP11PA","317381857","Tournament Low Rise Softball Pant; Piped; Women: S-XL (Specify Color and Size)","$15.51",null,"Apparel"]
["CHPRBP11APLUS","319424243","Tournament Low Rise Softball Pant; W: 2XL*","$20.29",null,"Apparel"]
["CHPRBP11A","319424227","Tournament Low Rise Softball Pant; W: S-XL*","$17.64",null,"Apparel"]
["CMPBP11A","317381830","Tournament Low Rise Softball Pant; Women: S-XL (Specify Color and Size)","$14.44",null,"Apparel"]
["CMPJFJ1Y","317386050","Traditional Football Jersey; Youth: S-XL; Mixed, Custom Printing Included (Specify Color and Size)","$48.11",null,"Apparel"]
["CHPRFJU6APLUS","319431398","TRI-FLEX Compression Shirt w/ Cushion System; Adult 2XL-4XL*","$40.29",null,"Apparel"]
["CMPFJU6A","317384236","TRI-FLEX Compression Shirt w/ Cushion System; Adult S-XL (Specify Color and Size)","$35.3",null,"Apparel"]
["CHPRFJU6A","31943138X","TRI-FLEX Compression Shirt w/ Cushion System; Adult S-XL*","$35.03",null,"Apparel"]
["CHPRFJU6Y","319431401","TRI-FLEX Compression Shirt w/ Cushion System; Youth S-L","$31.55",null,"Apparel"]
["CMPFJU6Y","317384252","TRI-FLEX Compression Shirt w/ Cushion System; Youth S-L (Specify Color and Size)","$28.62",null,"Apparel"]
["CMPFPGU6A","317384813","TRI-FLEX Integrated Girdle; 5 Built-In Pads; VarsitYouth: S-XL (Specify Color and Size)","$42.79",null,"Apparel"]
["CMPFPGU6Y","31738483X","TRI-FLEX Integrated Girdle; 5 Built-In Pads; Youth: S-L (Specify Color and Size)","$32.9",null,"Apparel"]
["CHPRBP70APLUS","319425215","Triple Crown 2.0 Knicker Pant w/Braid; A: 2XL-4XL*","$23.06",null,"Apparel"]
["CHPRBP70A","319425185","Triple Crown 2.0 Knicker Pant w/Braid; A: S-XL*","$20.05",null,"Apparel"]
["CHPRBP70Y","319425258","Triple Crown 2.0 Knicker Pant w/Braid; Youth: XS-XL","$17.11",null,"Apparel"]
["CHPRBP68APLUS","319425126","Triple Crown 2.0 Knicker Pant; A: 2XL-4XL*","$21.52",null,"Apparel"]
["CHPRBP68A","31942510X","Triple Crown 2.0 Knicker Pant; A: S-XL*","$18.71",null,"Apparel"]
["CHPRBP68Y","319425150","Triple Crown 2.0 Knicker Pant; Youth: XS-XL","$15.5",null,"Apparel"]
["CHPRBP62APLUS","319424863","Triple Crown 2.0 Open Bottom Pant w/Piping; A: 2XL-4XL*","$25.52",null,"Apparel"]
["CHPRBP62A","319424812","Triple Crown 2.0 Open Bottom Pant w/Piping; A: S-XL*","$22.19",null,"Apparel"]
["CHPRBP62Y","319424898","Triple Crown 2.0 Open Bottom Pant w/Piping; Youth: XS-XL","$18.71",null,"Apparel"]
["CHPRBP60APLUS","319424774","Triple Crown 2.0 Open Bottom Pant; A: 2XL-4XL*","$23.67",null,"Apparel"]
["CHPRBP60A","319424758","Triple Crown 2.0 Open Bottom Pant; A: S-XL*","$20.59",null,"Apparel"]
["CHPRBP60Y","319424790","Triple Crown 2.0 Open Bottom Pant; Youth: XS-XL","$17.64",null,"Apparel"]
["CHPRBP66APLUS","319425037","Triple Crown 2.0 Tapered Bottom Pant w/Piping; A: 2XL-4XL*","$23.98",null,"Apparel"]
["CHPRBP66A","319425010","Triple Crown 2.0 Tapered Bottom Pant w/Piping; A: S-XL*","$20.85",null,"Apparel"]
["CHPRBP66Y","319425061","Triple Crown 2.0 Tapered Bottom Pant w/Piping; Youth: XS-XL","$18.18",null,"Apparel"]
["CHPRBP64APLUS","319424944","Triple Crown 2.0 Tapered Bottom Pant; A:2XL-4XL*","$21.52",null,"Apparel"]
["CHPRBP64A","319424928","Triple Crown 2.0 Tapered Bottom Pant; A:S-XL*","$18.71",null,"Apparel"]
["CHPRBP64Y","319424979","Triple Crown 2.0 Tapered Bottom Pant; Youth: XS-XL","$15.5",null,"Apparel"]
["CMPBP91A","317382136","Triple Crown Classic Pant With Braid; Adult: S-XL (Specify Color and Size)","$20.59",null,"Apparel"]
["CMPBP91Y","317382187","Triple Crown Classic Pant With Braid; Youth: XS-XL (Specify Color and Size)","$15.51",null,"Apparel"]
["CHPRBP91APLUS","319425312","Triple Crown Classic Pant; A: 2XL-4XL*","$23.98",null,"Apparel"]
["CHPRBP9APLUS","319425541","Triple Crown Classic Pant; A: 2XL-4XL*","$21.52",null,"Apparel"]
["CHPRBP9A","319425517","Triple Crown Classic Pant; A: S-XL*","$18.71",null,"Apparel"]
["CHPRBP91A","319425282","Triple Crown Classic Pant; A: S-XL*","$20.85",null,"Apparel"]
["CMPBP9A","317382225","Triple Crown Classic Pant; Adult: S-XL (Specify Color and Size)","$18.99",null,"Apparel"]
["CHPRBP91Y","319430200","Triple Crown Classic Pant; Youth: Sxl","$18.18",null,"Apparel"]
["CHPRBP9Y","319425592","Triple Crown Classic Pant; Youth: XS-XL","$15.5",null,"Apparel"]
["CMPBP9Y","317382276","Triple Crown Classic Pant; Youth: XS-XL (Specify Color and Size)","$13.64",null,"Apparel"]
["CHPRBP10APLUS","319424189","Triple Crown Knicker Belted Pant; A: 2XL*","$21.52",null,"Apparel"]
["CHPRBP10A","319424162","Triple Crown Knicker Belted Pant; A: S-XL*","$18.71",null,"Apparel"]
["CMPBP10A","317381806","Triple Crown Knicker Belted Pant; Adult: S-XL (Specify Color and Size)","$18.99",null,"Apparel"]
["CHPRBP10Y","319424200","Triple Crown Knicker Belted Pant; Youth: XS-XL","$15.5",null,"Apparel"]
["CMPBP10Y","317381822","Triple Crown Knicker Belted Pant; Youth: XS-XL (Specify Color and Size)","$13.64",null,"Apparel"]
["CHPRBP101APLUS","31942412X","Triple Crown Knicker Pant w/Braid; A: 2XL-4XL*","$23.06",null,"Apparel"]
["CHPRBP101A","319424111","Triple Crown Knicker Pant w/Braid; A: S-XL*","$20.05",null,"Apparel"]
["CMPBP101A","317381776","Triple Crown Knicker Pant w/Braid; Adult: S-XL (Specify Color and Size)","$20.59",null,"Apparel"]
["CHPRBP101Y","319424146","Triple Crown Knicker Pant w/Braid; Youth: XS-XL","$17.11",null,"Apparel"]
["CMPBP101Y","317381792","Triple Crown Knicker Pant w/Braid; Youth: XS-XL (Specify Color and Size)","$14.97",null,"Apparel"]
["CHPRBP92UAPLUS","319425452","Triple Crown Open-Bottom 2; A: 2XL-4XL*","$29.21",null,"Apparel"]
["CHPRBP92UA","319425428","Triple Crown Open-Bottom 2; A: S-XL*","$25.4",null,"Apparel"]
["CHPRBP92UY","319425487","Triple Crown Open-Bottom 2; Youth: S-XL","$22.19",null,"Apparel"]
["CHPRBP91UAPLUS","319425363","Triple Crown Open-Bottom Belted Pant w/Piping; A: 2XL-4XL*","$25.52",null,"Apparel"]
["CHPRBP91UA","319425347","Triple Crown Open-Bottom Belted Pant w/Piping; A: S-XL*","$22.19",null,"Apparel"]
["CHPRBP91UY","319425398","Triple Crown Open-Bottom Belted Pant w/Piping; Youth: XS-XL","$18.71",null,"Apparel"]
["CHPRBP9UAPLUS","319425576","Triple Crown Open-Bottom Belted Pant; A: 2XL-4XL*","$23.67",null,"Apparel"]
["CHPRBP9UA","319430227","Triple Crown Openbottom Belted Pant; Adult: S4Xl*","$20.59",null,"Apparel"]
["CMPBP9UA","317382241","Triple Crown Open-Bottom Belted Pant; Adult: S-XL (Specify Color and Size)","$21.13",null,"Apparel"]
["CHPRBP9UY","319430243","Triple Crown Openbottom Belted Pant; Youth: Xsxl","$17.64",null,"Apparel"]
["CMPBP9UY","317382268","Triple Crown Open-Bottom Belted Pant; Youth: XS-XL (Specify Color and Size)","$14.97",null,"Apparel"]
["CHPRBPPINUAPLUS","319425843","Triple Crown Open-Bottom Belted Pin-Stripe Pant; A: 2XL-4XL*","$27.68",null,"Apparel"]
["CHPRBPPINUA","319425819","Triple Crown Open-Bottom Belted Pin-Stripe Pant; A: S-XL*","$24.06",null,"Apparel"]
["CHPRBPPINUY","319425878","Triple Crown Open-Bottom Belted Pin-Stripe Pant; Youth: S-XL","$20.59",null,"Apparel"]
["CHPRBPPINKAPLUS","319425754","Triple Crown Pinstripe Knicker; A: 2XL*","$25.83",null,"Apparel"]
["CHPRBPPINKA","31942572X","Triple Crown Pinstripe Knicker; A: S-XL*","$22.46",null,"Apparel"]
["CMPBPPINKA","317382322","Triple Crown Pinstripe Knicker; Adult: S-XL (Specify Color and Size)","$23",null,"Apparel"]
["CHPRBPPINKY","319425789","Triple Crown Pinstripe Knicker; Youth: XS-XL","$19.25",null,"Apparel"]
["CMPBPPINKY","317382349","Triple Crown Pinstripe Knicker; Youth: XS-XL (Specify Color and Size)","$17.11",null,"Apparel"]
["CHPRBPPINAPLUS","31942569X","Triple Crown Pinstripe Pant; A: 2XL-4XL*","$26.14",null,"Apparel"]
["CHPRBPPINA","319425673","Triple Crown Pinstripe Pant; A: S-XL*","$22.73",null,"Apparel"]
["CMPBPPINA","317382306","Triple Crown Pinstripe Pant; Adult: S-XL (Specify Color and Size)","$23",null,"Apparel"]
["CHPRBPPINY","319425908","Triple Crown Pinstripe Pant; Youth: XS-XL","$19.52",null,"Apparel"]
["CMPBPPINY","317382381","Triple Crown Pinstripe Pant; Youth: XS-XL (Specify Color and Size)","$17.11",null,"Apparel"]
["CHPRVJ8G","319437418","Triumphant Jersey; Girls: S-L","$14.7",null,"Apparel"]
["CHPRVJ8WPLUS","319437442","Triumphant Jersey; W: 2XL*","$18.75",null,"Apparel"]
["CHPRVJ8W","319437426","Triumphant Jersey; W: S-XL*","$16.31",null,"Apparel"]
["CHPRBS53APLUS","319427951","Turn Two 2 Button Jersey; A: 2XL-4XL*","$10.14",null,"Apparel"]
["CHPRBS53A","319427919","Turn Two 2 Button Jersey; A: S-XL*","$8.82",null,"Apparel"]
["CHPRBS53Y","319427986","Turn Two 2 Button Jersey; Youth: S-XL","$8.28",null,"Apparel"]
["CHPRBSR1PLUS","319421864","UMP DRI-GEAR Jersey; A: 2XL-3XL*","$21.52",null,"Apparel"]
["CHPRBSR1","319424820","Ump Drigear Jersey; Adult: S3Xl*","$18.71",null,"Apparel"]
["CHPRA071","319420450","Umpire Patent Leather Belt; S-XL;","$11.49",null,"Apparel"]
["CHPRA069","319420442","Umpire PU Leather Belt; S-XL;","$10.69",null,"Apparel"]
["CMPE43","317383698","Varsity Football Equipment Bag; 28\" x 15\" x 15\" (Specify Color)","$38.51",null,"Apparel"]
["CHPRBBS33APLUS","319423409","Victorious Basketball Short; A: 2XL-3XL*; 9\" Inseam","$9.22",null,"Apparel"]
["CHPRBBS33A","319423387","Victorious Basketball Short; A: S-XL*; 9\" Inseam","$8.01",null,"Apparel"]
["CHPRBBS33Y","319423425","Victorious Basketball Short; Youth: S-XL; 7\" Inseam","$6.41",null,"Apparel"]
["CHPRBBJ33APLUS","319422208","Victorious Double-Ply Basketball Jersey; A:2XL-3XL*; 9\" Inseam","$13.21",null,"Apparel"]
["CHPRBBJ33A","319422186","Victorious Double-Ply Basketball Jersey; A:S-XL*; 9\" Inseam","$11.49",null,"Apparel"]
["CHPRBBJ33Y","319422224","Victorious Double-Ply Basketball Jersey; Y: S-XL; 7\" Inseam","$10.69",null,"Apparel"]
["CHPRBST99LSAPLUS","319422321","Vision Long Sleeve Shirt; A: 2XL-4XL*","$6.14",null,"Apparel"]
["CHPRBST99LSA","319422291","Vision Long Sleeve Shirt; A: S-XL*","$5.34",null,"Apparel"]
["CHPRBST99LSWPLUS","319422364","Vision Long Sleeve Shirt; W: 2XL*","$6.14",null,"Apparel"]
["CHPRBST99LSW","319422348","Vision Long Sleeve Shirt; W: XS-XL*","$5.34",null,"Apparel"]
["CHPRBST99LSY","319422380","Vision Long Sleeve Shirt; Youth: XS-L","$5.34",null,"Apparel"]
["CHPRBBS44G","319423603","Vision Shorts; 7\" Inseam; G: S-L","$5.07",null,"Apparel"]
["CHPRBBS44Y","319423646","Vision Shorts; 7\" Inseam; Y: S-XL","$5.07",null,"Apparel"]
["CHPRBBS44W","31942362X","Vision Shorts; 8\" Inseam; W: S-XL","$5.07",null,"Apparel"]
["CHPRBBS44APLUS","319423573","Vision Shorts; 9\" Inseam; A: 2XL-3XL*","$5.83",null,"Apparel"]
["CHPRBBS44A","319423557","Vision Shorts; 9\" Inseam; A: S-XL*","$5.07",null,"Apparel"]
["CHPRBST99APLUS","319422259","Vision T-Shirt Jersey; A: 2XL-4XL*","$4.3",null,"Apparel"]
["CHPRBST99A","319422232","Vision T-Shirt Jersey; A: S-XL*","$3.73",null,"Apparel"]
["CHPRBST99Y","319422453","Vision T-Shirt Jersey;Youth: XS-XL","$3.73",null,"Apparel"]
["CHPRBST99G","319422275","Vision T-Shirt; Girls: XS-L","$3.73",null,"Apparel"]
["CHPRBST99WPLUS","319422437","Vision T-Shirt; W: 2XL*","$4.3",null,"Apparel"]
["CHPRBST99W","319422410","Vision T-Shirt; W: XS-XL*","$3.73",null,"Apparel"]
["CHPRWBCCS2","319437558","Water Bottle Carrier Set, A9S2; 8 pc","$45.73",null,"Apparel"]
["CHPRWBCCV","319437574","Water Bottle Carrier Set, A9V; 8 pc","$44.39",null,"Apparel"]
["CHPRBS63APLUS","319428044","Wild Card Z-75 2-Button Placket Jersey; A: 2XL-3XL*","$10.75",null,"Apparel"]
["CHPRBS63A","319428001","Wild Card Z-75 2-Button Placket Jersey; A: S-XL*","$9.35",null,"Apparel"]
["CHPRBS63Y","319428060","Wild Card Z-75 2-Button Placket Jersey; Youth: S-XL","$8.82",null,"Apparel"]
["CHPRBPS15CAPLUS","319426130","Wind-Up Compression Sliding Short w/Cup; A: 2XL*","$18.14",null,"Apparel"]
["CHPRBPS15CA","319426092","Wind-Up Compression Sliding Short w/Cup; A: S-XL*","$15.77",null,"Apparel"]
["CMPBPS15CA","317382519","Wind-Up Compression Sliding Short w/Cup; Adult S-XL (Specify Color and Size)","$14.17",null,"Apparel"]
["CHPRBPS15CY","319426165","Wind-Up Compression Sliding Short w/Cup; Youth: XS-L","$15.24",null,"Apparel"]
["CMPBPS15CY","317382535","Wind-Up Compression Sliding Short w/Cup; Youth: XS-L (Specify Color and Size)","$11.5",null,"Apparel"]
["CHPRBPS15APLUS","319426068","Wind-Up Compression Sliding Short; A: 2XL*","$13.21",null,"Apparel"]
["CHPRBPS15A","319426033","Wind-Up Compression Sliding Short; A: S-XL*","$11.49",null,"Apparel"]
["CMPBPS15A","317382497","Wind-Up Compression Sliding Short; Adult: S-XL (Specify Color and Size)","$11.5",null,"Apparel"]
["CMPBPS15Y","317382543","Wind-Up Compression Sliding Short; Youth (Specify Color and Size)","$9.36",null,"Apparel"]
["CHPRBPS15Y","31942619X","Wind-Up Compression Sliding Short; Youth:","$11.49",null,"Apparel"]
["CMPJPL1WBX","317386417","Women's Polo Shirt; Adult: 2XL-3XL; BirdsEye Mesh, Custom Printing Included (Specify Color and Size)","$44.94",null,"Apparel"]
["CMPJPL1WB","317386409","Women's Polo Shirt; Adult: XS-XL; BirdsEye Mesh, Custom Printing Included (Specify Color and Size)","$39.08",null,"Apparel"]
["CHPRBPS16W","319426246","Women's Sliding Short; Women's : XS-2XL*","$10.69",null,"Apparel"]
["CMPBPS16W","317382551","Women's Sliding Short; Women's : XS-XL (Specify Color and Size)","$10.96",null,"Apparel"]
["CHPRBSJ200APLUS","319421821","Woven Warm-Up Jacket; A: 2XL-4XL*","$29.52",null,"Apparel"]
["CHPRBSJ200A","319421805","Woven Warm-Up Jacket; A: S-XL*","$25.67",null,"Apparel"]
["CHPRBSJ200Y","319421848","Woven Warm-Up Jacket; Youth: S-L","$24.33",null,"Apparel"]
["CHPRBBJPAPLUS","319422607","Zone Polyester Tricot Reversible Basketball Jersey; A: 2XL-3XL*","$9.22",null,"Apparel"]
["CHPRBBJPA","319430103","Zone Polyester Tricot Reversible Basketball Jersey; Men'S: S3Xl*","$8.01",null,"Apparel"]
["CHPRBBJPWPLUS","31942264X","Zone Polyester Tricot Reversible Basketball Jersey; W: 2XL*","$8.91",null,"Apparel"]
["CHPRBBJPW","319422623","Zone Polyester Tricot Reversible Basketball Jersey; W: S-XL*","$7.75",null,"Apparel"]
["CHPRBBJPY","319422666","Zone Polyester Tricot Reversible Basketball Jersey; Youth: XS-L","$7.48",null,"Apparel"]

{"sheet":"Baseball and Softball","index":3,"n_rows":389,"n_cols":6,"rows_kept":389,"cut":false,"hidden":false,"merged":[]}
[null,null,null,"Back Home","Website",{"$f":"HYPERLINK(\"https://www.unitedsupplycorp.com/\", \"https://www.unitedsupplycorp.com/\")","v":"https://www.unitedsupplycorp.com/"}]
[null,null,null,null,"Email ","orders@unitedsupplycorp.com"]
[null,null,null,null,"Phone ","718-439-9387"]
[]
[]
["United SKU","DOE Item Number","Title","DOE Price","Image","Category"]
["CHPRCSB93","319426742","10\" Control Flight Ball; 1-Dozen","$94.15",null,"Baseball and Softball"]
["CHPRCSB94","319426777","10\" Control Flight Ball; 4-Pack White Box","$38.51",null,"Baseball and Softball"]
["CHPRCSB95","319430596","10\" Control Flight Ball; 6-Pack","$52.15",null,"Baseball and Softball"]
["CHPRCSB67","319426440","10/Safetsoft/Synthetic/Optic Yellow Softball","$57.5",null,"Baseball and Softball"]
["CHPRCSB-57Y","319430448","11\" Dimple Molded Softball; Optic Yellow Softball","$54.29",null,"Baseball and Softball"]
["CHPRCSB-57","31943043X","11\" Dimple Molded Softball; Yellow Softball","$54.29",null,"Baseball and Softball"]
["CHPRCSB69","319430480","11\" Slow Pitch Practice Softball","$57.77",null,"Baseball and Softball"]
["CHPRCSB99","319430626","11\" Unafiliated for Practice Softballs","$70.07",null,"Baseball and Softball"]
["CHPRCSB83","319426653","11/0.44/Blue/Synthetic/Polyurethane/400/Yellow/Usssa/Game Slow Pitch Softball","$65.79",null,"Baseball and Softball"]
["CHPRCSB17","319425851","11/0.44/Red/Synthetic/Polyurethane/375/Yellow/Asa/Game Fast Pitch Softball","$65.79",null,"Baseball and Softball"]
["CHPRCSB41","319426084","11/0.47/Blue/Leather/Polyurethane/375/Yellow/Usssa/Tournament Fast Pitch Softball","$89.87",null,"Baseball and Softball"]
["CHPRCSB43","319426149","11/0.47/Blue/Synthetic/Polyurethane/375/Yellow/Usssa/Game Fast Pitch Softball","$65.79",null,"Baseball and Softball"]
["CHPRCSB13","319425827","11/0.47/Red/Leather/Polyurethane/375/Yellow/Asa/Tournament Fast Pitch Softball","$89.87",null,"Baseball and Softball"]
["CHPRCSB66","319426416","11/0.47/Red/Synthetic/Polyurethane/375/Yellow/Recreation Fast Pitch Softball","$52.95",null,"Baseball and Softball"]
["CHPRCSB25Y","319426017","11/0.52/Red/Synthetic/Polyurethane/300/Yellow/Asa/Game Slow Pitch Softball","$70.07",null,"Baseball and Softball"]
["CHPRCSB63","319426343","11/Safetsoft/Synthetic/Optic Yellow Softball","$71.41",null,"Baseball and Softball"]
["CHPRE20B","319426807","12 Bat Fence/Carry Bag","$26.47",null,"Baseball and Softball"]
["CHPRCSB7S","319426599","12 Weighted Training Softballs; 9, 10, 11, & 12 Oz.","$43.86",null,"Baseball and Softball"]
["CHPRCSB7AS","31942653X","12 Weighted Training Softballs; Advanced; 11 & 12 Oz.","$28.61",null,"Baseball and Softball"]
["CHPRCSB7BS","319426556","12 Weighted Training Softballs; Basic; 9 & 10 Oz.","$28.61",null,"Baseball and Softball"]
["CHPRCSB-59Y","319430464","12\" Dimple Molded Softball; Optic Yellow Softball","$54.29",null,"Baseball and Softball"]
["CHPRCSB-59","319430456","12\" Dimple Molded Softball; Yellow Softball","$54.29",null,"Baseball and Softball"]
["CHPRCSB54Y","31942622X","12\" Foam Pitching Machine Softball; Optic Yellow Softball","$35.83",null,"Baseball and Softball"]
["CHPRCSB53Y","319426211","12\" Foam Tough-Ball Softball; Optic Yellow Softball","$37.17",null,"Baseball and Softball"]
["CHPRCSBGEM","319430634","12\" Gem Softball","$79.97",null,"Baseball and Softball"]
["CHPRCSB97","31943060X","12\" Lite Control Flight Ball; 6-Pack","$40.11",null,"Baseball and Softball"]
["CHPRCSB-51B","319430405","12\" Poly Molded Softball; Optic Yellow; 3-Pack w/Retail Packaging Softball","$5.34",null,"Baseball and Softball"]
["CHPRCSB-51C","319430413","12\" Poly Molded Softball; Optic Yellow; 6-Pack w/Retail Packaging Softball","$10.69",null,"Baseball and Softball"]
["CHPRCSB-51Y","319430421","12\" Poly Molded Softball; Optic Yellow; Bulk Softball","$17.11",null,"Baseball and Softball"]
["CHPRCSB-51","319430391","12\" Poly Molded Softball; White; Bulk Softball","$17.11",null,"Baseball and Softball"]
["CHPRCSB68","319430472","12\" Slow Pitch Practice Softball","$57.77",null,"Baseball and Softball"]
["CHPRCSB52S","319426181","12\" Striped Training Softball Set;Softball","$13.63",null,"Baseball and Softball"]
["CHPRCSB98","319430618","12\" Unaffiliated for Practice Softballs","$70.07",null,"Baseball and Softball"]
["CHPRCSB84","319426688","12/0.40/Blue/Synthetic/Polyurethane/325/Yellow/Usssa/Game Slow Pitch Softball","$65.79",null,"Baseball and Softball"]
["CHPRCSB10Y","319425762","12/0.44/Red/Leather/Polyurethane/375/Yellow/Asa/Tournament Slow Pitch Softball","$89.87",null,"Baseball and Softball"]
["CHPRCSB18","319425886","12/0.44/Red/Synthetic/Polyurethane/375/Yellow/Asa/Game Fast Pitch Softball","$65.79",null,"Baseball and Softball"]
["CHPRCSB6Y","319426467","12/0.44/Red/Synthetic/Polyurethane/375/Yellow/Asa/Game Slow Pitch Softball","$65.79",null,"Baseball and Softball"]
["CHPRCSB42","319426114","12/0.47/Blue/Leather/Polyurethane/375/Yellow/Usssa/Tournament Fast Pitch Softball","$89.87",null,"Baseball and Softball"]
["CHPRCSB44","319426173","12/0.47/Blue/Synthetic/Polyurethane/375/Yellow/Usssa/Game Fast Pitch Softball","$65.79",null,"Baseball and Softball"]
["CHPRCSB88","319426718","12/0.47/Blue/Synthetic/Polyurethane/450/Yellow/Usssa/Game Slow Pitch Softball","$65.79",null,"Baseball and Softball"]
["CHPRCSB22","319425959","12/0.47/Red/Leather/Poly/375/Yellow/Little League/Tournament Fast Pitch Softball","$89.87",null,"Baseball and Softball"]
["CHPRCSB12","319425797","12/0.47/Red/Leather/Polyurethane/375/Yellow/Asa/Tournament Fast Pitch Softball","$89.87",null,"Baseball and Softball"]
["CHPRCSB5LYN","319426262","12/0.47/Red/Leather/Polyurethane/375/Yellow/Nfhs/Tournament Fast Pitch Softball","$89.87",null,"Baseball and Softball"]
["CHPRCSB28","31942605X","12/0.47/Red/Synthetic/Poly/375/Yellow/Little League/Game Fast Pitch Softball","$75.69",null,"Baseball and Softball"]
["CHPRCSB5DYN","319426254","12/0.47/Red/Synthetic/Polyurethane/375/Yellow/Nfhs/Game Fast Pitch Softball","$65.79",null,"Baseball and Softball"]
["CHPRCSB65","319426378","12/0.47/Red/Synthetic/Polyurethane/375/Yellow/Recreation Fast Pitch Softball","$52.95",null,"Baseball and Softball"]
["CHPRCSB20Y","319425916","12/0.52/Red/Leather/Polyurethane/300/Yellow/Asa/Tournament Slow Pitch Softball","$89.87",null,"Baseball and Softball"]
["CHPRCSB24Y","319425983","12/0.52/Red/Synthetic/Polyurethane/300/Yellow/Asa/Game Slow Pitch Softball","$70.07",null,"Baseball and Softball"]
["CHPRCSB62","319426319","12/Safetsoft/Synthetic/Optic Yellow Softball","$71.41",null,"Baseball and Softball"]
["CHPRB020","319429121","14 X 14 X 1 Waffle Bottom Rubber Base","$21.39",null,"Baseball and Softball"]
["CHPRB026B","319429172","14 X 14 X 1/2 Waffle Bottom Base Set; Set Of 4; Retail Box; White","$24.33",null,"Baseball and Softball"]
["CHPRB014","319429083","14 X 2 Canvas Cover Base Set","$51.35",null,"Baseball and Softball"]
["CHPRB011","319429024","14 X 2 Nylon Cover Base Set","$40.65",null,"Baseball and Softball"]
["CHPRB025","319421376","14\" x 14\" x 1/2\" Waffle Bottom Base Set; Set of 3; Bulk; White","$17.91",null,"Baseball and Softball"]
["CHPRB012","319429067","15 X 3 Canvas Cover Base Set","$70.07",null,"Baseball and Softball"]
["CHPRB010","319429008","15 X 3 Nylon Cover Base Set","$54.29",null,"Baseball and Softball"]
["CHPRCSB-16","319430367","16\" Chicago Softball","$21.39",null,"Baseball and Softball"]
["CHPRB017","319429105","28 X 14 X 2 Pvc Quilted Double First Base","$31.82",null,"Baseball and Softball"]
["CHPRB072S","319429938","2Ea Dislodging Base + 1Ea Dislodging Double First Base Set","$385.19",null,"Baseball and Softball"]
["CHPRB016","319429091","30 X 15 X 3 Pvc Quilted Double First Base","$35.03",null,"Baseball and Softball"]
["CHPRB062","319429830","3Position Tee","$24.33",null,"Baseball and Softball"]
["CHPRNB24","319428443","3Way Rebound Screen; 52 X 36","$34.76",null,"Baseball and Softball"]
["CHPRB021WB","319429148","4 Piece Throw Down Rubber Base Set; White, Retail Box","$9.62",null,"Baseball and Softball"]
["CHPRB021","31942913X","4 Piece Throw Down Rubber Base; Orange","$7.75",null,"Baseball and Softball"]
["CHPRA048","319425770","4Dial Umpire Indicator; Blister Pack Packs Of 12","$37.97",null,"Baseball and Softball"]
["CHPRA048P","319420388","4-Dial Umpire Indicator; Bulk - Packs of 12","$35.57",null,"Baseball and Softball"]
["CHPRB023B","319429164","5 Piece Throw Down Rubber Base Set; Orange, Retail Box","$10.15",null,"Baseball and Softball"]
["CHPRB023","319429156","5 Piece Throw Down Rubber Base Set; Orange; Bulk","$8.55",null,"Baseball and Softball"]
["CHPRB063","319429857","5Position Tee","$35.83",null,"Baseball and Softball"]
["CHPRCBB775S","319425118","7.5 Training Baseballs; 4Pack W/Retail Packaging","$20.85",null,"Baseball and Softball"]
["CHPRE21B","319426831","8 Helmet Fence/Carry Bag","$43.59",null,"Baseball and Softball"]
["CHPRCBB92","319425266","9 Control Flight Ball; 4Pack","$24.33",null,"Baseball and Softball"]
["CHPRCBB-51Y","319423018","9\" Poly Molded Baseball; Optic Yellow; Bulk","$7.48",null,"Baseball and Softball"]
["CHPRCBB-51D","319422992","9\" Poly Molded Baseball; White; 12-Pack w/Retail Packaging","$8.28",null,"Baseball and Softball"]
["CHPRCBB-51B","31942295X","9\" Poly Molded Baseball; White; 3-Pack w/Retail Packaging","$2.66",null,"Baseball and Softball"]
["CHPRCBB-51C","319422976","9\" Poly Molded Baseball; White; 6-Pack w/Retail Packaging","$3.73",null,"Baseball and Softball"]
["CHPRCBB-51","319422933","9\" Poly Molded Baseball; White; Bulk","$6.41",null,"Baseball and Softball"]
["CHPRCP16","319425703","Abdomen Extension For Cp13 & Cp14","$10.15",null,"Baseball and Softball"]
["CHPRCPAMT13","319429962","Air Mgmt Umpire Chest Protector; 13\"; Black","$81.31",null,"Baseball and Softball"]
["CHPRCPAMT14","319429989","Air Mgmt Umpire Chest Protector; 14\"; Black","$85.59",null,"Baseball and Softball"]
["CHPRCPAMT16","319430006","Air Mgmt Umpire Chest Protector; 16\"; Black","$91.47",null,"Baseball and Softball"]
["CHPRCBB-GEM","319423549","All Weather Practice Ball","$57.77",null,"Baseball and Softball"]
["CHPRB084R","319421465","Attack Angle Adapter","$11.49",null,"Baseball and Softball"]
["CHPRB084","319421457","Attack Angle Batting Tee","$47.07",null,"Baseball and Softball"]
["CHPRB056PE","319429814","B050 Pe Replacement Tube","$4",null,"Baseball and Softball"]
["CHPRCBB-200BR","319422593","Babe Ruth Baseball; Full Grain Leather Cover","$57.23",null,"Baseball and Softball"]
["CHPRCBB-300BR","319422771","Babe Ruth Baseball; MBT; Full Grain Cover","$64.19",null,"Baseball and Softball"]
["CHPRNB33","319428508","Ball Caddy","$37.97",null,"Baseball and Softball"]
["CHPRA051","319425835","Bamboo Training Bat","$26.74",null,"Baseball and Softball"]
["CHPRB008S","319421341","Base Plug Optic Orange w/Neon Green Tassel","$6.14",null,"Baseball and Softball"]
["CHPRA027","319425274","Bat Grip Tape; Blister Pack","$47.87",null,"Baseball and Softball"]
["CHPRA015","319424987","Bat Weight 12 Oz.; Clam Shell Packaging","$7.48",null,"Baseball and Softball"]
["CHPRA016","319425002","Bat Weight 16 Oz.; Clam Shell Packaging","$9.62",null,"Baseball and Softball"]
["CHPRA017","319425045","Bat Weight 20 Oz.; Clam Shell Packaging","$10.15",null,"Baseball and Softball"]
["CHPRA018","31942507X","Bat Weight 24 Oz.; Clam Shell Packaging","$10.15",null,"Baseball and Softball"]
["CHPRA019","319425096","Bat Weight 28 Oz.; Clam Shell Packaging","$12.56",null,"Baseball and Softball"]
["CHPRA014","319424952","Bat Weight 8 Oz.Clam Shell Packaging","$6.94",null,"Baseball and Softball"]
["CHPRAAG01","319421015","Batter's Ankle Guard; Adult & Youth","$39.31",null,"Baseball and Softball"]
["CHPRBUCKET-B","319422534","Black Bucket w/Lid-6 Gal","$21.39",null,"Baseball and Softball"]
["CHPRAF56","319421147","Boil-and-Bite Strapped Mouthguard w/Lip Protector; Adult & Youth","$18.71",null,"Baseball and Softball"]
["CHPRB055","319429792","Bottom Replacement Tube; Rubber","$6.94",null,"Baseball and Softball"]
["CHPRB081","319421422","Brute 2 Batting Tee","$53.49",null,"Baseball and Softball"]
["CHPRCBB49","319424995","Brute 9\" Poly Ball; 12-Piece (Retail)","$17.11",null,"Baseball and Softball"]
["CHPRCBB48","319424960","Brute 9\" Poly Ball; 6-Piece (Retail)","$9.35",null,"Baseball and Softball"]
["CHPRCBB50","319425029","Brute 9\" Poly Ball; Bulk","$14.97",null,"Baseball and Softball"]
["CHPRNB185RS","319428389","Brute Infield Screen Replacement Net; 7' X 7'","$114.21",null,"Baseball and Softball"]
["CHPRNB185","319428354","Brute Infield Screen; 7' X 7'","$238.33",null,"Baseball and Softball"]
["CHPRNB183RS","31942832X","Brute Pitcher'S Safety Screen Replacement Net; 7' X 7'","$114.21",null,"Baseball and Softball"]
["CHPRNB183","31942829X","Brute Pitcher'S Safety Screen; 7' X 7'","$242.61",null,"Baseball and Softball"]
["CHPRNB188","319435792","BRUTE Skinny L Screen, 7'x4'","$185.63",null,"Baseball and Softball"]
["CHPRNB187RS","319428427","Brute Sock Screen Replacement Net; 7' X 7'","$114.21",null,"Baseball and Softball"]
["CHPRNB187","319428400","Brute Sock Screen, 7' X 7'","$249.83",null,"Baseball and Softball"]
["CHPRB083","319421449","BRUTE Spring Loaded Batting Tee","$68.47",null,"Baseball and Softball"]
["CHPRCBB-200CR","319422615","Cal Ripken Baseball; Full Grain Leather Cover","$57.23",null,"Baseball and Softball"]
["CHPRCBB-300CR","319422798","Cal Ripken Baseball; MBT; Full Grain Cover","$64.19",null,"Baseball and Softball"]
["CHPRCG29","319424138","Catcher's Knee Relievers; Adult","$14.7",null,"Baseball and Softball"]
["CHPRCG28","319424103","Catcher's Knee Relievers; Youth","$14.43",null,"Baseball and Softball"]
["CHPRCBB-501","319422917","Collegiate Specification Baseball; MBT; Premium Leather Cover; Flat Seam","$84.25",null,"Baseball and Softball"]
["CHPRB024","31942135X","Color Strike Zone - header card w/ polybag","$10.69",null,"Baseball and Softball"]
["CHPRCP9","319429946","Compression Molded Inside Protector","$42.25",null,"Baseball and Softball"]
["CHPRB073","319429954","Concept 3000 Double First Base Set","$185.63",null,"Baseball and Softball"]
["CHPRA034","31942538X","Contact Trainer Bat & Ball","$21.92",null,"Baseball and Softball"]
["CHPRCBB96","319423506","Control Flight Ball, 9\" 15 oz, 6pk","$32.89",null,"Baseball and Softball"]
["CHPRA7D","319420973","D1 Shin Guard; Sizes S, M & L","$15.77",null,"Baseball and Softball"]
["CHPRA121","319426769","D3 Molded High Impact Shin Guard; Size: L","$6.14",null,"Baseball and Softball"]
["CHPRA120","319426734","D3 Molded High Impact Shin Guard; Size: M","$6.14",null,"Baseball and Softball"]
["CHPRA119","31942670X","D3 Molded High Impact Shin Guard; Size: S","$6.14",null,"Baseball and Softball"]
["CHPRA023","319425223","Deluxe Pine Tar Kit","$16.04",null,"Baseball and Softball"]
["CHPRB007","319428966","Dig Out Tool","$10.42",null,"Baseball and Softball"]
["CHPRCBB-58Y","31942314X","Dimple Molded Baseball - Optic Yellow","$35.83",null,"Baseball and Softball"]
["CHPRCBB-56","319423077","Dimple Molded Baseball - White","$35.83",null,"Baseball and Softball"]
["CHPRCBB-58","319423123","Dimple Molded Baseball - Yellow","$35.83",null,"Baseball and Softball"]
["CHPRCBB-57","319423093","Dimple Molded Baseball with Hard PU Cover - Yellow","$35.83",null,"Baseball and Softball"]
["CHPRCBB-200DYL","319422674","Dixie League Approved Baseball; Full Grain Leather Cover","$57.23",null,"Baseball and Softball"]
["CHPRCDL-40","319423875","Dixie Youth Baseball","$42.79",null,"Baseball and Softball"]
["CHPRB003G","319421317","Double First Base Anchor","$14.43",null,"Baseball and Softball"]
["CHPRCM72","319424782","DRI-GEAR Light Weight Mask with PVC Ergo-Fit Pads; 18 oz.; Colors: Blk, Slv","$47.07",null,"Baseball and Softball"]
["CHPRCM60RP","319425525","Drigear Replacement Pads","$20.05",null,"Baseball and Softball"]
["CHPRB040E","319429385","Economy Official 3Spike Pitcher'S Rubber","$13.63",null,"Baseball and Softball"]
["CHPRA113","31942667X","Economy Shin Guard; Size L","$9.08",null,"Baseball and Softball"]
["CHPRA112","319426645","Economy Shin Guard; Size M","$9.08",null,"Baseball and Softball"]
["CHPRA111","319426610","Economy Shin Guard; Size S","$9.08",null,"Baseball and Softball"]
["CHPRA110","319426580","Economy Shin Guard; Size Xs","$9.08",null,"Baseball and Softball"]
["CHPRB041E","31942944X","Economy Youth 3Spike Pitcher'S Rubber","$9.35",null,"Baseball and Softball"]
["CHPRB040B","319429369","Economy; Official 3Spike Pitcher'S Rubber In Retail Box","$14.97",null,"Baseball and Softball"]
["CHPRB041B","319429423","Economy; Youth 3Spike Pitcher'S Rubber In Retail Box","$11.49",null,"Baseball and Softball"]
["CHPRA031USA","319420353","EXTREME TACK BAT GRIP TAPE,Red/White/Blue","$4.54",null,"Baseball and Softball"]
["CHPRA032","319425355","Eye Black Stickers; Packs Of 12","$40.11",null,"Baseball and Softball"]
["CHPRA026","31942524X","Eye Black; Blister Pack; Packs Of 12","$42.25",null,"Baseball and Softball"]
["CHPRCBSF8","319423611","Fastpitch Catcher's Kit; Black; Age 8 & Under","$149.79",null,"Baseball and Softball"]
["CHPRCBSF9","319423638","Fastpitch Catcher's Kit; Black; Ages 9 & Up","$161.29",null,"Baseball and Softball"]
["CHPRNBFW","319428621","Field Screen Wheel Kit Fits All Brute & Standard Field Screens","$42.79",null,"Baseball and Softball"]
["CHPRCPXT","319430170","Fielder's Training Glove","$42.79",null,"Baseball and Softball"]
["CHPRBP39Y","319438392","Fireball Low Rise Softball Knicker; Girls: Xsxl (Specify Color And Size)","$11.76",null,"Baseball and Softball"]
["CHPRB008F","319421325","Foam Base Plug w/Optic Blue Tassel","$2.93",null,"Baseball and Softball"]
["CHPRB008F3","319421333","Foam Base Plug w/Optic Stem","$8.55",null,"Baseball and Softball"]
["CHPRCBB54Y","319425088","Foam Pitching Machine Baseball; Optic Yellow","$27.81",null,"Baseball and Softball"]
["CHPRCBB53W","319425053","Foam Tough-Ball Baseball; White","$26.47",null,"Baseball and Softball"]
["CHPRCSB27","319430383","GFP-47 L.L. 11\" Softball","$75.69",null,"Baseball and Softball"]
["CHPRA029","319425339","Glove Conditioner, 2.4 Oz.; Blister Pack; Packs Of 12","$67.13",null,"Baseball and Softball"]
["CHPRA028","319425304","Glove Oil, 4Oz.Bottle; Blister Pack; Packs Of 12","$41.45",null,"Baseball and Softball"]
["CHPRA010","31942491X","Glove Relacing Kit With Wood Handle; Blister Pack; Packs Of 12","$62.85",null,"Baseball and Softball"]
["CHPRB005","31942894X","Ground Anchor","$11.49",null,"Baseball and Softball"]
["CHPRB050I","319429717","Heavy Duty Rubber Batter'S Tee With Waffle Bottom Retail Packaging","$21.39",null,"Baseball and Softball"]
["CHPRB050A/B","319421406","Heavy Duty Rubber Batting Tee - Sold in Full Case Packs of 6 Ea.","$14.43",null,"Baseball and Softball"]
["CHPRB050IM","319429733","Heavy Duty Rubber Batting Tee Individual Box (Plain)","$22.99",null,"Baseball and Softball"]
["CHPRCBSY269B","319423735","Helmax 2.0 Catcher's Set; Youth: Ages 6-9","$123.57",null,"Baseball and Softball"]
["CHPRCBSY2912B","319423751","Helmax 2.0 Catcher's Set; Youth: Ages 9-12","$132.67",null,"Baseball and Softball"]
["CHPRCBSY69B","319423816","HEL-MAX Youth Catcher's Set; Youth: Ages 6-9","$149.79",null,"Baseball and Softball"]
["CHPRCBSY912B","319423832","HEL-MAX Youth Catcher's Set; Youth: Ages 9-12","$157.01",null,"Baseball and Softball"]
["CHPRB051","31942975X","High Impact Batting Tee","$15.77",null,"Baseball and Softball"]
["CHPRHXFMB","319432467","HX Baseball Mask; Black","$14.43",null,"Baseball and Softball"]
["CHPRHXMS","319432645","HX Gamer Helmet; Senior: 7 - 7 1/2; Solid Color; Matte Finish","$31.55",null,"Baseball and Softball"]
["CHPRHXCS","319432459","HX Helmet Chin Straps","$28.61",null,"Baseball and Softball"]
["CHPRHXPK","319432661","HX Helmet Pad Kit - Fit Kit","$10.42",null,"Baseball and Softball"]
["CHPRHXG","319432556","HX Jaw Guard; Solid Color","$8.28",null,"Baseball and Softball"]
["CHPRHXRSN","31943267X","HX Replacement Snaps","$14.97",null,"Baseball and Softball"]
["CHPRNB175RS","319428230","Infield Screen Replacement Net; 7' X 7'","$64.19",null,"Baseball and Softball"]
["CHPRNB175","319428214","Infield Screen; 7' X 7'","$154.07",null,"Baseball and Softball"]
["CHPRNB105E-10","319435717","Infield Style Screen,10' x 10'","$256.79",null,"Baseball and Softball"]
["CHPRNB26E","319435857","Infinity Pitchback Screen, Boxed-Plain","$79.97",null,"Baseball and Softball"]
["CHPRNB28","31942846X","Infinity Screen; 54 X 36","$59.91",null,"Baseball and Softball"]
["CHPRNB26","319435830","INFINITY Screen; 72\" x 42\"","$89.07",null,"Baseball and Softball"]
["CHPRCBBPMB","319425290","Kevlar Stitched Baseball","$74.62",null,"Baseball and Softball"]
["CHPRCBB7S","319425207","Leather Cover Weighted Training Baseballs Set Of 6","$40.11",null,"Baseball and Softball"]
["CHPRCG19","319425436","Leg Guard Replacement Straps; Metal Clips","$1.59",null,"Baseball and Softball"]
["CHPRCBB97","319423522","LITE Control Flight Ball, 9\" 2.5 oz, 6pk","$18.71",null,"Baseball and Softball"]
["CHPRB082","319421430","Little Brute Batting Tee","$50.01",null,"Baseball and Softball"]
["CHPRCLL-40","31942443X","Little League Apprvd Baseball","$42.79",null,"Baseball and Softball"]
["CHPRCBB-200LL","319422690","Little League Baseball-RS; Full Grain Leather","$57.23",null,"Baseball and Softball"]
["CHPRCBB-300LL","319422836","Little League Baseball-RS-T; Full Grain Leather Cover","$64.19",null,"Baseball and Softball"]
["CHPRB001H","319428818","Male Post For B001X Base Set","$9.89",null,"Baseball and Softball"]
["CHPRB002H","319428877","Male Post For B002, B004","$8.82",null,"Baseball and Softball"]
["CHPRCM60H","319425495","Mask Harness Adult, Black Only","$8.01",null,"Baseball and Softball"]
["CHPRCM63B","31942555X","Mask With Pvc Ergofit Pads; 27 Oz.","$27.54",null,"Baseball and Softball"]
["CHPRB008","319428982","Molded Rubber Base Plug Optic Orange","$4.27",null,"Baseball and Softball"]
["CHPRNM31","319428974","Multisport Screen; 6' X 6'","$38.51",null,"Baseball and Softball"]
["CHPRNM33","319428990","Multisport Screen; 8' X 8'","$64.19",null,"Baseball and Softball"]
["CHPRNB45E","319435970","MVP Attack Angle Net, 7'x10', Boxed Plain","$85.59",null,"Baseball and Softball"]
["CHPRNB35E","31943589X","MVP Baseball/Softball 7'x7' Net; Boxed","$74.35",null,"Baseball and Softball"]
["CHPRNB42E","319435911","MVP L-Screen; Boxed-Plain","$71.41",null,"Baseball and Softball"]
["CHPRNB32E","319435873","MVP Pop-Up Net with TZ3 - 5' x 5' - E-COMM","$61.51",null,"Baseball and Softball"]
["CHPRNB42","319428540","Mvp Portable L Screen; 7' X 7'","$78.63",null,"Baseball and Softball"]
["CHPRNB43","319428567","Mvp Portable Sock Screen; 5' X 5'","$64.19",null,"Baseball and Softball"]
["CHPRNB44","319428583","Mvp Portable Sock Screen; 7' X 7'","$78.63",null,"Baseball and Softball"]
["CHPRB101","319421473","MVP Rbbr Square Plate Batting Tee","$28.61",null,"Baseball and Softball"]
["CHPRNB32R","319438465","Mvp Replacement 5' X 5' Trizone Target","$7.21",null,"Baseball and Softball"]
["CHPRNB35R","319438473","Mvp Replacement 7' X 7' Trizone Target","$7.21",null,"Baseball and Softball"]
["CHPRNB43E","319435938","MVP Sock Net - 5' x 5' - E-COMM","$57.23",null,"Baseball and Softball"]
["CHPRNB44E","319435954","MVP Sock Net 7x7 Boxed-Plain","$71.41",null,"Baseball and Softball"]
["CHPRNB52E","319436012","MVP Softball Pitcher's Screen; 7' x 7'","$78.63",null,"Baseball and Softball"]
["CHPRNB32","319428486","Mvp Training Net With Tz3 Training Zone; 5' X 5'","$71.41",null,"Baseball and Softball"]
["CHPRNB35","319428524","Mvp Training Net With Tz3 Training Zone; 7' X 7'","$81.31",null,"Baseball and Softball"]
["CHPRNBZRS","319436071","NBZ Replacement Net","$100.03",null,"Baseball and Softball"]
["CHPRNBZ2RS","319436055","NBZ2 Replacement Net","$71.41",null,"Baseball and Softball"]
["CHPRCBB300HS","31942281X","NFHS Baseball; Full Grain Leather Cover","$73.28",null,"Baseball and Softball"]
["CHPRB040","319429342","Official 3Spike Pitcher'S Rubber","$14.43",null,"Baseball and Softball"]
["CHPRB043","319429512","Official Fourway Pitcher'S Rubber","$64.19",null,"Baseball and Softball"]
["CHPRCBB-90","319423476","Official League Baseball","$25.67",null,"Baseball and Softball"]
["CHPRCBB-200","319422550","Official League Baseball; Full Grain Leather Cover","$52.95",null,"Baseball and Softball"]
["CHPRCBB2006","319422577","Official League Baseball; Full Grain Leather Cover; 6-Pack","$32.89",null,"Baseball and Softball"]
["CHPRCBB-200D","319422631","Official League Baseball; Full Grain Leather Cover; Cosmetic Blem","$42.79",null,"Baseball and Softball"]
["CHPRCBB200D6","319422658","Official League Baseball; Full Grain Leather Cover; Cosmetic Blem; 6-Pack","$27.81",null,"Baseball and Softball"]
["CHPRCBB-40","319422895","Official League Baseball; Genuine Leather Cover","$41.45",null,"Baseball and Softball"]
["CHPRCBB-301","319422879","Official League Baseball; MBT; Full Grain Leather Cover; Flat Seam","$61.51",null,"Baseball and Softball"]
["CHPRCBB-300","319422755","Official League Baseball; MBT; Full Grain Leather Cover; Raised Seam","$60.71",null,"Baseball and Softball"]
["CHPRB047","319429636","Official Movable Pitcher'S Rubber","$16.84",null,"Baseball and Softball"]
["CHPRB042","319429466","Official Pitcher'S Rubber With Dual Stanchion Steel Anchor System","$61.51",null,"Baseball and Softball"]
["CHPRB031","319429199","Official Savealeg Home Plate","$22.99",null,"Baseball and Softball"]
["CHPRB045W","319429571","Official Size Step Down Pitchers'S Rubber Waffle Bottom","$71.41",null,"Baseball and Softball"]
["CHPRB045","319429555","Official Stepdown Pitcher'S Rubber","$61.51",null,"Baseball and Softball"]
["CHPRCP102","319429822","Opitmus MVP Chest Protector; 15\" Torso Length; Adult","$37.17",null,"Baseball and Softball"]
["CHPRCBSN2A","319423654","Optimus MVP Catchers' Kit; Adult: CMXHUL, CPN21, CG100","$185.63",null,"Baseball and Softball"]
["CHPRCBSN2I","319423670","Optimus MVP Catchers' Kit; Intermediate: CMXUL, CPN22, CG104","$185.63",null,"Baseball and Softball"]
["CHPRCBSN2T","319423700","Optimus MVP Catchers' Kit; T-Ball: CMHXUM, CPN24, CG111","$164.23",null,"Baseball and Softball"]
["CHPRCBSN2Y","319423719","Optimus MVP Catchers' Kit; Youth: CMHXUM, CPN23, CG106","$164.23",null,"Baseball and Softball"]
["CHPRCP104","319429865","Optimus MVP Chest Protector; 12\" Torso Length; Youth","$27.27",null,"Baseball and Softball"]
["CHPRCP103","319429849","Optimus MVP Chest Protector; 13.5\" Torso Length; Senior League","$32.89",null,"Baseball and Softball"]
["CHPRCP101","319429806","Optimus MVP Chest Protector; 16.5\" Length; Adult","$42.79",null,"Baseball and Softball"]
["CHPRCPN21","31943009X","Optimus MVP Plus Chest Protector; Adult: 16 1/2\" Length","$61.51",null,"Baseball and Softball"]
["CHPRCPN22","319430111","Optimus MVP Plus Chest Protector; Intermediate: 15\" Length","$55.63",null,"Baseball and Softball"]
["CHPRCPN24","319430154","Optimus MVP Plus Chest Protector; T-Ball: 12\" Length","$45.73",null,"Baseball and Softball"]
["CHPRCPN23","319430138","Optimus MVP Plus Chest Protector; Youth: 13 1/2\" Length","$51.35",null,"Baseball and Softball"]
["CHPRCBSF11","31942359X","Optimus Pro Fastpitch Catcher's Kit; Black; Ages 12+","$171.19",null,"Baseball and Softball"]
["CHPRCBSF10","319423581","Optimus Pro Fastpitch Catcher's Kit; Black; Ages 9-12","$164.23",null,"Baseball and Softball"]
["CHPRCPN11","319430030","Optimus Pro Plus Chest Protector; Adult: 16 1/2\" Length","$66.06",null,"Baseball and Softball"]
["CHPRCPN12","319430057","Optimus Pro Plus Chest Protector; Intermediate: 15 1/2\" Length","$62.85",null,"Baseball and Softball"]
["CHPRCPN13","319430073","Optimus Pro Plus Chest Protector; Youth: 14\" Length","$62.05",null,"Baseball and Softball"]
["CHPRA058","31942586X","Padded Catcher'S Glove","$8.01",null,"Baseball and Softball"]
["CHPRA058- FR","31942040X","Padded Catcher's Gloves; Left Hand Throw; Black","$8.01",null,"Baseball and Softball"]
["CHPRA068","319420434","Patent Leather Baseball Belt; Sizes: S-XL","$9.35",null,"Baseball and Softball"]
["CHPRNB10","319428117","Pitchback Screen; 58 X 42","$61.51",null,"Baseball and Softball"]
["CHPRCBB822","319425231","Pitcher Training Baseball; Slider, Clam Shell","$4",null,"Baseball and Softball"]
["CHPRNB173F","31943575X","Pitcher's L-Screen, Env. Style, 7'x7'","$285.41",null,"Baseball and Softball"]
["CHPRNB173RS","319428192","Pitcher'S Safety Replacement Net; 7' X 7'","$64.19",null,"Baseball and Softball"]
["CHPRNB103RSE","319428168","Pitcher'S Safety Screen Replacement Net; 6' X 6'","$64.19",null,"Baseball and Softball"]
["CHPRNB173","319428176","Pitcher'S Safety Screen; 7' X 7'","$131.33",null,"Baseball and Softball"]
["CHPRNB103E","319428141","Pitchers Safety Style L Shaped Field Screen 6X6","$128.39",null,"Baseball and Softball"]
["CHPRA044P","319425711","Plastic Handle Umpire Brush, Bulk Pack; Packs Of 12","$35.03",null,"Baseball and Softball"]
["CHPRBB4","319421503","Power Grip 2000; Indoor/Outdoor; Regulation Size","$19.25",null,"Baseball and Softball"]
["CHPRA034P","31942541X","Pro Contact Trainer Bat & Ball","$21.92",null,"Baseball and Softball"]
["CHPRB004","319428923","Pro Style Molded Double First Base All Rubber Construction","$121.43",null,"Baseball and Softball"]
["CHPRB030I","319429180","Pro Style Official Home Plate (In Ground)","$68.47",null,"Baseball and Softball"]
["CHPRB035R","319429296","Professional Home Plate (Bury All Style) Solid Wood Construction","$104.31",null,"Baseball and Softball"]
["CHPRB035W","31942930X","Professional Home Plate (Bury All Style) Waffle Bottom","$92.81",null,"Baseball and Softball"]
["CHPRA047","319425746","Professional Umpire Ball Bag.Colors: Black","$5.61",null,"Baseball and Softball"]
["CHPRCBSUVK","319425401","Professional Umpire Kit","$164.23",null,"Baseball and Softball"]
["CHPRB070","319429873","Prograde Folding Batting Tee","$27.81",null,"Baseball and Softball"]
["CHPRCG370","319424154","PRO-PLUS 17\" Umpire Leg Guard; Black","$71.41",null,"Baseball and Softball"]
["CHPRCP135","319429903","PRO-PLUS Umpire Chest Protector - Large","$71.41",null,"Baseball and Softball"]
["CHPRCP14","31942992X","PRO-PLUS Umpire Chest Protector - Medium","$70.07",null,"Baseball and Softball"]
["CHPRCP13","319429881","PRO-PLUS Umpire Chest Protector - XL","$72.75",null,"Baseball and Softball"]
["CHPRA150","319420833","Pump Kit  7.5\" Pump; Hose; 3 needles; Pressure Gauge","$8.28",null,"Baseball and Softball"]
["CHPRCM02","31942457X","Rampage Softball Fielder's Facemask; Adult: 6 3/4 - 7 1/2; Solid Color","$47.07",null,"Baseball and Softball"]
["CHPRCM02HY","319424634","Rampage Softball Fielder's Facemask; Youth: 6 1/4 - 6 3/4; Heather","$48.67",null,"Baseball and Softball"]
["CHPRCM02Y","319424677","Rampage Softball Fielder's Facemask; Youth: 6 1/4 - 6 3/4; Solid Color","$47.07",null,"Baseball and Softball"]
["CHPRCBBRB","319425320","Reaction Ball; Retail Packaging","$2.93",null,"Baseball and Softball"]
["CHPRB011S","319429040","Recreational Base Set ; 2Ea B011 + 1Ea B017","$67.13",null,"Baseball and Softball"]
["CHPRAF22","31942863X","Referee Wallet Side Flip","$30.22",null,"Baseball and Softball"]
["CHPRNBBH","319428605","Replacement Bungee Hooks (Bulk 10 Hooks/Package)","$7.21",null,"Baseball and Softball"]
["CHPRA142RN","319420817","Replacement Needle for A142","$0.52",null,"Baseball and Softball"]
["CHPRNB173FRS","319435776","Replacement Net for NB173F","$114.21",null,"Baseball and Softball"]
["CHPRB070R","31942989X","Replacement Rubber Top","$4.54",null,"Baseball and Softball"]
["CHPRNB188RS","319435814","Replacement Screen for NB188","$71.41",null,"Baseball and Softball"]
["CHPRNB105E-10RS","319435733","Replacement ScreenforNB105E-10","$91.47",null,"Baseball and Softball"]
["CHPRB047-S","319421392","Replacement Spike for B047 & B048","$3.73",null,"Baseball and Softball"]
["CHPRB001TOR","319421287","Replacement Spike Insert for B001TO","$21.39",null,"Baseball and Softball"]
["CHPRB001TWR","319421309","Replacement Spike Insert for B001TW","$21.39",null,"Baseball and Softball"]
["CHPRB031-S","319421384","REPLACEMENT SPIKES FOR SAV-A-LEG HOME PLATE","$1.86",null,"Baseball and Softball"]
["CHPRCM21","31942474X","Replacement Straps for CM75,CM76","$12.83",null,"Baseball and Softball"]
["CHPRFRPA","319432025","Rib Protector; Adult: Medium, Large","$31.55",null,"Baseball and Softball"]
["CHPRA020R","319425169","Rock Rosin Bag, Header Card","$94.15",null,"Baseball and Softball"]
["CHPRA020","319425134","Rosin Bag, Blister Pack, Packs Of 12","$32.09",null,"Baseball and Softball"]
["CHPRCBB-61","319423182","SAFE-T-SOFT Baseball; Level 1; Synthetic Cover","$26.47",null,"Baseball and Softball"]
["CHPRCBB-60","319423166","SAFE-T-SOFT Baseball; Level 3; Synthetic Cover","$26.47",null,"Baseball and Softball"]
["CHPRCBB-65","319423204","SAFE-T-SOFT Baseball; Level 5; Synthetic Cover","$26.47",null,"Baseball and Softball"]
["CHPRFSP5","319432033","Scorpion Youth Shoulder Pad; XXS-XL","$50.01",null,"Baseball and Softball"]
["CHPRA035","319425444","Shockblok Bat Cap","$4.54",null,"Baseball and Softball"]
["CHPRA036","319425479","Shockblok Thumb Pad","$4.54",null,"Baseball and Softball"]
["CHPRA037","31942037X","SHOE SHIELD FOOT PROTECTION","$9.62",null,"Baseball and Softball"]
["CHPRCP15","319425665","Shoulder Extension For Cp13 & Cp14 (Sold In Pairs)","$21.39",null,"Baseball and Softball"]
["CHPRNB177RS","319428273","Sock Screen Replacement Net; 7' X 7'","$85.59",null,"Baseball and Softball"]
["CHPRNB177","319428257","Sock Screen; 7' X 7'","$171.19",null,"Baseball and Softball"]
["CHPRCM01CC","319438406","Softball Fielder'S Facemask Chin Cup","$5.34",null,"Baseball and Softball"]
["CHPRCM01H","319425460","Softball Fielder'S Facemask Harness","$5.34",null,"Baseball and Softball"]
["CHPRCM01L","319438422","Softball Fielder'S Facemask Liner Pads","$5.07",null,"Baseball and Softball"]
["CHPRCM01LP","319424510","Softball Fielder's Facemask Liner Pads; Retail Packaging","$12.83",null,"Baseball and Softball"]
["CHPRA021","319425193","Sports Counter, Blister Pack; Packs Of 12","$81.04",null,"Baseball and Softball"]
["CHPRCBB-200SLL","319422712","Sr. Little League Baseball-RS; Full Grain Leather Cover","$57.23",null,"Baseball and Softball"]
["CHPRCLL-70B","319424456","Sr. LL Baseball, FG Lthr","$64.19",null,"Baseball and Softball"]
["CHPRCBSUSK","319425371","Starter Umpire Kit","$104.31",null,"Baseball and Softball"]
["CHPRB019","319429113","Steel Base Spike 9 3/4","$1.59",null,"Baseball and Softball"]
["CHPRCMSV","319425606","Sun Visor","$11.49",null,"Baseball and Softball"]
["CHPRCM01C","319424499","The Grill Softball Fiedler's Facemask; Adult: 6 3/4 - 7 1/2; Heather","$28.61",null,"Baseball and Softball"]
["CHPRCM01","319424472","The Grill Softball Fielder's Facemask; Adult: 6 3/4 - 7 1/2; Solid Color","$18.71",null,"Baseball and Softball"]
["CHPRCM01YC","319424553","The Grill Softball Fielder's Facemask; Youth: 6 1/4 - 6 3/4; Heather","$28.61",null,"Baseball and Softball"]
["CHPRCM01Y","319424537","The Grill Softball Fielder's Facemask; Youth: 6 1/4 - 6 3/4; Solid Color","$18.71",null,"Baseball and Softball"]
["CHPRB001POR","319421244","The Hall 15\"x3\" Molded Base; Orange; EA","$92.81",null,"Baseball and Softball"]
["CHPRB001PW","319421252","The Hall 15\"x3\" Molded Bases; White; Set","$256.79",null,"Baseball and Softball"]
["CHPRB001PW2","319421260","The Hall Base; 3-Bases; White; 18\" x 18\" x 2.5\"","$356.83",null,"Baseball and Softball"]
["CHPRB024X","319421368","THE ZONE TRAINING HOME PLATE EXTENSION 28.5\" X 17.5\"","$17.11",null,"Baseball and Softball"]
["CHPRCM07-B","319424715","Throat Guards; 4.5\"; Black","$6.41",null,"Baseball and Softball"]
["CHPRCM06-B","319424693","Throat Guards; 6.5\"; Black","$6.41",null,"Baseball and Softball"]
["CHPRB054","319429776","Top Replacement Tube For B050","$6.94",null,"Baseball and Softball"]
["CHPRCBSY569","319423778","Triple-Play Youth Catcher's Set; Youth: Ages 6-9","$159.95",null,"Baseball and Softball"]
["CHPRCBSY5912","319423794","Triple-Play Youth Catcher's Set; Youth: Ages 9-12","$164.23",null,"Baseball and Softball"]
["CHPRB001TW","319421295","Turf Style 15\"x3\" Molded Bases; White; Set","$264.01",null,"Baseball and Softball"]
["CHPRB001TO","319421279","Turf Style 15\"x3\" Spike Base; EA","$92.81",null,"Baseball and Softball"]
["CHPRHC1","319432238","Ultima Cap C-Flex Fitted Construction; XS/S, S/M, L/XL","$10.42",null,"Baseball and Softball"]
["CHPRA041P","319425630","Umpire Indicator, 3 Dial, Optic Yellow; Bulk Pack; Packs Of 12","$29.68",null,"Baseball and Softball"]
["CHPRA039P","319425533","Umpire Indicator, 3 Dial, Steel: Optic Yellow; Bulk Pack; Packs Of 12","$63.12",null,"Baseball and Softball"]
["CHPRA038P","319425509","Umpire Indicator, 4 Dial, Steel; Optic Yellow; Bulk Pack; Packs Of 12","$63.39",null,"Baseball and Softball"]
["CHPRA041","319425614","Umpire Indicator, Trad.3 Dial, Optic Yellow; Blister Pack; Packs Of 12","$31.55",null,"Baseball and Softball"]
["CHPRA042","319425657","Umpire Indicator, Trad.4 Dial, Optic Yellow; Blister Pack; Packs Of 12","$32.89",null,"Baseball and Softball"]
["CHPRA042P","319425681","Umpire Indicator, Trad.4 Dial, Optic Yellow; Bulk Pack; Packs Of 12","$31.55",null,"Baseball and Softball"]
["CHPRA049","319420396","Umpire Kit (Includes A045, A040, & A048); Colors: Black & Navy","$13.9",null,"Baseball and Softball"]
["CHPRCP07","319429784","Umpire Outside Chest Protector","$58.84",null,"Baseball and Softball"]
["CHPRCG108-B","319423999","Umpire's Single Knee Leg Guard","$37.17",null,"Baseball and Softball"]
["CHPRCBB6S","319423220","Underload Training Baseballs; 6/St","$40.11",null,"Baseball and Softball"]
["CHPRCBB-200US","319422739","USSSA Approved Baseball; Full Grain Leather Cover","$57.23",null,"Baseball and Softball"]
["CHPRCBB-300US","319422852","USSSA Approved Baseball; MBT; Full Grain Leather Cover","$64.19",null,"Baseball and Softball"]
["CHPRCSB90","319430588","USSSA Slow Pitch Softball , 44/375 Lthr, 12\"","$89.87",null,"Baseball and Softball"]
["CHPRCSB89","31943057X","USSSA SlowPitch .44 Synth 12\" Softball","$75.42",null,"Baseball and Softball"]
["CHPRCSB-XB11","319430642","Vex 11\" Training Softball","$79.97",null,"Baseball and Softball"]
["CHPRCSB-XB12","319430650","Vex 12\" Training Softball","$79.97",null,"Baseball and Softball"]
["CHPRCBB-XB","319423565","Vex 9\" Training Baseball","$52.95",null,"Baseball and Softball"]
["CHPRNM25","319428958","Virtual Catcher/Receiver; 52 X 36","$50.01",null,"Baseball and Softball"]
["CHPRCBB710","319423336","Weighted Training Baseballs; 10 Oz. Bulk; Royal","$6.94",null,"Baseball and Softball"]
["CHPRCBB710CS","319423352","Weighted Training Baseballs; 10 Oz.Clam Shell; Royal","$8.55",null,"Baseball and Softball"]
["CHPRCBB711","319423379","Weighted Training Baseballs; 11 Oz. Bulk; Yellow","$6.94",null,"Baseball and Softball"]
["CHPRCBB711CS","319423395","Weighted Training Baseballs; 11 Oz. Clam Shell; Yellow","$8.55",null,"Baseball and Softball"]
["CHPRCBB712","319423417","Weighted Training Baseballs; 12 Oz. Bulk; Black","$6.94",null,"Baseball and Softball"]
["CHPRCBB712CS","319423441","Weighted Training Baseballs; 12 Oz. Clam Shell; Black","$8.55",null,"Baseball and Softball"]
["CHPRCBB7CS","319423468","Weighted Training Baseballs; 3,4,6 oz","$21.39",null,"Baseball and Softball"]
["CHPRCBB703CS","319423247","Weighted Training Baseballs; 3oz. Clam Shell; Lt. Blue","$14.43",null,"Baseball and Softball"]
["CHPRCBB707","319423263","Weighted Training Baseballs; 7 Oz. Bulk; Red","$6.94",null,"Baseball and Softball"]
["CHPRCBB707CS","31942328X","Weighted Training Baseballs; 7 Oz. Clam Shell; Red","$8.55",null,"Baseball and Softball"]
["CHPRCBB709","319423301","Weighted Training Baseballs; 9 Oz. Bulk; Forest Green","$6.94",null,"Baseball and Softball"]
["CHPRCBB709CS","31942331X","Weighted Training Baseballs; 9 Oz. Clam Shell; Forest Green","$8.55",null,"Baseball and Softball"]
["CHPRCBB7AS","319425142","Weighted Training Baseballs; Advanced: 10, 11 & 12 Oz.; Clam Shell","$21.39",null,"Baseball and Softball"]
["CHPRCBB7BS","319425177","Weighted Training Baseballs; Basic: 7, 8 & 9 Oz.; Clam Shell","$21.39",null,"Baseball and Softball"]
["CHPRCSB-710","319430510","Weighted Training Softballs; 10 Oz. Bulk; Royal","$13.36",null,"Baseball and Softball"]
["CHPRCSB-710CS","319430529","Weighted Training Softballs; 10 Oz. Clamshell; Royal","$14.97",null,"Baseball and Softball"]
["CHPRCSB-711","319430537","Weighted Training Softballs; 11 Oz. Bulk; Yellow","$13.36",null,"Baseball and Softball"]
["CHPRCSB-711CS","319430545","Weighted Training Softballs; 11 Oz. Clamshell; Yellow","$14.97",null,"Baseball and Softball"]
["CHPRCSB-712","319430553","Weighted Training Softballs; 12 Oz. Bulk; Black","$13.36",null,"Baseball and Softball"]
["CHPRCSB-712CS","319430561","Weighted Training Softballs; 12 Oz. Clamshell; Black","$14.97",null,"Baseball and Softball"]
["CHPRCSB-709","319430499","Weighted Training Softballs; 9 Oz. Bulk; Kelly Green","$13.36",null,"Baseball and Softball"]
["CHPRCSB-709CS","319430502","Weighted Training Softballs; 9 Oz. Clamshell; Kelly Green","$14.97",null,"Baseball and Softball"]
["CHPRB033","319429229","White Molded Rubber Home Plate  Thickness","$8.55",null,"Baseball and Softball"]
["CHPRB033B","319429245","White Molded Rubber Home Plate  Thickness Retail Box","$14.43",null,"Baseball and Softball"]
["CHPRB032","319429202","White Molded Rubber Home Plate 1 Thickness 3Spike","$20.05",null,"Baseball and Softball"]
["CHPRA040P","319425584","Wood Handle Umpire Brush, Bulk Pack; Packs Of 12","$40.38",null,"Baseball and Softball"]
["CHPRA040","319425568","Wood Handle Umpire Brush; Blister Pack; Packs Of 12","$45.73",null,"Baseball and Softball"]
["CHPRB041","319429407","Youth 3Spike Pitcher'S Rubber","$10.69",null,"Baseball and Softball"]
["CHPRB044","319429539","Youth Fourway Pitcher'S Rubber","$34.23",null,"Baseball and Softball"]
["CHPRB048","319429652","Youth Movable Pitcher'S Rubber","$11.49",null,"Baseball and Softball"]
["CHPRB049","319429679","Youth Pitcher'S Rubber With Dual Stanchion Steel Anchor System","$64.19",null,"Baseball and Softball"]
["CHPRB046W","31942961X","Youth Size Step Down Pitchers'S Rubber Waffle Bottom","$57.23",null,"Baseball and Softball"]
["CHPRB046","319429598","Youth Stepdown Pitcher'S Rubber","$40.11",null,"Baseball and Softball"]
["CHPRNBZ2","319436039","Z-Screen, 7' x 5'","$127.85",null,"Baseball and Softball"]
["CMPCBSUSK","317383418","Starter Umpire Kit","$92.82",null,"Baseball and Softball"]
["CMPCBSUVK","317383426","Professional Umpire Kit","$157.02",null,"Baseball and Softball"]

{"sheet":"Basketball","index":4,"n_rows":33,"n_cols":6,"rows_kept":33,"cut":false,"hidden":false,"merged":[]}
[null,null,null,"Back Home","Website",{"$f":"HYPERLINK(\"https://www.unitedsupplycorp.com/\", \"https://www.unitedsupplycorp.com/\")","v":"https://www.unitedsupplycorp.com/"}]
[null,null,null,null,"Email ","orders@unitedsupplycorp.com"]
[null,null,null,null,"Phone ","718-439-9387"]
[]
[]
["United SKU","DOE Item Number","Title","DOE Price","Image","Category"]
["CHPRFTH1B","319432149","1\" T-Hook - Black","$4.27",null,"Basketball"]
["CHPRA134BY","319420787","10 Marker Discs; Colors; Optic Yellow","$5.87",null,"Basketball"]
["CHPRA134B","319420779","10 Marker Discs; Colors; Orange","$5.87",null,"Basketball"]
["CHPRBR12","319430294","12 Ball Rack With Casters","$71.41",null,"Basketball"]
["CHPRBR16","319430324","16 Ball Rack With Casters","$77.03",null,"Basketball"]
["CHPRFHPULAT","319431029","Adult Ultra Light Tail Pad","$1.86",null,"Basketball"]
["CHPRNG02","319428702","Antiwhip White","$3.73",null,"Basketball"]
["CHPRBB50","319421538","DuraGrip 230 Basketball; Color; Sizes: 29.5\" (Boys 12 and up) and 28.5\" Girls 9 and up and Boys 9-11)","$8.01",null,"Basketball"]
["CHPRBB50-27.5","319421546","DuraGrip 230 Basketball; Junior 27.5","$7.21",null,"Basketball"]
["CHPRBB50-28.5","319421554","DuraGrip 230 Basketball; Women's 28.5","$7.75",null,"Basketball"]
["CHPRBR10","31943026X","Fold Up Ball Cart","$135.61",null,"Basketball"]
["CHPRNG04","319428745","Heavy Duty Braided Nylon Red/White/Blue","$2.4",null,"Basketball"]
["CHPRNG03","319428729","Heavy Duty Braided Nylon White","$2.13",null,"Basketball"]
["CHPRBR15","319430316","Monster Ball Locker","$246.89",null,"Basketball"]
["CHPRBR18","319430375","Portable Ball Locker","$213.99",null,"Basketball"]
["CHPRBR17","319430340","Portable Ball Locker","$185.63",null,"Basketball"]
["CHPRBB6-28.5","319421589","Power Grip 1000 Basketball; 28.5 Size","$17.11",null,"Basketball"]
["CHPRBB6","319421562","Power Grip 1000 Basketball; Regulation Size","$17.11",null,"Basketball"]
["CHPRBB4-28.5","319421511","Power Grip 2000; Indoor/Outdoor; 28.5 Size","$19.25",null,"Basketball"]
["CHPRNG01","319428680","Steel Chain","$9.62",null,"Basketball"]
["CHPRBB33","319430049","Supergrip 300 Easy Grip Rubber Basketball; 27.0 Junior Size","$10.15",null,"Basketball"]
["CHPRBB32","319430014","Supergrip 300 Easy Grip Rubber Basketball; 28.5 Size","$10.15",null,"Basketball"]
["CHPRBB31","319429997","Supergrip 300 Easy Grip Rubber Basketball; Official Size","$10.15",null,"Basketball"]
["CHPRBB1-28.5","31942149X","The Phoenix Basketball; 28.5 Size; NFHS","$42.79",null,"Basketball"]
["CHPRBB1","319421481","The Phoenix Basketball; Regulation Size; NFHS","$42.79",null,"Basketball"]
["CHPRFHPUL-A","319431010","UltraLight 3Pc HipPad Set-Vars","$12.83",null,"Basketball"]
["CHPRBBW3","319430189","Weighted Basketball; 3 Lbs.; Regulation Size","$25.13",null,"Basketball"]

{"sheet":"Coach.Referee","index":5,"n_rows":26,"n_cols":6,"rows_kept":26,"cut":false,"hidden":false,"merged":[]}
[null,null,null,"Back Home","Website",{"$f":"HYPERLINK(\"https://www.unitedsupplycorp.com/\", \"https://www.unitedsupplycorp.com/\")","v":"https://www.unitedsupplycorp.com/"}]
[null,null,null,null,"Email ","orders@unitedsupplycorp.com"]
[null,null,null,null,"Phone ","718-439-9387"]
[]
[]
["United SKU","DOE Item Number","Title","DOE Price","Image","Category"]
["CHPRA07","319425975","Baseball Score Book","$4.27",null,"Coach/Referee"]
["CHPRA091","319426041","Baseball/Softball Coach'S Board; 10 X 16","$14.97",null,"Coach/Referee"]
["CHPRA099BS","319426122","Baseball/Softball Coach'S Board; 12 X 9","$8.55",null,"Coach/Referee"]
["CHPRA092","319426076","Basketball Coach'S Board; 10 X 16","$11.49",null,"Coach/Referee"]
["CHPRA099BK","319426106","Basketball Coach'S Board; 9 X 12","$8.55",null,"Coach/Referee"]
["CHPRA07BK","319426009","Basketball Score Book","$4.8",null,"Coach/Referee"]
["CHPRACCB","319428559","Cleat Cleaner; Without Handle; 13 X 12","$20.85",null,"Coach/Referee"]
["CHPRP311","319429458","Deluxe Flipascore 9 Numbers, 0 99 With Period/Game Counter","$50.01",null,"Coach/Referee"]
["CHPRA050","319425800","Dual Pitch Counter","$7.21",null,"Coach/Referee"]
["CHPRA099F","319426157","Football Coach'S Board; 9 X 12","$8.55",null,"Coach/Referee"]
["CHPRA099L","319426203","Lacrosse Coach'S Board; 9 X 12","$8.55",null,"Coach/Referee"]
["CHPRA333","319420930","Large Plastic Whistle with Lanyard","$2.13",null,"Coach/Referee"]
["CHPRAF61","319428753","Lineup Cards; 25 Per Set; Packs Of 12","$62.85",null,"Coach/Referee"]
["CHPRA336CL","319428338","Mouth Cushion & Lanyard; Blister Pack","$5.34",null,"Coach/Referee"]
["CHPRA336C","319428303","Officials' Whistle W/Mouth Cushion; Blister Pack","$5.34",null,"Coach/Referee"]
["CHPRA196","319427811","Referee Wallet","$4",null,"Coach/Referee"]
["CHPRA099S","319426238","Soccer Coach'S Board; 9 X 12","$8.55",null,"Coach/Referee"]
["CHPRA151","319427501","Stopwatch","$6.68",null,"Coach/Referee"]
["CHPRCPTT","319425738","Turn2 Trainer","$8.55",null,"Coach/Referee"]
["CHPRA152","319427536","Water Resistant Stopwatch","$12.83",null,"Coach/Referee"]

{"sheet":"Football","index":6,"n_rows":161,"n_cols":6,"rows_kept":161,"cut":false,"hidden":false,"merged":[]}
[null,null,null,"Back Home","Website",{"$f":"HYPERLINK(\"https://www.unitedsupplycorp.com/\", \"https://www.unitedsupplycorp.com/\")","v":"https://www.unitedsupplycorp.com/"}]
[null,null,null,null,"Email ","orders@unitedsupplycorp.com"]
[null,null,null,null,"Phone ","718-439-9387"]
[]
[]
["United SKU","DOE Item Number","Title","DOE Price","Image","Category"]
["CHPRA101S","31942636X","1 Football Field Goal Tee","$2.4",null,"Football"]
["CHPRA100S","319426300","1 Football Kickoff Tee","$2.4",null,"Football"]
["CHPRFTHS","319427862","1 Shoulder Pad Strap W/Thook","$5.07",null,"Football"]
["CHPRFTHS15","319427889","1 Shoulder Pad Strap W/Thook","$6.14",null,"Football"]
["CHPRFTHSB","319427927","1 Shoulder Pad Strap W/Thook; Black","$2.93",null,"Football"]
["CHPRA100S-H","319420531","1\" Football Kickoff Tee with Header Card","$3.73",null,"Football"]
["CHPRA101S-H","319420558","1\" HEAVY BLACK FIELD GOAL TEE - RETAIL","$3.73",null,"Football"]
["CHPRA103B","319426521","2 BullSeyes With Chain","$242.61",null,"Football"]
["CHPRA101","319426335","2 Football Field Goal Tee","$3.2",null,"Football"]
["CHPRA100","319426270","2 Football Kick Off Tee","$3.2",null,"Football"]
["CHPRA100-H","319420523","2\" Football Tee - Kick Off with Header Card","$4.27",null,"Football"]
["CHPRA101-H","31942054X","2\" HEAVY BLACK FIELD GOAL TEE -RETAIL","$4.27",null,"Football"]
["CHPRFB42","319430901","200 Premium Rubber - Intermediate Size","$8.01",null,"Football"]
["CHPRFB43","31943091X","200 Premium Rubber - Junior Size","$8.01",null,"Football"]
["CHPRFB44","319430928","200 Premium Rubber - Pee Wee Size","$8.01",null,"Football"]
["CHPRFB41","319427218","200 Premium Rubber Football Official Size","$8.01",null,"Football"]
["CHPRAF42","319428672","3 Sweatband Down Indicator","$35.83",null,"Football"]
["CHPRCM07H","319438430","4.5 Throat Guard; Colors: Black Retail Package","$6.41",null,"Football"]
["CHPRSSH2","31943706X","5-Star Rated SH7 Soft Shell Helmet; S-L","$52.69",null,"Football"]
["CHPRF7PWSL","319427064","7 Piece Pee Wee Pad Set Slots","$20.59",null,"Football"]
["CHPRF7PWSN","319427099","7 Piece Pee Wee Pad Set Snaps","$20.05",null,"Football"]
["CHPRF7PCYSN","319427048","7 Piece Youth Pad Set Snaps","$11.49",null,"Football"]
["CHPRF7PCY-SL","31943088X","7 Piece Youth Pad Set-Slots","$11.49",null,"Football"]
["CHPRFSP7","319432041","7 Series Shoulder Pad; A: XS-XL","$47.34",null,"Football"]
["CHPRSSH","319437035","7 Series Softshell Helmet; Sizes S-L","$31.55",null,"Football"]
["CHPRA102F","319420566","7on7 Ftbll Yard Markers; 2-G, 2-20, 1-40","$61.51",null,"Football"]
["CHPRFSPSBPA","319432092","Adult Backplate","$15.77",null,"Football"]
["CHPRA817","319428451","Agility Spring Poles 60 (Set Of 6)","$59.91",null,"Football"]
["CHPRFKP-L","319431428","Air Knee Pad - Large","$10.69",null,"Football"]
["CHPRFKP-M","319431436","Air Knee Pad - Medium","$10.69",null,"Football"]
["CHPRFKP-Y","319431460","Air Knee Pad - Youth","$10.69",null,"Football"]
["CHPRAF13","319428613","Auxiliary Weighted Penalty Flag; 14 X 14","$37.44",null,"Football"]
["CHPRAEG02CA","31942104X","Batter's Elbow Guard; Compression: Adult","$18.71",null,"Football"]
["CHPRAEG02CY","319421058","Batter's Elbow Guard; Compression; Youth","$18.71",null,"Football"]
["CHPRAEG02SA","319421066","Batter's Elbow Guard; Strapped; Adult","$21.39",null,"Football"]
["CHPRAEG02SY","319421074","Batter's Elbow Guard; Strapped; Youth","$21.39",null,"Football"]
["CHPRCM71","319424766","Bio-Fresh Light Weight Mask with Leather Pads; 18 oz.; Colors: Black, Silver","$50.01",null,"Football"]
["CHPRAF54","319438368","Boilandbite Strapless Mouthguard","$27.27",null,"Football"]
["CHPRAF53","31943835X","Boilandbite Strapped Mouthguard","$33.69",null,"Football"]
["CHPRCMHXM","319424855","Boss Catcher's Helmet; Medium: 6 14\" -7\"; Large: 7\" - 7 1/2\"","$114.21",null,"Football"]
["CHPRFPGU10APLUS","319431762","Bull Rush Girdle; 5-Pads; A: 2XL-4XL*","$31.98",null,"Football"]
["CHPRFPGU10A","319431754","Bull Rush Girdle; 5-Pads; A: S-XL*","$27.81",null,"Football"]
["CHPRFPGU17APLUS","319431797","Bull Rush Girdle; 7-Pads; A: 2XL-4XL*","$37.52",null,"Football"]
["CHPRFPGU17A","319431789","Bull Rush Girdle; 7-Pads; A: S-XL*","$32.62",null,"Football"]
["CHPRFPGU17Y","319431800","Bull Rush Girdle; 7-Pads; Youth: S-XL","$31.29",null,"Football"]
["CHPRFPGU10Y","319431770","Bull Rush Girdlle; 5-Pads; Youth: S-XL","$24.87",null,"Football"]
["CHPRCMHXU","31942488X","Cannon Catcher's Helmet; Medium: 6 1/4\" - 7\"; Large: 7\" - 7 1/2\"","$71.41",null,"Football"]
["CHPRCCH","319423859","Catcher's/Coach's Helmet","$25.67",null,"Football"]
["CHPRA5C","319420965","C-Flex Cup; XS-L","$3.73",null,"Football"]
["CHPRA197SB","319438341","Corner Flags With Sand Bases; 1 Diameter (Set Of 4)","$50.01",null,"Football"]
["CHPRA193SB","319438333","Corner Flags With Sand Bases; 1/2 Diameter (Set Of 4)","$50.01",null,"Football"]
["CHPRFB6IN","319430936","CT6 \"600\" Composite Football; Intermediate","$12.83",null,"Football"]
["CHPRFB6JR","319430944","CT6 \"600\" Composite Football; Junior","$12.83",null,"Football"]
["CHPRFB6OF","319430952","CT6 \"600\" Composite Football; Official","$12.83",null,"Football"]
["CHPRFB6PW","319430960","CT6 \"600\" Composite Football; Pee Wee","$12.83",null,"Football"]
["CHPRFB7IN","319430979","CT7 \"700\" Composite Football; Intermediate","$15.77",null,"Football"]
["CHPRFB7JR","319430987","CT7 \"700\" Composite Football; Junior","$15.77",null,"Football"]
["CHPRFB7OF","319430995","CT7 \"700\" Composite Football; Official","$15.77",null,"Football"]
["CHPRFB7PW","319431002","CT7 \"700\" Composite Football; Pee Wee","$15.77",null,"Football"]
["CHPRA103","319426475","Deluxe Down Box & Chain Set","$378.23",null,"Football"]
["CHPRA103D","319420574","Digital Down Marker","$745.51",null,"Football"]
["CHPRA103A","319426505","Down Box","$124.11",null,"Football"]
["CHPRFCASM","319427420","Drigear Compression Arm Sleeve; Jv; Black","$5.07",null,"Football"]
["CHPRFCASL","319427390","Drigear Compression Arm Sleeve; Varsity; Black","$5.07",null,"Football"]
["CHPRFCASS","319427455","Drigear Compression Arm Sleeve; Youth; Black","$5.07",null,"Football"]
["CHPRFCAPM","319427331","Drigear Triflex Arm Sleeve W/Elbow Padding; Jv","$6.14",null,"Football"]
["CHPRFCAPL","319427307","Drigear Triflex Arm Sleeve W/Elbow Padding; Varsity","$6.14",null,"Football"]
["CHPRFCAPS","319427366","Drigear Triflex Arm Sleeve W/Elbow Padding; Youth","$6.14",null,"Football"]
["CHPRFCFP2M","31942751X","Drigear Triflex Forearm Sleeve; Jv; Black","$12.83",null,"Football"]
["CHPRFCFP2L","31942748X","Drigear Triflex Forearm Sleeve; Varsity; Black","$12.83",null,"Football"]
["CHPRFCFP2S","319427544","Drigear Triflex Forearm Sleeve; Youth; Black","$12.83",null,"Football"]
["CHPRFCKPM","319427609","Drigear Triflex Knee Pads; Jv; Black","$11.76",null,"Football"]
["CHPRFCKPL","319427579","Drigear Triflex Knee Pads; Varsity; Black","$11.76",null,"Football"]
["CHPRFCKPS","319427633","Drigear Triflex Knee Pads; Youth; Black","$11.76",null,"Football"]
["CHPRFCSPM","319427684","Drigear Triflex Shin Sleeve; Jv; Black","$12.83",null,"Football"]
["CHPRFCSPL","31942765X","Drigear Triflex Shin Sleeve; Varsity; Black","$12.83",null,"Football"]
["CHPRFCSPS","319427706","Drigear Triflex Shin Sleeve; Youth; Black","$12.83",null,"Football"]
["CHPRAF41","319428656","Elastic Band Wrist Down Indicator","$23.8",null,"Football"]
["CHPRA137OY","319420809","Flat Disc Markers;  Optic Yellow; 10 pk","$8.55",null,"Football"]
["CHPRA105SET","319420612","Football Flag and Cone Set","$29.95",null,"Football"]
["CHPRA107SET","319420639","Football Flag and Cone Set","$27.27",null,"Football"]
["CHPRA105DZ","319420604","FOOTBALL FLAG BELT - 1 DOZEN","$28.61",null,"Football"]
["CHPRA1056","319420590","Football Flag Belt; 6-pack with Header Card","$14.43",null,"Football"]
["CHPRFXA11","319432203","Football Helmet Scrimmage Cap","$2.93",null,"Football"]
["CHPRFPL","319431932","Football Pant Lace","$0.52",null,"Football"]
["CHPRFKP2","31943141X","Football Skill Insert Pad","$4",null,"Football"]
["CHPRFPGU18APLUS","319431827","Formation Compression Girdle; A: 2XL-3XL*","$24.29",null,"Football"]
["CHPRFPGU28APLUS","319431851","Formation Compression Girdle; A: 2XL-3XL*","$35.06",null,"Football"]
["CHPRFPGU18A","319431819","Formation Compression Girdle; A: S-XL*","$21.12",null,"Football"]
["CHPRFPGU28A","319431843","Formation Compression Girdle; A: S-XL*","$30.48",null,"Football"]
["CHPRFPGU28Y","31943186X","Formation Compression Girdle; Youth: S-L","$30.48",null,"Football"]
["CHPRFPGU18Y","319431835","Formation Compression Girdle; Youth: S-L","$19.52",null,"Football"]
["CHPRFSPG1","31943205X","Gauntlet I Shoulder Pad; XXS-XL","$58.57",null,"Football"]
["CHPRFSPG2","319432068","Gauntlet II Shoudler Pad; S-4XL","$87.19",null,"Football"]
["CHPRFSPG3","319432076","Gauntlet III Shoulder Pad; S-4XL","$117.15",null,"Football"]
["CHPRFSPGSP","319432084","Guantlet Skill Shoulder Pad; S-XL","$117.15",null,"Football"]
["CHPRAF48","319428710","Hand Warmer; Adult; Black","$12.83",null,"Football"]
["CHPRAF47","319428699","Hand Warmer; Youth; Black","$12.83",null,"Football"]
["CHPRHXMJ","319432610","HX Gamer Helmet; Junior:  6 1/2 - 7 1/8; Solid Color; Matte Finish","$31.55",null,"Football"]
["CHPRHXMT","319432653","HX Gamer Helmet; T-Ball: 6 - 6 1/2; Solid Color; Matte Finish","$31.55",null,"Football"]
["CHPRHXMJGJ","319432629","HX Gamer Plus Batting Helmet; Junior: 6 1/2 - 7 1/8; Solid Color; Matte Finish; Jaw Guard Included","$40.11",null,"Football"]
["CHPRHXMJGS","319432637","HX Gamer Plus Batting Helmet; Senior: 7 - 7 1/2; Solid Color; Matte Finish; Jaw Guard Included","$40.11",null,"Football"]
["CHPRHXM2J","319432572","HX Legend Batting Helmet; Junior:  6 1/2 - 7 1/8; Two-Tone; Matte Finish","$36.37",null,"Football"]
["CHPRHXM2S","319432602","HX Legend Batting Helmet; Senior: 7 - 7 1/2; Two-Tone; Matte Finish","$36.37",null,"Football"]
["CHPRHXM2JGJ","319432580","HX Legend Plus Batting Helmet; Junior: 6 1/2 - 7 1/8; Two-Tone; Matt Finish; Jaw Guard Included","$42.79",null,"Football"]
["CHPRHXM2JGS","319432599","HX Legend Plus Batting Helmet; Senior: 7 - 7 1/2; Two-Tone; Matte Finish; Jaw Guard Included","$42.79",null,"Football"]
["CHPRHXFPMJ","319432491","HX Rise Batting Helmet w/Facemask; Junior: 6 1/2 -7 1/8; Solid Color; Matte Finish","$45.73",null,"Football"]
["CHPRHXFPMS","319432505","HX Rise Batting Helmet w/Facemask; Senior: 7 -7 1/2; Solid Color; Matte Finish","$45.73",null,"Football"]
["CHPRHXFPG2J","319432475","HX Rise Pro Batting Helmet w/Facemask; Junior: 6 1/2 -7 1/8; Two-Tone; Glossy Finish","$50.01",null,"Football"]
["CHPRHXFPG2S","319432483","HX Rise Pro Batting Helmet w/Facemask; Senior: 7 -7 1/2; Two-Tone; Glossy Finish","$50.01",null,"Football"]
["CHPRHXUFMJ","319432688","HX Rookie Batting Helmet; Junior: 6 1/2 - 7 1/8; w/Facemask; Solid Color; Uncoated Finish","$34.23",null,"Football"]
["CHPRHXUJ","31943270X","HX Rookie Batting Helmet; Junior: 6 1/2 - 7 1/8; w/o Facemask; Solid Color; Uncoated Finish","$22.99",null,"Football"]
["CHPRHXUS","319432718","HX Rookie Batting Helmet; Senior: 7 - 71/2; w/o Facemask; Solid Color; Uncoated Finish","$22.99",null,"Football"]
["CHPRHXUFMT","319432696","HX Rookie Batting Helmet; T-Ball: 6 - 6 1/2; w/Facemask; Solid Color; Uncoated Finish","$34.23",null,"Football"]
["CHPRHXUT","319432726","HX Rookie Batting Helmet; T-Ball: 6 - 6 1/2; w/o Facemask; Solid Color; Uncoated Finish","$22.19",null,"Football"]
["CHPRHXFPUJ","319432513","HX Rookie Fastpitch Batting Helmet w/Facemask; Junior:6 1/2-7 1/8; Solid Color; Uncoated Finish","$37.17",null,"Football"]
["CHPRHXFPUT","319432548","HX Rookie Fastpitch Batting Helmet w/Facemask; T-Ball: 6 - 6 1/2; Solid Color; Uncoated Finish","$37.17",null,"Football"]
["CHPRHXFPUS","31943253X","HX Rookie Fastpitch Battng Helmet w/Facemask; Senior: 7 - 7 1/2; Solid Color; Uncoated Finish","$37.17",null,"Football"]
["CHPRJFP1APLUS","319436608","JUICE Football Game Pant; A: 2XL-5XL*; Flex Dazzle (Custom Sublimation Printing Included)","$46.58",null,"Football"]
["CHPRJFP1A","319436586","JUICE Football Game Pant; A: S-XL*; Flex Dazzle (Custom Sublimation Printing Included)","$40.5",null,"Football"]
["CHPRFHULJ","319427765","Jv 3 Piece Pad Set With Slots","$11.76",null,"Football"]
["CHPRA304","319420906","Laundry Belt","$1.86",null,"Football"]
["CHPRFKP1","31942779X","Low Rise Varsity Knee Pad","$5.34",null,"Football"]
["CHPRFPGU7APLUS","319431916","Man-Up TRI-FLEX Integrated Girdle; 7 Pad; A: 2XL-4XL*","$51.06",null,"Football"]
["CHPRFPGU7A","319431908","Man-Up TRI-FLEX Integrated Girdle; 7 Pad; A: S-XL*","$44.39",null,"Football"]
["CHPRFPGU7Y","319431924","Man-Up TRI-FLEX Integrated Girdle; 7 Pad; Youth: S-L","$41.45",null,"Football"]
["CHPRA134C","31942703X","Marker Disc Caddy (Discs Not Included)","$3.2",null,"Football"]
["CHPRA134CS","319427072","Marker Disc Carrying Strap (Discs Not Included)","$3.47",null,"Football"]
["CHPRCM75","319424804","Optimus MVP Hockey Style Catcher's Helmet; Varsity; Fits Most; 7 - 7 1/2","$92.81",null,"Football"]
["CHPRCM75Y","319424839","Optimus MVP Hockey Style Catcher's Helmet; Youth; Fits Most; 6 1/2 - 7","$92.81",null,"Football"]
["CHPRAF51","319428737","Orange Nylon Chain Clip/Yard Marker; 14 Long","$72.21",null,"Football"]
["CHPRNF2","319428664","Portable Kicking Screen; 7' High","$128.39",null,"Football"]
["CHPRFWB1","319438449","Pro Football Belt, 1.25 Wide X 60 Long X 2.5 Mm Thick, Dozen (Specify Color)","$21.66",null,"Football"]
["CHPRA108","319420647","Qucik-Down \"Pop\" Flag Belt; 1 Belt (3 Flags per Belt)","$8.01",null,"Football"]
["CHPRA1086","319420663","Quick-Down \"Pop\" Flag Belt; 6-Pack (2 Flags per Belt)","$35.83",null,"Football"]
["CHPRA109","319420671","Quick-Down \"Pop\" Jersey Flag; 2 Flags per Pack","$49.21",null,"Football"]
["CHPRA10812","319420655","QUICK-DOWN FLAG FOOTBALL BELT - 12 PACK 3-FLAGS PER BELT - BULK","$54.29",null,"Football"]
["CHPRA106","319420620","Replacement Flags for A105","$1.06",null,"Football"]
["CHPRFRPY","31942782X","Rib Protector; Youth","$31.55",null,"Football"]
["CHPRFPGU6APLUS","319431886","TRI-FLEX Integrated Girdle; 5 Built-In Pads; Varsity: 2XL-4XL*","$45.52",null,"Football"]
["CHPRFPGU6A","319431878","TRI-FLEX Integrated Girdle; 5 Built-In Pads; Varsity: S-XL*","$39.58",null,"Football"]
["CHPRFPGU6Y","319431894","TRI-FLEX Integrated Girdle; 5 Built-In Pads; Youth: S-L","$31.55",null,"Football"]
["CHPRF7ULSSN","319427188","Ultra Light 7 Piece Youth Pad Set Sliding Snaps","$24.06",null,"Football"]
["CHPRF7ULSL","319427129","Ultra Light 7 Piece Youth Pad Set Slots","$24.06",null,"Football"]
["CHPRF7ULSN","319427153","Ultra Light 7 Piece Youth Pad Set Snaps","$20.05",null,"Football"]
["CHPRFKPUL-A","319431444","UltraLight Knee Pad - Varsity","$5.61",null,"Football"]
["CHPRFKPUL-Y","319431452","UltraLight Knee Pad - Youth","$5.34",null,"Football"]
["CHPRFTPUL-Y","319432157","UltraLight Thigh Pad-Youth","$16.31",null,"Football"]
["CHPRA104","319426564","Weighted Corner Pylons (Set Of 4)","$32.89",null,"Football"]
["CHPRFBW2I","319427277","Weighted Football Intermediate Size","$21.39",null,"Football"]
["CHPRFBW2","319427242","Weighted Football Official Size","$21.39",null,"Football"]
["CHPRAF11","319428591","Weighted Referee Penalty Flag; Black Ball Center","$47.87",null,"Football"]
["CHPRAF10","319428575","Weighted Referee Penalty Flag; Gold Ball Center","$47.87",null,"Football"]
["CHPRFHPULYSSN","319427730","Youth 3 Piece Pad Set With Sliding Snaps And Shock Plate","$12.83",null,"Football"]
["CHPRFSPSBPY","319432106","Youth Backplate","$14.43",null,"Football"]

{"sheet":"General Equipment","index":7,"n_rows":82,"n_cols":6,"rows_kept":82,"cut":false,"hidden":false,"merged":[]}
[null,null,null,"Back Home","Website",{"$f":"HYPERLINK(\"https://www.unitedsupplycorp.com/\", \"https://www.unitedsupplycorp.com/\")","v":"https://www.unitedsupplycorp.com/"}]
[null,null,null,null,"Email ","orders@unitedsupplycorp.com"]
[null,null,null,null,"Phone ","718-439-9387"]
[]
[]
["United SKU","DOE Item Number","Title","DOE Price","Image","Category"]
["CHPRBB48","31942152X","BUTTONS REUSE BAG HARVEST 0.5LB","$7.21",null,"General Equipment"]
["CHPRE5","319426920","Deluxe Ball Bag Xl; 9 X 15 X 18.5; Color: Black","$14.7",null,"General Equipment"]
["CHPRBR21","319426351","15 Ball BRUTE Ball Rack","$182.69",null,"General Equipment"]
["CHPRA170","319427625","50' Open Reel Tape Measure","$10.15",null,"General Equipment"]
["CHPRA131","319426858","12 Plastic Marker Cone","$3.2",null,"General Equipment"]
["CHPRA9S2","31942099X","Water Bottle w/Straw, 1000 ml","$3.73",null,"General Equipment"]
["CHPRA102S","319426424","Solid Weighted Football Yard Markers","$356.83",null,"General Equipment"]
["CHPRACC","319428532","Cleat Cleaner; With Handle; 13 X 12","$20.85",null,"General Equipment"]
["CHPRA130","319426823","9 Plastic Marker Cone","$2.13",null,"General Equipment"]
["CHPRHC3","319432254","Varsity Cap C-Flex Fitted Construction; XS/S, S/M, L/XL","$8.28",null,"General Equipment"]
["CHPRA305","319420914","Mesh Laundry Bag; 12\" x 18\"","$2.4",null,"General Equipment"]
["CHPRE14","319430731","Canvas Duffle Bag; 40\" x 12\" x 12\"","$28.61",null,"General Equipment"]
["CHPRB072","319429911","Concept 3000 Dislodging Base Set Little League Approved","$292.63",null,"General Equipment"]
["CHPRE52","319430758","Umpire Bag - 36\" x 16\" x 17\"","$142.83",null,"General Equipment"]
["CHPRA128","31942071X","D4 Soccer Shin Guards; Black; XS","$8.28",null,"General Equipment"]
["CHPRE81","319430782","Fortress 2 Backpack; 18\" x 13\" x 8\"","$27.54",null,"General Equipment"]
["CHPRCSB7","319426491","11/0.47/Red/Synthetic/Polyurethane/375/Yellow/Asa/Game Fast Pitch Softball","$65.79",null,"General Equipment"]
["CHPRE84","319430812","Team Duffle Bag; 24\"L x 12\"W x 12\"H","$34.23",null,"General Equipment"]
["CHPRB002","319428850","Professional Base Set","$128.39",null,"General Equipment"]
["CHPRBR22","319426386","Hammock Volleyball Ball Cart","$98.43",null,"General Equipment"]
["CHPRNS32I","319429253","6' X 4' Foldup Goal (Individual)","$27.27",null,"General Equipment"]
["CHPRE50","319426955","Jumbo Allpurpose Bag On Wheels; 16 X 18 X 36","$78.63",null,"General Equipment"]
["CHPRBR20","319426327","15 Ball Professional Ball Rack, 49\"x19\"x49\"","$114.21",null,"General Equipment"]
["CHPRE45","319426890","Deluxe Personal Equipment Bag; 20 X 12 X 12","$23.26",null,"General Equipment"]
["CHPRE87","319430847","Prodigii Backpack; 16\" x 10.75\" x 8.5\"","$27.27",null,"General Equipment"]
["CHPRA130C/4","319420744","Collapsible Cone, 9\", Set/4, Boxed","$7.48",null,"General Equipment"]
["CHPRJBR20","319433625","JUICE Professional Ball Cart Cover (Custom Sublimation Printing Included)","$76.06",null,"General Equipment"]
["CHPRA132","319426882","15 Plastic Marker Cone","$3.73",null,"General Equipment"]
["CHPRNBZ","319428648","Brute Z Screen; 7' X 5'","$199.81",null,"General Equipment"]
["CHPRCM02CC","319424596","Rampage Replacement Chin Cup; Bulk","$5.61",null,"General Equipment"]
["CHPRE91","319430863","Siege Backpack; 18\"H x 12\"W x 8\"D","$40.38",null,"General Equipment"]
["CHPRB038","319429326","Home Plate Extension; Orange","$8.01",null,"General Equipment"]
["CHPRA167","319427560","Mat Tape; 3\"","$7.21",null,"General Equipment"]
["CHPRBB3-28.5","319430022","Progrip 3000 High Performance Composite; 28.5 Size; Nfhs","$21.39",null,"General Equipment"]
["CHPRA172","319427692","165' Open Reel Tape Measure","$17.11",null,"General Equipment"]
["CHPRA324-A","319420922","Whistle Lanyards-Assorted; 24 X 36; Assorted","$6.94",null,"General Equipment"]
["CHPRJ-JTR57","319437248","JUICE Table Runner; 80\"L x 57\"H (Custom Sublimation Printing Included)","$67.46",null,"General Equipment"]
["CHPRE86","319430839","Team Duffle Bag; 20\"L x 12\"W x 12\"H","$32.09",null,"General Equipment"]
["CHPRE85","319430820","Ultimate Carry-All Equipment Bag; 36\"L x 16\"W x 16\"H","$32.89",null,"General Equipment"]
["CHPRA104M","319420582","Molded Weighted Football Pylon; Set of 4","$164.23",null,"General Equipment"]
["CHPRA102","319426394","Football Yard Markers","$132.4",null,"General Equipment"]
["CHPRCSB8","319426629","12/0.47/Red/Synthetic/Polyurethane/375/Yellow/Asa/Game Fast Pitch Softball","$65.79",null,"General Equipment"]
["CHPRA9V","319421007","Water Bottle - Automatic Valve, 1000 ml","$4.27",null,"General Equipment"]
["CHPRNS1","319429075","4.0 Mm Braided Pe; Colors: Blue, Red, White, Yellow, & Orange","$224.15",null,"General Equipment"]
["CHPRA303","319428281","Mesh Ball/Laundry Bag","$3.47",null,"General Equipment"]
["CHPRA174","319427757","300' Open Reel Tape Measure","$27.27",null,"General Equipment"]
["CHPRA168","319427595","Mat Tape; 4\"","$9.35",null,"General Equipment"]
["CHPRA171","319427668","100' Open Reel Tape Measure","$12.83",null,"General Equipment"]
["CHPRE83","319430804","Comptetition Backpack; 19\" x 11\" x 9\"","$32.09",null,"General Equipment"]
["CHPRA133","319426912","18 Plastic Marker Cone","$5.87",null,"General Equipment"]
["CHPRA129C","319426793","6 Collapsible Cone, Dozen","$1.06",null,"General Equipment"]
["CHPRB003","319428893","Pro Style Molded Optic Orange Safety Base","$71.41",null,"General Equipment"]
["CHPRE90","319430855","Deluxe Soccer Ball Bag; 25\" x 25\" x 36\"","$30.48",null,"General Equipment"]
["CHPRBB3","319429970","Progrip 3000 High Performance Composite; Regulation Size; Nfhs","$21.39",null,"General Equipment"]
["CHPRE43","319426866","Varsity Football Equipment Bag; 28 X 15 X 15","$45.73",null,"General Equipment"]
["CHPRA102WXL","319426459","Weighted Football Yard Markers","$385.19",null,"General Equipment"]
["CHPRE66","319430766","Football Carry Bag; Holds 12 Full-Sized Footballs","$65.79",null,"General Equipment"]
["CHPRNS4","319429261","4.0 Mm Twisted Pe; Colors: Orange","$197.94",null,"General Equipment"]
["CHPRA173","319427722","200' Open Reel Tape Measure","$21.39",null,"General Equipment"]
["CHPRNS32","319429237","6' X 4' Foldup Goal (Pair)","$52.95",null,"General Equipment"]
["CHPRB049A","319429695","Dual Stanchion Anchor System For B049","$42.79",null,"General Equipment"]
["CHPRHXG2","319432564","HX Jaw Guard; Two-Tone","$8.55",null,"General Equipment"]
["CHPRE40","31943074X","Extra-Large All-Purpose Bag; 30\"L x 18\"W x 16\"H","$27.01",null,"General Equipment"]
["CHPRE10","319430723","Oversized All-Purpose Bag; 36\" x 16\" x 16\"","$30.75",null,"General Equipment"]
["CHPRB001X","319428834","Pro Style Molded Base Set","$157.01",null,"General Equipment"]
["CHPRE73","319427013","Drawstring Sackpack; 9 X 14","$4",null,"General Equipment"]
["CHPRE92","319430871","Boss Wheeled Catcher's Bag; 36\"L x 13\"W x 12\"D","$75.69",null,"General Equipment"]
["CHPRB042A","319429490","Dual Stanchion Anchor System For B004","$32.89",null,"General Equipment"]
["CHPRCM01CCH","319438414","Replacement Chin Cup; Retail Packaging","$5.34",null,"General Equipment"]
["CHPRNS6","319429318","6.0 Mm Braided Pe; Colors: Orange & White","$201.15",null,"General Equipment"]
["CHPRE74","319430774","Player's Backpack; 9\" x 18\" x 18\" - Limited Quantities","$22.99",null,"General Equipment"]
["CHPRE7","31942698X","Deluxe Ball Bag With 9 Molded Bottom; 17 H","$19.25",null,"General Equipment"]
["CHPRB035","31942927X","Professional Home Plate (Bury All Style) Wood Bottom","$71.41",null,"General Equipment"]
["CHPRJ-TR28","319434362","JUICE Table Runner; 80\"L x 28\"H (Custom Sublimation Printing Included)","$60.04",null,"General Equipment"]
["CHPRA339","319420957","Ground Quiver","$24.06",null,"General Equipment"]
["CHPRF-B1","319430898","JUICE Custom Microfleece Blanket; 50\" x 60\"","$32.62",null,"General Equipment"]

{"sheet":"Golf","index":8,"n_rows":8,"n_cols":6,"rows_kept":8,"cut":false,"hidden":false,"merged":[]}
[null,null,null,"Back Home","Website",{"$f":"HYPERLINK(\"https://www.unitedsupplycorp.com/\", \"https://www.unitedsupplycorp.com/\")","v":"https://www.unitedsupplycorp.com/"}]
[null,null,null,null,"Email ","orders@unitedsupplycorp.com"]
[null,null,null,null,"Phone ","718-439-9387"]
[]
[]
["United SKU","DOE Item Number","Title","DOE Price","Image","Category"]
["CHPRCBB-52Y","319423050","Poly Molded Golf Ball; Optic Yellow; 12-Pack w/Retail Packaging","$4.54",null,"Golf"]
["CHPRCBB-52","319423034","Poly Molded Golf Ball; White;12-Pack w/Retail Packaging","$4.54",null,"Golf"]

{"sheet":"Health and Fitness","index":9,"n_rows":13,"n_cols":6,"rows_kept":13,"cut":false,"hidden":false,"merged":[]}
[null,null,null,"Back Home","Website",{"$f":"HYPERLINK(\"https://www.unitedsupplycorp.com/\", \"https://www.unitedsupplycorp.com/\")","v":"https://www.unitedsupplycorp.com/"}]
[null,null,null,null,"Email ","orders@unitedsupplycorp.com"]
[null,null,null,null,"Phone ","718-439-9387"]
[]
[]
["United SKU","DOE Item Number","Title","DOE Price","Image","Category"]
["CHPRA813","319428435","Collapsible Speed Hurdles; Set Of 5","$57.23",null,"Health and Fitness"]
["CHPRNB51","319435997","Nylon Wrist Straps","$135.61",null,"Health and Fitness"]
["CHPRA822","319428494","Speed Chute 40","$18.45",null,"Health and Fitness"]
["CHPRA823","319428516","Speed Chute 48","$20.59",null,"Health and Fitness"]
["CHPRA820","319428478","Training Ladder 20' X 17; Splits Into Two 10' X 17 Sections","$36.9",null,"Health and Fitness"]
["CHPRCM02H","319424618","CM02 Replacement Harness","$48.67",null,"Health and Fitness"]
["CHPRCM02L","319424650","CM02 Replacement Liner Pads","$5.07",null,"Health and Fitness"]

{"sheet":"Hockey","index":10,"n_rows":14,"n_cols":6,"rows_kept":14,"cut":false,"hidden":false,"merged":[]}
[null,null,null,"Back Home","Website",{"$f":"HYPERLINK(\"https://www.unitedsupplycorp.com/\", \"https://www.unitedsupplycorp.com/\")","v":"https://www.unitedsupplycorp.com/"}]
[null,null,null,null,"Email ","orders@unitedsupplycorp.com"]
[null,null,null,null,"Phone ","718-439-9387"]
[]
[]
["United SKU","DOE Item Number","Title","DOE Price","Image","Category"]
["CHPRA099H","319420493","9\" x 12\" Hockey Coach's Board Softball","$10.42",null,"Hockey"]
["CHPRNH2","319424170","Floor Hockey Collapsible Goal","$78.63",null,"Hockey"]
["CHPRNH1","319436098","Hockey Goal","$185.63",null,"Hockey"]
["CHPRNS40I","319436209","PRO Pop-Up Goal 3' x 2'","$14.43",null,"Hockey"]
["CHPRNHN3","319436136","Replacement Hockey Net 54\"x 44\"","$26.47",null,"Hockey"]
["CHPRNHN2","31943611X","Replacement Hockey Net 72\"x 48\"","$40.65",null,"Hockey"]
["CHPRNL2RN","319436152","Replacement Net for NL2","$28.61",null,"Hockey"]
["CHPRNS50","319436217","Soccer Skill Trainer/Rebounder","$92.81",null,"Hockey"]

{"sheet":"Lacrosse","index":11,"n_rows":28,"n_cols":6,"rows_kept":28,"cut":false,"hidden":false,"merged":[]}
[null,null,null,"Back Home","Website",{"$f":"HYPERLINK(\"https://www.unitedsupplycorp.com/\", \"https://www.unitedsupplycorp.com/\")","v":"https://www.unitedsupplycorp.com/"}]
[null,null,null,null,"Email ","orders@unitedsupplycorp.com"]
[null,null,null,null,"Phone ","718-439-9387"]
[]
[]
["United SKU","DOE Item Number","Title","DOE Price","Image","Category"]
["CHPRNL4","319428826","Backyard Goal; 4' X 4'","$92.81",null,"Lacrosse"]
["CHPRA137OR","319420795","Flat Disc Markers; Optic Yellow or Orange; 10 Pack","$8.55",null,"Lacrosse"]
["CHPRLBSP","319428095","Foam Lacrosse Balls","$14.97",null,"Lacrosse"]
["CHPRSBF","319436578","Futsal Ball","$14.43",null,"Lacrosse"]
["CHPRNS51I","319436233","Gravity Weighted Soccer Goal; 4' x 3'","$45.73",null,"Lacrosse"]
["CHPRNS52I","319436241","Gravity Weighted Soccer Goal; 6' x 4'","$64.19",null,"Lacrosse"]
["CHPRJLK1G","319437566","JUICE Lacrosse Kilt; G: S-XL; Active Cloth (Custom Sublimation Printing Included)","$29.37",null,"Lacrosse"]
["CHPRNLB","319428842","Lacrosse Barrier; 20' X 8'","$128.39",null,"Lacrosse"]
["CHPRNLWC","319428931","Lacrosse Crease; 17' Diameter","$92.81",null,"Lacrosse"]
["CHPRNLMC","319428885","Lacrosse Crease; 18' Diameter","$100.03",null,"Lacrosse"]
["CHPRNLCT2","319428869","Lacrosse Goal Corner Targets","$21.39",null,"Lacrosse"]
["CHPRLSB","31943561X","Lacrosse Head Ball Stopper","$13.9",null,"Lacrosse"]
["CHPRLSAC","319435598","Lacrosse Stick End Cap for LS1","$24.33",null,"Lacrosse"]
["CHPRLSYC","319435636","Lacrosse Stick End Cap for LS2","$24.33",null,"Lacrosse"]
["CHPRLS1","319435555","Lacrosse Stick; Black; Adult","$28.61",null,"Lacrosse"]
["CHPRLS2","319435571","Lacrosse Stick; White; Youth","$19.25",null,"Lacrosse"]
["CHPRLB3NW","319428028","Nocsae Lacrosse Balls 3 Pack Retail Packaging; White","$7.21",null,"Lacrosse"]
["CHPRLB6NW","319428087","Nocsae Lacrosse Balls 6 Pack Retail Packaging; White","$14.43",null,"Lacrosse"]
["CHPRLBN","319435539","NOCSAE Lacrosse Balls; Orange, Gold, Lime Green & White","$22.99",null,"Lacrosse"]
["CHPRNLR2","319428915","Rebound Target; 4' X 3'","$74.89",null,"Lacrosse"]
["CHPRNLR1","319428907","Rebound Target; 86 X 37 1/2","$185.63",null,"Lacrosse"]
["CHPRNL2","31942880X","Recreation Lacrosse Goal","$121.43",null,"Lacrosse"]

{"sheet":"Physical Education","index":12,"n_rows":19,"n_cols":6,"rows_kept":19,"cut":false,"hidden":false,"merged":[]}
[null,null,null,"Back Home","Website",{"$f":"HYPERLINK(\"https://www.unitedsupplycorp.com/\", \"https://www.unitedsupplycorp.com/\")","v":"https://www.unitedsupplycorp.com/"}]
[null,null,null,null,"Email ","orders@unitedsupplycorp.com"]
[null,null,null,null,"Phone ","718-439-9387"]
[]
[]
["United SKU","DOE Item Number","Title","DOE Price","Image","Category"]
["CHPRA131C","319420752","12\" Collapsible Cone - Limited Quantities Available","$2.4",null,"Physical Education"]
["CHPRA131V","319420760","12\" Heavy Weight Collapsible Vinyl Cone - Limited Quantities Available","$11.49",null,"Physical Education"]
["CHPRA129V","319420728","6\" Heavy Weight Collapsible Vinyl Cone","$5.07",null,"Physical Education"]
["CHPRA130C","319420736","9\" Collapsible Cone","$1.86",null,"Physical Education"]
["CHPRA147D","319420825","Apex Digital Smart Pump","$114.21",null,"Physical Education"]
["CHPRA031C","319420345","Bat Grip Tape; Camo Colors","$4.54",null,"Physical Education"]
["CHPRA031","319420337","Bat Grip Tape; Tire Tread","$4.54",null,"Physical Education"]
["CHPRA031W","319420361","Bat Grip Tape; Web Pink, White","$4.54",null,"Physical Education"]
["CHPRHP","319432416","Deluxe Hand Pump","$121.43",null,"Physical Education"]
["CHPRA336","319420949","Officials' Whistle; Retail Blister Pack","$5.07",null,"Physical Education"]
["CHPRA153","319420841","Stealth Handheld Digital Pump","$40.65",null,"Physical Education"]
["CHPRAF31","319421082","Weighted Throw Down Bean Bag, Single-Sided, Long-Neck; White and Royal","$44.66",null,"Physical Education"]
["CHPRAF34","319421090","Weighted Throw Down Skinny Bean Bag; Double Sided; Wht, Ryl and Blk","$42.79",null,"Physical Education"]

{"sheet":"Soccer","index":13,"n_rows":70,"n_cols":6,"rows_kept":70,"cut":false,"hidden":false,"merged":[]}
[null,null,null,"Back Home","Website",{"$f":"HYPERLINK(\"https://www.unitedsupplycorp.com/\", \"https://www.unitedsupplycorp.com/\")","v":"https://www.unitedsupplycorp.com/"}]
[null,null,null,null,"Email ","orders@unitedsupplycorp.com"]
[null,null,null,null,"Phone ","718-439-9387"]
[]
[]
["United SKU","DOE Item Number","Title","DOE Price","Image","Category"]
["CHPRA142","319427226","10 Dual Action Pump","$7.21",null,"Soccer"]
["CHPRA146","319427374","10 Dual Action Pump With Pressure Gauge","$15.77",null,"Soccer"]
["CHPRA141","319427161","12 Inflation Pump","$3.73",null,"Soccer"]
["CHPRA141PG","319427196","12 Pump With Pressure Gauge","$10.96",null,"Soccer"]
["CHPRNS06","319429059","2.0 Mm Twisted Pe; Colors: Orange","$76.76",null,"Soccer"]
["CHPRNS04","319429032","2.5 Mm Twisted Pe; Colors: Orange","$105.92",null,"Soccer"]
["CHPRNS01","319429016","3.0 Mm Braided Pe; Colors: Orange","$154.87",null,"Soccer"]
["CHPRNS3T","319436195","3.0 mm Twisted PE; Colors: Blue, Red, White, Yellow, & Orange","$152.73",null,"Soccer"]
["CHPRNS14","319436187","3-In-1 Soccer Goal Trainer; (Individual) - Limited Quantities Available","$111",null,"Soccer"]
["CHPRSG3","319436594","3mm Latex Foam Goalie Glove; Sizes: 4-11","$12.56",null,"Soccer"]
["CHPRNS2","319429210","4.0 Mm Braided Pe Hexagonal; Colors: White","$301.19",null,"Soccer"]
["CHPRSB503","31943639X","500 Renegade Machine Stitched Soccer Ball; Size 3","$8.55",null,"Soccer"]
["CHPRSB504","319436411","500 Renegade Machine Stitched Soccer Ball; Size 4","$8.55",null,"Soccer"]
["CHPRSB505","319436438","500 Renegade Machine Stitched Soccer Ball; Size 5","$8.55",null,"Soccer"]
["CHPRSB553","319436454","550 Venari Machine Stiched Soccer Ball; Size 3","$10.15",null,"Soccer"]
["CHPRSB554","319436470","550 Venari Machine Stiched Soccer Ball; Size 4","$10.15",null,"Soccer"]
["CHPRSB555","319436497","550 Venari Machine Stiched Soccer Ball; Size 5","$10.15",null,"Soccer"]
["CHPRA143","319427250","6 Inflation Pump","$2.4",null,"Soccer"]
["CHPRA144","319427285","8 Dual Action Pump","$5.87",null,"Soccer"]
["CHPRSB1805","319429520","Aurora Thermalbonded Soccer Ball; Nfhs Approved; Size 5","$24.33",null,"Soccer"]
["CHPRSB1804","319429504","Aurora Thermalbonded Soccer Ball; Size 4","$24.33",null,"Soccer"]
["CHPRNL6NB","319436160","Brute 6MM Lacrosse Net; Black","$128.39",null,"Soccer"]
["CHPRNL6NW","319436179","Brute 6MM Lacrosse Net; White","$128.39",null,"Soccer"]
["CHPRNS44I","319438481","Brute Goal Official Ussf Regulation Sizes For U6 U8; 12' X 6'; (Individual)","$142.83",null,"Soccer"]
["CHPRNS43I","319429288","Brute Goal Official Ussf Regulation Sizes For U6 U8; 6' X 4'; (Individual)","$106.99",null,"Soccer"]
["CHPRA195","31942085X","Captain's Arm Band; Colors: Black, Yellow, Blue, Red, Green - Adult","$1.59",null,"Soccer"]
["CHPRSB1604","319436314","Catalyst Thermal Bonded Soccer Ball; Size 4","$20.05",null,"Soccer"]
["CHPRSB1605","319436330","Catalyst Thermal Bonded Soccer Ball; Size 5","$20.05",null,"Soccer"]
["CHPRA8D","319420981","C-Flex Shin Guard; S/M - L/XL","$25.13",null,"Soccer"]
["CHPRSG5","319436616","Competition Goalie Glove; Sizes: 5-11","$16.84",null,"Soccer"]
["CHPRA197RB","319427854","Corner Flags With Rubber Bases; 1 Diameter (Set Of 4)","$44.39",null,"Soccer"]
["CHPRA193RB","319438325","Corner Flags With Rubber Bases; 1/2 Diameter (Set Of 4)","$44.39",null,"Soccer"]
["CHPRA119XS","31942068X","D3 Molded Shin Guards; Black; Extra Small","$6.14",null,"Soccer"]
["CHPRA126","319420698","D4 Soccer Shin Guard; Black; M","$8.28",null,"Soccer"]
["CHPRA127","319420701","D4 Soccer Shin Guards; Black; S","$8.28",null,"Soccer"]
["CHPRA192","319427781","Deluxe Linesman Flags With Foam Grips (Set Of 2)","$7.75",null,"Soccer"]
["CHPRA197","319427846","Deluxe Side Line Flag (Set Of 4)","$47.07",null,"Soccer"]
["CHPRA110Y","319438317","Economy Shin Guard; Size Youth","$9.08",null,"Soccer"]
["CHPRA147","319427404","Electric Inflation Pump","$138.29",null,"Soccer"]
["CHPRA011","319420329","Glove Lace, 48\" Black (Pkg. of 10 laces) Available in Black or Tan","$22.95",null,"Soccer"]
["CHPRA148","319427447","Inflation Gauge","$4.27",null,"Soccer"]
["CHPRA145B","31942734X","Inflation Needles 3/Card; Retail Packaging","$0.79",null,"Soccer"]
["CHPRA145","319427315","Inflation Needles Bulk 100 Pack","$23.53",null,"Soccer"]
["CHPRSSG8","319437019","League Soccer Shin Guard; S-L","$10.15",null,"Soccer"]
["CHPRSB643","319436519","Maverick Soccer Ball; Size 3","$11.49",null,"Soccer"]
["CHPRSB644","319436535","Maverick Soccer Ball; Size 4","$11.49",null,"Soccer"]
["CHPRSB645","319436551","Maverick Soccer Ball; Size 5","$11.49",null,"Soccer"]
["CHPRCG100","319423891","Optimus MVP Leg Guards; Adult; 16.5\" Shin Length","$58.57",null,"Soccer"]
["CHPRCG105","319423948","Optimus MVP Leg Guards; Senior League; 14.5\" Shin Length","$34.76",null,"Soccer"]
["CHPRCG104","319423913","Optimus MVP Leg Guards; Senior League; 14.5\" Shin Length","$47.87",null,"Soccer"]
["CHPRCG111","319424006","Optimus MVP Leg Guards; T-Ball; 12\" Shin Length","$37.97",null,"Soccer"]
["CHPRCG112","319424014","Optimus MVP Leg Guards; T-Ball; 12\" Shin Length","$31.55",null,"Soccer"]
["CHPRCG107","319423972","Optimus MVP Leg Guards; Youth; 13.5\" Shin Length","$32.89",null,"Soccer"]
["CHPRCG106","319423956","Optimus MVP Leg Guards; Youth; 13.5\" Shin Length","$41.72",null,"Soccer"]
["CHPRCG186","319424081","Optimus Pro Leg Guards; 13.5\" Shin Length; Double Knee","$57.23",null,"Soccer"]
["CHPRCG184","319424073","Optimus Pro Leg Guards; 14.5\" Shin Length; Double Knee","$62.85",null,"Soccer"]
["CHPRCG181","319424022","Optimus Pro Leg Guards; 16.5\" Shin Length; Triple Knee","$80.77",null,"Soccer"]
["CHPRA149","319427471","Pressure Gauge With Release Button","$10.15",null,"Soccer"]
["CHPRA197RSE","319427900","Replacement Flags For A197 & A199; (Set Of 4)","$14.43",null,"Soccer"]
["CHPRA199","319427935","Side Line Flags (Set Of 4)","$51.35",null,"Soccer"]
["CHPRSSG6","319429563","Sock Style Shin Guard; Xxs/Xs, S/M And M/L; Black","$11.49",null,"Soccer"]
["CHPRA197X","319420876","The \"X\" Turf Corner Flag","$106.99",null,"Soccer"]
["CHPRSB1704","319436357","Volare Thermal Bonded Soccer Ball; Size 4","$21.39",null,"Soccer"]
["CHPRSB1705","319436373","Volare Thermal Bonded Soccer Ball; Size 5","$21.39",null,"Soccer"]

{"sheet":"Table Covers And Banners","index":14,"n_rows":21,"n_cols":6,"rows_kept":21,"cut":false,"hidden":false,"merged":[]}
[null,null,null,"Back Home","Website",{"$f":"HYPERLINK(\"https://www.unitedsupplycorp.com/\", \"https://www.unitedsupplycorp.com/\")","v":"https://www.unitedsupplycorp.com/"}]
[null,null,null,null,"Email ","orders@unitedsupplycorp.com"]
[null,null,null,null,"Phone ","718-439-9387"]
[]
[]
["United SKU","DOE Item Number","Title","DOE Price","Image","Category"]
["CHPRJ-TT4F","319434907","Juice 4' Fitted Table Throw; Table Size: 48\"W x 36\"H x 24\"D (Custom Sublimation Printing Included)","$146.93",null,"Table Covers and Banners"]
["CHPRJ-TT6F","31943494X","Juice 6' Fitted Table Throw; Table Size: 72\"W x 28\"H x 30\"D (Custom Sublimation Printing Included)","$152.92",null,"Table Covers and Banners"]
["CHPRJ-TT6S","319434966","Juice 6' Standard Table Throw; Table Size: 72\"W x 28\"H x 30\"D (Custom Sublimation Printing Included)","$200.86",null,"Table Covers and Banners"]
["CHPRJ-TT8F","319434990","Juice 8' Fitted Table Throw; Table Size: 96\"W x 28\"H x 30\"D (Custom Sublimation Printing Included)","$170.18",null,"Table Covers and Banners"]
["CHPRJ-TT8S","319435016","Juice 8' Standard Table Throw; Table Size: 96\"W x 28\"H x 30\"D (Custom Sublimation Printing Included)","$215.84",null,"Table Covers and Banners"]
["CHPRJ-TT10S","319434885","Juice Econo 10' Standard Table Throw; Table Size: 120\"W x 28\"H x 30\"D (Custom Sublimation Printing Included)","$231.67",null,"Table Covers and Banners"]
["CHPRJ-TT10E","319434869","Juice Econo 10' Table Throw with 9\" Hang; Table Size: 120\"W x 28\"H x 30\"D (Custom Sublimation Printing Included)","$185.16",null,"Table Covers and Banners"]
["CHPRJ-TT6E","319434923","Juice Econo 6' Table Throw with 9\" Hang; Table Size: 72\"W x 28\"H x 30\"D (Custom Sublimation Printing Included)","$152.92",null,"Table Covers and Banners"]
["CHPRJ-TT8E","319434982","Juice Econo 8' Table Throw with 9\" Hang; Table Size: 96\"W x 28\"H x 30\"D (Custom Sublimation Printing Included)","$170.18",null,"Table Covers and Banners"]
["CHPRF-B1","319430898","JUICE Custom Microfleece Blanket; 50\" x 60\"","$32.62",null,"Table Covers and Banners"]
["CHPRJ-IB84P","319437221","Juice 8' x 4' Indoor Banner with Pocket (Custom Sublimation Printing Included)","$69.74",null,"Table Covers and Banners"]
["CHPRJ-IB35P","319437167","Juice 3' x 5' Indoor Banner with Pocket (Custom Sublimation Printing Included)","$53.91",null,"Table Covers and Banners"]
["CHPRJIB24P","319437140","Juice 2' x 4' Indoor Banner with Pocket (Custom Sublimation Printing Included)","$46.49",null,"Table Covers and Banners"]
["CHPRJ-IB53P","319437205","Juice 5' x 3' Indoor Banner with Pocket (Custom Sublimation Printing Included)","$53.91",null,"Table Covers and Banners"]
["CHPRJ-IB48P","319437183","Juice 4' x 8' Indoor Banner with Pocket (Custom Sublimation Printing Included)","$69.74",null,"Table Covers and Banners"]

{"sheet":"Track and Field","index":15,"n_rows":25,"n_cols":6,"rows_kept":25,"cut":false,"hidden":false,"merged":[]}
[null,null,null,"Back Home","Website",{"$f":"HYPERLINK(\"https://www.unitedsupplycorp.com/\", \"https://www.unitedsupplycorp.com/\")","v":"https://www.unitedsupplycorp.com/"}]
[null,null,null,null,"Email ","orders@unitedsupplycorp.com"]
[null,null,null,null,"Phone ","718-439-9387"]
[]
[]
["United SKU","DOE Item Number","Title","DOE Price","Image","Category"]
["CHPRFTH1","319432114","1\" T-Hook","$8.55",null,"Track and Field"]
["CHPRFTH1.5","319432122","1\" T-Hook","$9.62",null,"Track and Field"]
["CHPRFTH1.5B","319432130","1\" T-Hook - Black","$12.83",null,"Track and Field"]
["CHPRA811","319428397","12 Orange Training Hurdle","$9.62",null,"Track and Field"]
["CHPRA812","319428419","18 Orange Training Hurdle","$16.57",null,"Track and Field"]
["CHPRTSC106","319429644","2.7 Kg./6 Lb.Cast Iron Shot Put","$14.7",null,"Track and Field"]
["CHPRTSC108","319429660","3.6 Kg./8 Lb.Cast Iron Shot Put","$18.71",null,"Track and Field"]
["CHPRTSC4K","319429725","4.0 Kg./8.8 Lb.Cast Iron Shot Put","$18.71",null,"Track and Field"]
["CHPRTSC112","319429687","5.45 Kg./ 12 Lb.Cast Iron Shot","$27.81",null,"Track and Field"]
["CHPRA810","319428362","6 Orange Training Hurdle","$7.48",null,"Track and Field"]
["CHPRE82","319430790","6-Pocket Team Organizer; 11 3/4\"W x 10\"D x  54\"H - Limited Quantities Available","$12.83",null,"Track and Field"]
["CHPRTSC116","319429709","7.26 Kg./16 Lb.Cast Iron Shot Put","$31.55",null,"Track and Field"]
["CHPRB068-AD","319421414","Brush Top Tee Adapter","$4.27",null,"Track and Field"]
["CHPRACT","319421023","Hardwood Court Grip","$29.41",null,"Track and Field"]
["CHPRACTR","319421031","Hardwood Court Grip Replacement Sheets","$17.11",null,"Track and Field"]
["CHPRAF49C","319421112","Quarterback Playbook; Digital Camo; Single Book","$5.07",null,"Track and Field"]
["CHPRAF50C","319421139","Quarterback Playbook; Digital Camo; Triple Book","$6.14",null,"Track and Field"]
["CHPRAF49","319421104","Quarterback Playbook; Team Color; Single Book","$4.27",null,"Track and Field"]
["CHPRAF50","319421120","Quarterback Playbook; Team Color; Triple Book","$5.34",null,"Track and Field"]

{"sheet":"Volleyball","index":16,"n_rows":25,"n_cols":6,"rows_kept":25,"cut":false,"hidden":false,"merged":[]}
[null,null,null,"Back Home","Website",{"$f":"HYPERLINK(\"https://www.unitedsupplycorp.com/\", \"https://www.unitedsupplycorp.com/\")","v":"https://www.unitedsupplycorp.com/"}]
[null,null,null,null,"Email ","orders@unitedsupplycorp.com"]
[null,null,null,null,"Phone ","718-439-9387"]
[]
[]
["United SKU","DOE Item Number","Title","DOE Price","Image","Category"]
["CHPRNV09","319429415","1.7 Mm Twisted Pe 30'; Recreational Net, Pe Rope Cable Top","$15.24",null,"Volleyball"]
["CHPRNV08","319429393","1.7 Mm Twisted Pe 32'; Competition Net, Pe Rope Cable Top","$17.11",null,"Volleyball"]
["CHPRNV06","319429377","2.0 Mm Twisted Pe 32'; Varsity Net, Steel Cable Top","$29.15",null,"Volleyball"]
["CHPRNV05","319429350","2.5 Mm Twisted Pe 30'; Indoor/Outdoor Net, Pe Rope Top Cable","$29.95",null,"Volleyball"]
["CHPRVBST2500","319437310","2500 TecSoft Volleyball","$27.81",null,"Volleyball"]
["CHPRNV01","319429334","3.0 Mm Braided Pe 32'; Power Net, Steel Cable Top & Bottom","$85.59",null,"Volleyball"]
["CHPRVB41","319429741","300 Competition Rubber","$6.41",null,"Volleyball"]
["CHPRNG07","319428788","Brute Antiwhip White","$5.87",null,"Volleyball"]
["CHPRNG06","319428761","Economy Antiwhip Net White","$3.47",null,"Volleyball"]
["CHPRVBL2","319437272","Featherlite Volleyball","$16.04",null,"Volleyball"]
["CHPRA1004","319420507","High Compression/Low Profile - Adult; Colors: Black, White","$12.56",null,"Volleyball"]
["CHPRA1004JR","319420515","High Compression/Low Profile - Junior; Colors: Black, White","$12.56",null,"Volleyball"]
["CHPRA3001","319420892","MVP Low-Profile Kneepad; S-L","$11.49",null,"Volleyball"]
["CHPRA2001","319420884","Pro-Plus Low Profile Contour Knee Pad; Adult: S, M & L","$12.83",null,"Volleyball"]
["CHPRVB-ST200","319437299","ST-200 Pro Performance","$10.15",null,"Volleyball"]
["CHPRVBST4000","319429768","St4000 Premier Microfiber Cover; Nfhs","$31.02",null,"Volleyball"]
["CHPRVBST800","319437337","ST-800 Soft Touch Pro Performance Volleyball","$16.84",null,"Volleyball"]
["CHPRVBST900","319437353","ST-900 Wave Soft Touch Pro Performance Volleyball","$17.11",null,"Volleyball"]
["CHPRNVA1","319429431","Volleyball Antenna With Sleeve; Official Size","$42.25",null,"Volleyball"]